Workbook

Sheet прил 1 (2013 доходы)
A6: Прогнозируемые доходы бюджета Черемховского районного муниципального образования на 2013 год
D8: (тыс. рублей)
A9: Наименование | B9: Код бюджетной классификации | D9: Прогноз на 2013 год (май) | E9: Прогноз на 2013 год | F9: ОТК
B10: главного администратора доходов | C10: доходов районного бюджета
A11: НАЛОГОВЫЕ И НЕНАЛОГОВЫЕ ДОХОДЫ | B11: 000 | C11: 1 00 00000 00 0000 000 | D11: =D12+D17+D27+D31+D35+D40+D46+D53+D58+D83 -> 87014.13 | E11: =E12+E17+E27+E31+E35+E40+E46+E53+E58+E83 -> 87824.13 | F11: =E11-D11 -> 810
A12: НАЛОГИ НА ПРИБЫЛЬ, ДОХОДЫ | B12: 182 | C12: 1 01 00000 00 0000 000 | D12: =D13+D14+D15+D16 -> 53100 | E12: =E13+E14+E15+E16 -> 53200 | F12: =E12-D12 -> 100
A13: Налог на доходы физических лиц с доходов, источником которых является налоговый агент, за исключением доходов, в отношении которых исчисление и уплата налога осуществляются в соответствии со статьями 227,227¹ и 228 Налогового кодекса Российской Федерации | B13: 182 | C13: 1 01 02010 01 0000 110 | D13: 52835.4 | E13: 52835.4 | F13: 0
A14: Налог на доходы физических лиц с доходов, полученных от осуществления деятельности физическими лицами,зарегистрированными в качестве индивидуальных предпринимателей,нотариусов,занимающихся частной практикой,адвокатов,учредивших адвокатские кабинеты и других лиц, занимающихся частной практикой | B14: 182 | C14: 1 01 02020 01 0000 110 | D14: 129.4 | E14: 129.4 | F14: 0
A15: Налог на доходы физических лиц с доходов, полученных физическими лицами, не являющимися налоговыми резидентами | B15: 182 | C15: 1 01 02030 01 0000 110 | D15: 131.7 | E15: 231.7 | F15: 100
A16: Налог на доходы физических лиц в виде фиксированных авансовых платежей с доходов, полученных физическими лицами, являющимися иностранными гражданами, осуществляющими трудовую деятельность по найму у физических лиц на основании патента | B16: 182 | C16: 1 01 02040 01 0000 110 | D16: 3.5 | E16: 3.5 | F16: 0
A17: НАЛОГИ НА СОВОКУПНЫЙ ДОХОД | B17: 182 | C17: 1 05 00000 00 0000 000 | D17: =D18+D24+D25+D26 -> 9300.4 | E17: =E18+E24+E25+E26 -> 9603.2 | F17: 302.8
A18: Налог, взимаемый в связи с применением упрощенной системы налогообложения | B18: 182 | C18: 1 05 01000 00 0000 110 | D18: =D19+D20+D21+D22 -> 3770.4 | E18: =E19+E20+E21+E22 -> 3783.2 | F18: 12.8
A19: Налог, взимаемый с налогоплательщиков, выбравших в качестве объекта налогообложения доходы | B19: 182 | C19: 1 05 01010 01 0000 110 | D19: 1487 | E19: 1487 | F19: 0
A20: Налог, взимаемый с налогоплательщиков, выбравших в качестве объекта налогообложения доходы, уменьшенные на величину расходов | B20: 182 | C20: 1 05 01020 01 0000 110 | D20: 1540 | E20: 1540 | F20: 0
A21: Налог, взимаемый с налогоплательщиков, выбравших в качестве объекта налогообложения доходы, уменьшенные на величину расходов (за налоговые периоды, истекшие до 1 января 2011 года) | B21: 182 | C21: 1 05 01022 01 0000 110 | D21: 106.2 | E21: 106.2 | F21: 0
A22: Минимальный налог, зачисляемый в бюджеты субьектов РФ | B22: 182 | C22: 1 05 01050 01 0000 110 | D22: 637.2 | E22: 650 | F22: 12.8
A23: Налог, взимаемый в связи с применением патентной системы налогообложения | B23: 182 | D23: 0 | F23: 0
A24: Единый налог на вмененный доход для отдельных видов деятельности | B24: 182 | C24: 1 05 02000 02 0000 110 | D24: 5310 | E24: 5310 | F24: 0
A25: Единый сельскохозяйственный налог | B25: 182 | C25: 1 05 03000 01 0000 110 | D25: 210 | E25: 500 | F25: 290
A26: Налог, взимаемый в связи с применением патентной системы налогообложения | B26: 182 | C26: 1 05 04000 01 0000 110 | D26: 10 | E26: 10 | F26: 0
A27: ГОСУДАРСТВЕННАЯ ПОШЛИНА | B27: 000 | C27: 1 08 00000 00 0000 000 | D27: =D28+D29+D30 -> 1028 | E27: =E28+E29+E30 -> 1308 | F27: 280
A28: Государственная пошлина по делам, рассматриваемым в судах общей юрисдикции, мировыми судьями (за исключением Верховного Суда Российской Федерации) | B28: 182 | C28: 1 08 03010 01 0000 110 | D28: 308 | E28: 308 | F28: 0
A29: Государственная пошлина за совершение действий, связанных с лицензированием, с проведением аттестации в случаях, если такая аттестация предусмотрена законодательством Российской Федерации, зачисляемая в бюджеты муниципальных районов | B29: 917 | C29: 1 08 07084 01 1000 110 | D29: 720 | E29: 1000 | F29: 280
A30: Государственная пошлина за государственную регистрацию транспортных средств и иные юридически значимые действия, связанные с изменениями и выдачей документов на транспортные средства, выдачей регистрационных знаков, приемом квалификационных экзаменов на получение права на управление транспортными средствами | B30: 000 | C30: 1 08 07141 01 0000 110 | F30: 0
A31: ЗАДОЛЖЕННОСТЬ И ПЕРЕРАСЧЕТЫ ПО ОТМЕНЕННЫМ НАЛОГАМ, СБОРАМ И ИНЫМ ОБЯЗАТЕЛЬНЫМ ПЛАТЕЖАМ | B31: 182 | C31: 1 09 00000 00 0000 000 | D31: =D33+D34+D32 -> 2 | E31: =E33+E34+E32 -> 110 | F31: 108
A32: Налог на прибыль организаций, зачислявшийся до 1 января 2005 года в местные бюджеты | B32: 182 | C32: 1 09 01030 05 0000 110 | D32: 0.05 | E32: 0.05 | F32: 0
A33: Налог на имущество предприятий | B33: 182 | C33: 1 09 04010 02 0000 110 | D33: 0.45 | E33: 0.45 | F33: 0
A34: Налог с продаж | B34: 182 | C34: 1 09 06010 02 0000 110 | D34: 1.5 | E34: 109.5 | F34: 108
A35: ДОХОДЫ ОТ ИСПОЛЬЗОВАНИЯ ИМУЩЕСТВА, НАХОДЯЩЕГОСЯ В ГОСУДАРСТВЕННОЙ И МУНИЦИПАЛЬНОЙ СОБСТВЕННОСТИ | B35: 000 | C35: 1 11 00000 00 0000 000 | D35: =D36+D39 -> 9990 | E35: =E36+E39 -> 9990 | F35: 0
A36: Доходы, получаемые в виде арендной платы за земельные участки,государственная собственность на которые не разграничена и которые расположеныв границах поселений, а также средства от продажи права на заключение договоров аренды указанных земельных участков | B36: 000 | C36: 1 11 05013 10 0000 120 | D36: =D37+D38 -> 5090 | E36: =E37+E38 -> 5090 | F36: 0
A37: Доходы, получаемые в виде арендной платы за земельные участки, государственная собственность на которые не разграничена и которые расположены в границах поселений, а также средства от продажи права на заключение договоров аренды указанных земельных участков | B37: 913 | C37: 1 11 05013 10 0000 120 | D37: 4340 | E37: 4340 | F37: 0
A38: Доходы, получаемые в виде арендной платы за земельные участки,государственная собственность на которые не разграничена и которые расположеныв границах поселений, а также средства от продажи права на заключение договоров аренды указанных земельных участков | B38: 950 | C38: 1 11 05013 10 0000 120 | D38: 750 | E38: 750 | F38: 0
A39: Доходы от сдачи в аренду имущества, находящегося в оперативном управлении органов управления муниципальных районов и созданных ими учреждений (за исключением имущества муниципальных автономных учреждений) | B39: 913 | C39: 1 11 05035 05 0000 120 | D39: 4900 | E39: 4900 | F39: 0
A40: ПЛАТЕЖИ ПРИ ПОЛЬЗОВАНИИ ПРИРОДНЫМИ РЕСУРСАМИ | B40: 048 | C40: 1 12 00000 00 0000 000 | D40: =D41 -> 179.13 | E40: =E41 -> 179.13 | F40: 0
A41: Плата за негативное воздействие на окружающую среду | B41: 048 | C41: 1 12 01000 01 0000 120 | D41: =D42+D43+D45+D44 -> 179.13 | E41: =E42+E43+E45+E44 -> 179.13 | F41: 0
A42: Плата за выбросы загрязняющих веществ в атмосферный воздух стационарными объектами | B42: 048 | C42: 1 12 01010 01 0000 120 | D42: 72.9 | E42: 72.9 | F42: 0
A43: Плата за выбросы загрязняющих веществ в атмосферный воздух передвижными объектами | B43: 048 | C43: 1 12 01020 01 0000 120 | D43: 60 | E43: 60 | F43: 0
A44: Плата за сбросы загрязняющих веществ в водные объекты | B44: 048 | C44: 1 12 01030 01 0000 120 | D44: 2.47 | E44: 2.47 | F44: 0
A45: Плата за размещение отходов производства и потребления | B45: 048 | C45: 1 12 01040 01 0000 120 | D45: 43.76 | E45: 43.76 | F45: 0
A46: ДОХОДЫ ОТ ОКАЗАНИЯ ПЛАТНЫХ УСЛУГ И КОМПЕНСАЦИИ ЗАТРАТ ГОСУДАРСТВА | B46: 000 | C46: 1 13 00000 00 0000 000 | D46: =D47+D48 -> 7394 | E46: =E47+E48 -> 7394 | F46: 0
A47: Прочие доходы от оказания платных услуг (работ) получателями средств бюджетов муниципальных районов | B47: 907 | C47: 113 01995 05 0000 130 | D47: 7070 | E47: 7070 | F47: 0
A48: Прочие доходы от оказания платных услуг (работ) получателями средств бюджетов муниципальных районов | B48: 904 | C48: 113 01995 05 0000 130 | D48: =D49+D50+D51+D52 -> 324 | E48: =E49+E50+E51+E52 -> 324 | F48: 0
A49: Прочие доходы от оказания платных услуг (работ) получателями средств бюджетов муниципальных районов (МКУК МКЦ АЧРМО) | B49: 000 | C49: 113 01995 05 0000 130 | D49: 55 | E49: 55 | F49: 0
A50: Прочие доходы от оказания платных услуг (работ) получателями средств бюджетов муниципальных районов (МКУК РИК МУЗЕЙ) | B50: 000 | C50: 113 01995 05 0000 130 | D50: 21 | E50: 21 | F50: 0
A51: Прочие доходы от оказания платных услуг (работ) получателями средств бюджетов муниципальных районов (МКУК МБЧР) | B51: 000 | C51: 113 01995 05 0000 130 | D51: 26 | E51: 26 | F51: 0
A52: Прочие доходы от оказания платных услуг (работ) получателями средств бюджетов муниципальных районов (МКОУ ДОД ДШИ) | B52: 000 | C52: 113 01995 05 0000 130 | D52: 222 | E52: 222 | F52: 0
A53: ДОХОДЫ ОТ ПРОДАЖИ МАТЕРИАЛЬНЫХ И НЕМАТЕРИАЛЬНЫХ АКТИВОВ | B53: 913 | C53: 1 14 00000 00 0000 000 | D53: =D54+D56 -> 4900 | E53: =E54+E56 -> 4900 | F53: 0
A54: Доходы от реализации имущества, находящегося в государственной и муниципальной собственности (за исключением имущества автономных учреждений, а также имущества государственных и муниципальных унитарных предприятий, в том числе казенных) | B54: 913 | C54: 1 14 02000 00 0000 000 | D54: =D55 -> 2600 | E54: =E55 -> 2600 | F54: 0
A55: Доходы от реализации иного имущества, находящегося в собственности муниципальных районов (за исключением имущества муниципальных автономных учреждений, а также имущества муниципальных унитарных предприятий, в том числе казенных), в части реализации основных средств по указанному имуществу | B55: 913 | C55: 1 14 02053 05 0000 410 | D55: 2600 | E55: 2600 | F55: 0
A56: Доходы от продажи земельных участков, находящихся в государственной и муниципальной собственности (за исключением земельных участков автономных учреждений) | B56: 913 | C56: 1 14 06000 00 0000 430 | D56: =D57 -> 2300 | E56: =E57 -> 2300 | F56: 0
A57: Доходы от продажи земельных участков, государственная собственность на которые не разграничена и которые расположены в границах поселений | B57: 913 | C57: 1 14 06013 10 0000 430 | D57: 2300 | E57: 2300 | F57: 0
A58: ШТРАФЫ, САНКЦИИ, ВОЗМЕЩЕНИЕ УЩЕРБА | B58: 000 | C58: 1 16 00000 00 0000 000 | D58: =D59+D63+D64+D69+D73+D72+D62+D68 -> 514.2 | E58: =E59+E63+E64+E69+E73+E72+E62+E68 -> 533.4 | F58: 19.2
A59: Денежные взыскания (штрафы) за нарушение законодательства о налогах и сборах | B59: 182 | C59: 1 16 03000 01 0000 140 | D59: =D60+D61 -> 39 | E59: =E60+E61 -> 40.6 | F59: 1.6
A60: Денежные взыскания (штрафы) за нарушение законодательства о налогах и сборах, предусмотренные статьями 116, 118, пунктом 2 статьи 119, статьей 1191, пунктами 1 и 2 статьи 120, статьями 125, 126, 128, 129, 1291, статьями 1294, 132, 133, 134, 135, 1351 и 1352 Налогового кодекса Российской Федерации, а также штрафы, взыскание которых осуществляется на основании ранее действовавшей статьи 117 Налогового кодекса Российской Федерации | B60: 182 | C60: 1 16 03010 01 0000 140 | D60: 39 | E60: 39 | F60: 0
A61: Денежные взыскания (штрафы) за административные правонарушения в области налогов и сборов, предусмотренные Кодексом Российской Федерации об административных правонарушениях | B61: 182 | C61: 1 16 03030 01 0000 140 | D61: 0 | E61: 1.6 | F61: 1.6
A62: Денежные взыскания (штрафы) за нарушение законодательства о применении контрольно-кассовой техники при осуществлении наличных денежных расчетов и (или) расчетов с использованием платежных карт | B62: 182 | C62: 1 16 06000 01 0000 140 | D62: 1.2 | E62: 1.2 | F62: 0
A63: Денежные взыскания (штрафы) за административные правонарушения в области государственного регулирования производства и оборота этилового спирта, алкогольной и спиртосодержащей продукции | B63: 000 | C63: 1 16 08000 01 0000 140 | D63: 3.2 | E63: 3.2 | F63: 0
A64: Денежные взыскания (штрафы) за нарушение законодательства о недрах, об особо охраняемых природных территориях, об охране и использовании животного мира, об экологической экспертизе, в области охраны окружающей среды, земельного законодательства | B64: 000 | C64: 1 16 25000 01 0000 140 | D64: =D66+D67+D65 -> 37 | E64: =E66+E67+E65 -> 47 | F64: 10
A65: Денежные взыскания (штрафы) за нарушение законодательства о недрах | B65: 000 | C65: 1 16 25010 01 6000 140 | D65: 1 | E65: 1 | F65: 0
A66: Денежные взыскания (штрафы) за нарушение законодательства об охране и использовании животного мира | B66: 815 | C66: 1 16 25030 01 6000 140 | D66: 35 | E66: 45 | F66: 10
A67: Денежные взыскания (штрафы) за нарушение земельного законодательства | B67: 081 | C67: 1 16 25060 01 6000 140 | D67: 1 | E67: 1 | F67: 0
A68: Денежные взыскания (штрафы) за нарушение законодательства в области обеспечения санитарно-эпидемиологического благополучия человека и законодательства в сфере защиты прав потребителей | B68: 141 | C68: 1 16 28000 01 6000 140 | D68: 0.5 | E68: 0.5 | F68: 0
A69: Денежные взыскания (штрафы) за правонарушения в области дорожного движения | B69: 000 | C69: 1 16 30000 01 0000 140 | D69: =D70+D71 -> 31.7 | E69: =E70+E71 -> 31.7 | F69: 0
A70: Денежные взыскания (штрафы) за административные правонарушения в области дорожного движения | B70: 188 | C70: 1 16 30014 01 0000 140 | D70: 2.7 | E70: 2.7 | F70: 0
A71: Прочие денежные взыскания (штрафы) за административные правонарушения в области дорожного движения | B71: 188 | C71: 1 16 30030 01 0000 140 | D71: 29 | E71: 29 | F71: 0
A72: Денежные взыскания (штрафы) за нарушение законодательства РФ об административных правонарушениях, предусмотренные статьей 20.25 Кодекса РФ об административных правонарушений | B72: 188 | C72: 1 16 43000 01 0000 140 | D72: 2.2 | E72: 9.8 | F72: 7.6
A73: Прочие поступления от денежных взысканий (штрафов) и иных сумм в возмещение ущерба, зачисляемые в бюджеты муниципальных районов | B73: 000 | C73: 1 16 90050 05 0000 140 | D73: =D74+D75+D76+D77+D78+D79+D81+D82+D80 -> 399.4 | E73: =E74+E75+E76+E77+E78+E79+E81+E82+E80 -> 399.4 | F73: 0
A74: Прочие поступления от денежных взысканий (штрафов) и иных сумм в возмещение ущерба, зачисляемые в бюджеты муниципальных районов | B74: 081 | C74: 1 16 90050 05 0000 140 | D74: 15 | E74: 14 | F74: -1
A75: Прочие поступления от денежных взысканий (штрафов) и иных сумм в возмещение ущерба, зачисляемые в бюджеты муниципальных районов | B75: 177 | C75: 1 16 90050 05 0000 140 | D75: 38 | E75: 38 | F75: 0
A76: Прочие поступления от денежных взысканий (штрафов) и иных сумм в возмещение ущерба, зачисляемые в бюджеты муниципальных районов | B76: 188 | C76: 1 16 90050 05 0000 140 | D76: 59 | E76: 59 | F76: 0
A77: Прочие поступления от денежных взысканий (штрафов) и иных сумм в возмещение ущерба, зачисляемые в бюджеты муниципальных районов | B77: 192 | C77: 1 16 90050 05 0000 140 | D77: 100.4 | E77: 100.4 | F77: 0
A78: Прочие поступления от денежных взысканий (штрафов) и иных сумм в возмещение ущерба, зачисляемые в бюджеты муниципальных районов | B78: 415 | C78: 1 16 90050 05 0000 140 | D78: 60 | E78: 60 | F78: =E78-D78 -> 0
A79: Прочие поступления от денежных взысканий (штрафов) и иных сумм в возмещение ущерба, зачисляемые в бюджеты муниципальных районов | B79: 809 | C79: 1 16 90050 05 0000 140 | D79: 60 | E79: 60 | F79: 0
A80: Прочие поступления от денежных взысканий (штрафов) и иных сумм в возмещение ущерба, зачисляемые в бюджеты муниципальных районов | B80: 815 | C80: 1 16 90050 05 0000 140 | D80: 20 | E80: 21 | F80: 1
A81: Прочие поступления от денежных взысканий (штрафов) и иных сумм в возмещение ущерба, зачисляемые в бюджеты муниципальных районов | B81: 917 | C81: 1 16 90050 05 0000 140 | D81: 12 | E81: 12 | F81: 0
A82: Прочие поступления от денежных взысканий (штрафов) и иных сумм в возмещение ущерба, зачисляемые в бюджеты муниципальных районов | B82: 918 | C82: 1 16 90050 05 0000 140 | D82: 35 | E82: 35 | F82: 0
A83: ПРОЧИЕ НЕНАЛОГОВЫЕ ДОХОДЫ | B83: 000 | C83: 1 17 00000 00 0000 000 | D83: =D84+D85 -> 606.4 | E83: =E84+E85 -> 606.4 | F83: 0
A84: Невыясненные поступления | B84: 000 | C84: 1 17 01000 00 0000 180 | D84: 0 | E84: 0 | F84: 0
A85: Прочие неналоговые доходы | B85: 000 | C85: 1 17 05000 00 0000 180 | D85: =D86+D87+D88 -> 606.4 | E85: =E86+E87+E88 -> 606.4 | F85: 0
A86: Прочие неналоговые доходы | B86: 907 | C86: 1 17 05000 00 0000 180 | D86: 3 | E86: 3 | F86: 0
A87: Прочие неналоговые доходы | B87: 917 | C87: 1 17 05000 00 0000 180 | D87: 600 | E87: 600 | F87: 0
A88: Прочие неналоговые доходы | B88: 904 | C88: 1 17 05000 00 0000 180 | D88: 3.4 | E88: 3.4 | F88: 0
A89: БЕЗВОЗМЕЗДНЫЕ ПОСТУПЛЕНИЯ | B89: 000 | C89: 2 00 00000 00 0000 000 | D89: =D90+D139+D143+D141 -> 510007.5012 | E89: =E90+E139+E143+E141 -> 519179.6151 | F89: 9172.114
A90: БЕЗВОЗМЕЗДНЫЕ ПОСТУПЛЕНИЯ ИЗ ДРУГИХ БЮДЖЕТОВ БЮДЖЕТНОЙ СИСТЕМЫ РФ | B90: 000 | C90: 2 02 00000 00 0000 151 | D90: =D91+D94+D110+D126 -> 509195.4251 | E90: =E91+E94+E110+E126 -> 517321.4251 | F90: 8126
A91: ДОТАЦИИ БЮДЖЕТАМ МУНИЦИПАЛЬНЫХ ОБРАЗОВАНИЙ | B91: 000 | C91: 2 02 01000 00 0000 151 | D91: =D92+D93 -> 125656 | E91: =E92+E93 -> 125656 | F91: 0
A92: Дотации муниципальным районам на выравнивание уровня бюджетной обеспеченности | B92: 910 | C92: 2 02 01001 05 0000 151 | D92: 124989 | E92: 124989 | F92: 0
A93: Дотации муниципальным районам на поддержку мер по обеспечению сбалансированности бюджетов | B93: 910 | C93: 2 02 01003 05 0000 151 | D93: 667 | E93: 667 | F93: 0
A94: СУБСИДИИ БЮДЖЕТАМ МУНИЦИПАЛЬНЫХ ОБРАЗОВАНИЙ | B94: 000 | C94: 2 02 02000 00 0000 151 | D94: =D95+D97+D98+D99+D96 -> 72438.7 | E94: =E95+E97+E98+E99+E96 -> 80564.7 | F94: 8126
A95: Федеральная программа "Молодым семьям - доступное жилье на 2005-2019 годы" | B95: 917 | C95: 2 02 02051 05 0000 151 | D95: 0 | F95: 0
A96: Субсидии бюджетам муниципальных районов на модернизацию региональных систем общего образования. Модернизация региональных систем общего образования в части развития школьной инфраструктуры (текущий ремонт с целью обеспечения выполнения требований к санитарно-бытовым условиям и охране здоровья обучающихся, а также с целью подготовки помещений для установки оборудования) и (или) проведение капитального ремонта зданий общеобразовательных учреждений в Иркутской области | B96: 907 | C96: 2 02 02145 05 0000 151 | D96: 1600 | E96: 1600 | F96: 0
A97: Долгосрочная целевая программа "Энергосбережение и повышение энергетической эффективности на территории Иркутской области на 2011-2015 годы и на период до 2020 года | B97: 910 | C97: 2 02 02150 05 0000 151 | D97: 761 | E97: 761 | F97: 0
A98: Областная государственная социальная программа "Молодым семьям- доступное жилье" на 2005-2019 годы" | B98: 917 | C98: 2 02 02008 05 0000 151 | D98: 230.4 | E98: 230.4 | F98: 0
A99: Прочие субсидии | B99: 000 | C99: 2 02 02999 05 0000 151 | D99: =D100+D101+D104+D106+D108+D107+D102+D103+D109+D105 -> 69847.3 | E99: =E100+E101+E104+E106+E108+E107+E102+E103+E109+E105 -> 77973.3 | F99: 8126
A100: Субсидии на выплату заработной платы с начислениями на нее педагогическим работникам муниципальных дошкольных образовательных учреждений | B100: 907 | C100: 2 02 02999 05 0000 151 | D100: 32175.3 | E100: 32175.3 | F100: 0
A101: Субсидия за счет средств долгосрочной целевой программы Иркутской области "Повышение эффективности бюджетных расходов Иркутской области на 2011-2013 годы" | B101: 910 | C101: 2 02 02999 05 0000 151 | D101: 16827 | E101: 24453 | F101: 7626
A102: ДЦП "Развитие автомобильных дорог общего пользования регионального или межмуниципального значения и местного значения в Иркутской области на 2011-2015 годы " | B102: 917 | C102: 2 02 02999 05 0000 151 | D102: 3829 | E102: 3829 | F102: 0
A103: Реализация мероприятий перечня проектов народных инициатив | B103: 910 | C103: 2 02 02999 05 0000 151 | D103: 6963.9 | E103: 6963.9 | F103: 0
A104: Долгосрочная целевая программа Иркутской области «Организация и обеспечение отдыха и оздоровления детей в Иркутской области на 2012-2014 годы» | B104: 907 | C104: 2 02 02999 05 0000 151 | D104: 2352.1 | E104: 2352.1 | F104: 0
A105: Долгосрочная целевая программа Иркутской области «Публичные центры правовой, деловой и социально-значимой информации центральных районных библиотек Иркутской области» (2013-2014 годы) | B105: 904 | C105: 2 02 02999 05 0000 151 | D105: 0 | E105: 500 | F105: 500
A106: Подпрограмма "Подготовка объектов коммунальной инфраструктуры Иркутской области к отопительному сезону в 2011-2013 годах" | B106: 907 | C106: 2 02 02999 05 0000 151 | D106: 1700 | E106: 1700 | F106: 0
A107: Долгосрочная целевая программа «Поддержка и развитие малого и среднего предпринимательства в Иркутской области» на 2011-2012 годы (за счет федерального бюджета) | B107: 917 | C107: 2 02 02999 05 0000 151 | D107: 0 | F107: 0
A108: Долгосрочная целевая программа «Защита окружающией среды в Иркутской области на 2011-2015 годы" | B108: 918 | C108: 2 02 02999 05 0000 151 | D108: 5000 | E108: 5000 | F108: 0
A109: Долгосрочная целевая программа Иркутской области "100 модельных домов культуры Приангарью" на 2011-2014 годы | B109: 904 | C109: 2 02 02999 05 0000 151 | D109: 1000 | E109: 1000 | F109: 0
A110: СУБВЕНЦИИ БЮДЖЕТАМ МУНИЦИПАЛЬНЫХ ОБРАЗОВАНИЙ | B110: 000 | C110: 2 02 03000 00 0000 151 | D110: =D112+D113+D114+D116+D117+D118+D119+D120+D121+D122+D123+D124 -> 304096.5 | E110: =E112+E113+E114+E116+E117+E118+E119+E120+E121+E122+E123+E124 -> 304096.5 | F110: 0
A111: Субвенции бюджетам муниципальных районов на осуществление полномочий по подготовке проведения статистических переписей | B111: 917 | C111: 2 02 03002 05 0000 151 | D111: 0 | F111: 0
A112: Субвенции бюджетам муниципальных районов на составление списков кандидатов в присяжные заседатели федеральных судов общей юрисдикции в Российской Федерации | B112: 917 | C112: 2 02 03007 05 0000 151 | D112: 0 | F112: 0
A113: Субвенции бюджетам на ежемесячное денежное вознаграждение за классное руководство | B113: 907 | C113: 2 02 03021 05 0000 151 | D113: 5000.1 | E113: 5000.1 | F113: 0
A114: Субвенции бюджетам муниципальных образований на предоставление гражданам субсидий на оплату жилого помещения и коммунальных услуг | B114: 918 | C114: 2 02 03022 05 0000 151 | D114: 7589.7 | E114: 7589.7 | F114: 0
A115: Субвенции местным бюджетам на выполнение переданных полномочий субъектов РФ | B115: 000 | C115: 2 02 03024 05 0000 151 | D115: =D116+D117+D118+D119+D120+D121 -> 10302.6 | E115: =E116+E117+E118+E119+E120+E121 -> 10302.6 | F115: 0
A116: Хранение, комплектование, учет и использование архивных документов, относящихся к областной государственной собственности | B116: 917 | C116: 2 02 03024 05 0000 151 | D116: 1174 | E116: 1174 | F116: 0
A117: Государственные полномочия в области охраны труда | B117: 917 | C117: 2 02 03024 05 0000 151 | D117: 604.1 | E117: 604.1 | F117: 0
A118: Определение персонального состава и обеспечение деятельности районных (городских), районных в городах комиссий по делам несовершеннолетних и защите их прав | B118: 917 | C118: 2 02 03024 05 0000 151 | D118: 1155.8 | E118: 1155.8 | F118: 0
A119: Лицензирование розничной продажи алкогольной продукции | B119: 917 | C119: 2 02 03024 05 0000 151 | D119: 402.8 | E119: 402.8 | F119: 0
A120: Определение персонального состава и обеспечение деятельности административных комиссий | B120: 917 | C120: 2 02 03024 05 0000 151 | D120: 604.1 | E120: 604.1 | F120: 0
A121: Предоставление мер социальной поддержки многодетным и малоимущим семьям | B121: 907 | C121: 2 02 03024 05 0000 151 | D121: 6361.8 | E121: 6361.8 | F121: 0
A122: Субвенции бюджетам муниципальных районов на обеспечение жилыми помещениями детей-сирот, детей, оставшихся без попечения родителей, а также детей, находящихся под опекой (попечительством), не имеющих закрепленного жилого помещения | B122: 913 | C122: 2 02 03026 05 0000 151 | D122: 0 | F122: 0
A123: Субвенции бюджетам муниципальных районов на обеспечение жилыми помещениями детей-сирот, детей, оставшихся без попечения родителей, а также детей, находящихся под опекой (попечительством), не имеющих закрепленного жилого помещения (федер.) | B123: 913 | C123: 2 02 03026 05 0000 151 | D123: 0 | F123: 0
A124: Прочие субвенции | B124: 000 | C124: 2 02 03999 05 0000 151 | D124: =D125 -> 281204.1 | E124: =E125 -> 281204.1 | F124: 0
A125: Субвенция на обеспечение государственных гарантий прав граждан на получение общедоступного и бесплатного дошкольного, начального общего, основного общего, среднего (полного) общего образования, а также дополнительного образования в общеобразовательных учреждениях | B125: 907 | C125: 2 02 03999 05 0000 151 | D125: 281204.1 | E125: 281204.1 | F125: 0
A126: ИНЫЕ МЕЖБЮДЖЕТНЫЕ ТРАНСФЕРТЫ | B126: 000 | C126: 2 02 04000 00 0000 151 | D126: =D127+D132+D133+D137 -> 7004.22507 | E126: =E127+E132+E133+E137 -> 7004.22507 | F126: 0
A127: Межбюджетные трансферты, передаваемые бюджетам муниципальных районов из бюджетов поселений на осуществление части полномочий по решению вопросов местного значения в соответствии с заключенными соглашениями | B127: 000 | C127: 2 02 04014 05 0000 151 | D127: =D128+D129+D130+D131 -> 1785.92507 | E127: =E128+E129+E130+E131 -> 1785.92507 | F127: 0
A128: Межбюджетные трансферты, передаваемые бюджетам муниципальных районов из бюджетов поселений на осуществление части полномочий по решению вопросов местного значения в соответствии с заключенными соглашениями (ФУ) | B128: 910 | C128: 2 02 04014 05 0000 151 | D128: 921.19104 | E128: 921.19104 | F128: 0
A129: Межбюджетные трансферты, передаваемые бюджетам муниципальных районов из бюджетов поселений на осуществление части полномочий по решению вопросов местного значения в соответствии с заключенными соглашениями (ГО и ЧС) | B129: 917 | C129: 2 02 04014 05 0000 151 | D129: 460.59552 | E129: 460.59552 | F129: 0
A130: Межбюджетные трансферты, передаваемые бюджетам муниципальных районов из бюджетов поселений на осуществление части полномочий по решению вопросов местного значения в соответствии с заключенными соглашениями (генплан) | B130: 918 | C130: 2 02 04014 05 0000 151 | D130: 30.2 | E130: 30.2 | F130: 0
A131: Межбюджетные трансферты, передаваемые бюджетам муниципальных районов из бюджетов поселений на осуществление части полномочий по решению вопросов местного значения в соответствии с заключенными соглашениями (КСП ) | B131: 923 | C131: 2 02 04014 05 0000 151 | D131: 373.93851 | E131: 373.93851 | F131: 0
A132: Межбюджетные трансферты, передаваемые бюджетам муниципальных районов на комплектование книжных фондов библиотек муниципальных образований (областной бюджет) | B132: 904 | C132: 2 02 04025 05 0000 151 | D132: 162.7 | E132: 162.7 | F132: 0
A133: Межбюджетные трансферты, передаваемые бюджетам муниципальных районов на комплектование книжных фондов библиотек муниципальных образований (федеральный бюджет) | B133: 904 | C133: 2 02 04025 05 0000 151 | D133: 303.6 | E133: 303.6 | F133: 0
A134: Прочие межбюджетные трансферты, передаваемые бюджетам муниципальных районов | B134: 000 | C134: 2 02 04999 05 0000 151 | F134: 0
A135: Дотации на возмещ.расходов местных бюджетов в связи с предоставлением льгот по оплате жилого помещения и коммунальных услуг педагогическим работникам, проживающим в сельской местности, рабочих поселках (пгт) и работающим в муниц.образоват.учреждениях | B135: 907 | C135: 2 02 04999 05 0000 151 | F135: 0
A136: Межбюджетные трансферты в целях финансовой поддержки муниципальных образований Иркутской области, осуществляющих эффективное управление бюджетными средствами | B136: 910 | C136: 2 02 04999 05 0000 151 | F136: 0
A137: ПРОЧИЕ МЕЖБЮДЖЕТНЫЕ ТРАНСФЕРТЫ | B137: 000 | C137: 2 02 04999 00 0000 151 | D137: =D138 -> 4752 | E137: =E138 -> 4752 | F137: 0
A138: Исполнение судебных актов, вступивших в силу до 1 января 2013 года, по обеспечению жилыми помещениями детей-сирот и детей, оставшихся без попечения родителей, лиц из числа детей-сирот и детей, оставшихся без попечения родителей, не имеющих закрепленного жилого помещения | B138: 913 | C138: 2 02 04999 05 0000 151 | D138: 4752 | E138: 4752 | F138: 0
A139: ПРОЧИЕ БЕЗВОЗМЕЗДНЫЕ ПОСТУПЛЕНИЯ | B139: 000 | C139: 2 07 00000 00 0000 180 | D139: =D140 -> 1014 | E139: =E140 -> 2060.114 | F139: 1046.114
A140: Прочие безвозмездные поступления в бюджеты муниципальных районов | B140: 000 | C140: 2 07 05030 05 0000 180 | D140: =14+1000 -> 1014 | E140: =1014+1046.114 -> 2060.114 | F140: 1046.114
A141: ДОХОДЫ БЮДЖЕТОВ БЮДЖЕТНОЙ СИСТЕМЫ РОССИЙСКОЙ ФЕДЕРАЦИИ ОТ ВОЗВРАТА БЮДЖЕТАМИ БЮДЖЕТНОЙ СИСТЕМЫ РОССИЙСКОЙ ФЕДЕРАЦИИ И ОРГАНИЗАЦИЯМИ ОСТАТКОВ СУБСИДИЙ, СУБВЕНЦИЙ И ИНЫХ МЕЖБЮДЖЕТНЫХ ТРАНСФЕРТОВ, ИМЕЮЩИХ ЦЕЛЕВОЕ НАЗНАЧЕНИЕ, ПРОШЛЫХ ЛЕТ | B141: 000 | C141: 2 18 00000 00 0000 000 | D141: =D142 -> 3.64 | E141: =E142 -> 3.64 | F141: 0
A142: Доходы бюджетов муниципальных районов от возврата бюджетными учреждениями остатков субсидий прошлых лет | B142: 917 | C142: 2 18 05010 05 0000 180 | D142: 3.64 | E142: 3.64 | F142: 0
A143: ВОЗВРАТ ОСТАТКОВ СУБСИДИЙ, СУБВЕНЦИЙ И ИНЫХ МЕЖБЮДЖЕТНЫХ ТРАНСФЕРТОВ, ИМЕЮЩИХ ЦЕЛЕВОЕ НАЗНАЧЕНИЕ, ПРОШЛЫХ ЛЕТ | B143: 000 | C143: 2 19 00000 00 0000 000 | D143: =D144 -> -205.56392 | E143: =E144 -> -205.56392 | F143: =E143-D143 -> 0
A144: Возврат остатков субсидий и субвенций из бюджетов муниципальных районов | B144: 910 | C144: 2 19 05000 05 0000 180 | D144: =-201.92392-3.64 -> -205.56392 | E144: =-201.92392-3.64 -> -205.56392 | F144: =E144-D144 -> 0
A145: ИТОГО ДОХОДОВ | B145: 000 | C145: 8 50 00000 00 0000 000 | D145: =D89+D11 -> 597021.6312 | E145: =E89+E11 -> 607003.7451 | F145: =E145-D145 -> 9982.114
A147: И.о. начальника финансового управления | D147: Ю.Н. Гайдук | E147: С.М. Татина

Sheet прил3 (админ)
A8: Перечень главных администраторов доходов бюджета Черемховского районного муниципального образования - органов местного самоуправления Черемховского районного муниципального образования
A10: Код бюджетной классификации РФ | C10: Наименование главного администратора доходов районного бюджета
A11: главного администратора доходов | B11: доходов районного бюджета
A12: 904 | C12: Отдел по культуре и библиотечному обслуживанию администрации Черемховского районного муниципального образования
A13: 904 | B13: 1 13 01995 05 0000 130 | C13: Прочие доходы от оказания платных услуг получателями средств бюджетов муниципальных районов и компенсации затрат бюджетов муниципальных районов
A14: 904 | B14: 1 17 01050 05 0000 180 | C14: Невыясненные поступления, зачисляемые в бюджеты муниципальных районов
A15: 904 | B15: 1 17 05050 05 0000 180 | C15: Прочие неналоговые доходы бюджетов муниципальных районов
A16: 904 | B16: 2 02 01999 05 0000 151 | C16: Прочие дотации бюджетам муниципальных районов
A17: 904 | B17: 2 02 02999 05 0000 151 | C17: Прочие субсидии бюджетам муниципальных районов
A18: 904 | B18: 2 02 03999 05 0000 151 | C18: Прочие субвенции бюджетам муниципальных районов
A19: 904 | B19: 2 02 04025 05 0000 151 | C19: Межбюджетные трансферты, передаваемые бюджетам муниципальных районов на комплектование книжных фондов библиотек муниципальных образований
A20: 904 | B20: 2 02 04999 05 0000 151 | C20: Прочие межбюджетные трансферты, передаваемые бюджетам муниципальных районов
A21: 904 | B21: 2 07 05030 05 0000 180 | C21: Прочие безвозмездные поступления в бюджеты муниципальных районов
A22: 907 | C22: Отдел образования администрации Черемховского районного муниципального образования
A23: 907 | B23: 1 13 01995 05 0000 130 | C23: Прочие доходы от оказания платных услуг получателями средств бюджетов муниципальных районов и компенсации затрат бюджетов муниципальных районов
A24: 907 | B24: 1 17 01050 05 0000 180 | C24: Невыясненные поступления, зачисляемые в бюджеты муниципальных районов
A25: 907 | B25: 1 17 05050 05 0000 180 | C25: Прочие неналоговые доходы бюджетов муниципальных районов
A26: 907 | B26: 2 02 01999 05 0000 151 | C26: Прочие дотации бюджетам муниципальных районов
A27: 907 | B27: 2 02 02022 05 0000 151 | C27: Субсидии бюджетам муниципальных образований на внедрение инновационных образовательных программ
A28: 907 | B28: 2 02 02145 05 0000 151 | C28: Субсидии бюджетам муниципальных районов на модернизацию региональных систем общего образования
A29: 907 | B29: 2 02 02999 05 0000 151 | C29: Прочие субсидии бюджетам муниципальных районов
A30: 907 | B30: 2 02 03021 05 0000 151 | C30: Субвенции бюджетам муниципальных районов на ежемесячное денежное вознаграждение за классное руководство
A31: 907 | B31: 2 02 03024 05 0000 151 | C31: Субвенции бюджетам муниципальных районов на выполнение передаваемых полномочий субъектов РФ
A32: 907 | B32: 2 02 03999 05 0000 151 | C32: Прочие субвенции бюджетам муниципальных районов
A33: 907 | B33: 2 02 04999 05 0000 151 | C33: Прочие межбюджетные трансферты, передаваемые бюджетам муниципальных районов
A34: 907 | B34: 2 07 05030 05 0000 180 | C34: Прочие безвозмездные поступления в бюджеты муниципальных районов
A35: 910 | C35: Финансовое управление Администрации Черемховского районного муниципального образования
A36: 910 | B36: 1 17 01050 05 0000 180 | C36: Невыясненные поступления, зачисляемые в бюджеты муниципальных районов
A37: 910 | B37: 1 17 05050 05 0000 180 | C37: Прочие неналоговые доходы бюджетов муниципальных районов
A38: 910 | B38: 2 02 01001 05 0000 151 | C38: Дотации бюджетам муниципальных районов на выравнивание уровня бюджетной обеспеченности
A39: 910 | B39: 2 02 01003 05 0000 151 | C39: Дотации бюджетам муниципальных районов на поддержку мер по обеспечению сбалансированности бюджетов
A40: 910 | B40: 2 02 01999 05 0000 151 | C40: Прочие дотации бюджетам муниципальных районов
A41: 910 | B41: 2 02 02008 05 0000 151 | C41: Субсидии бюджетам муниципальных районов на обеспечение жильем молодых семей
A42: 910 | B42: 2 02 02999 05 0000 151 | C42: Прочие субсидии бюджетам муниципальных районов
A43: 910 | B43: 2 02 03999 05 0000 151 | C43: Прочие субвенции бюджетам муниципальных районов
A44: 910 | B44: 2 02 04014 05 0000 151 | C44: Межбюджетные трансферты, передаваемые бюджетам муниципальных районов из бюджетов поселений на осуществление части полномочий по решению вопросов местного значения в соответствии с заключенными соглашениями
A45: 910 | B45: 2 02 04999 05 0000 151 | C45: Прочие межбюджетные трансферты, передаваемые бюджетам муниципальных районов
A46: 910 | B46: 2 07 05030 05 0000 180 | C46: Прочие безвозмездные поступления в бюджеты муниципальных районов
A47: 910 | B47: 2 08 05000 05 0000 180 | C47: Перечисления из бюджетов муниципальных районов (в бюджеты муниципальных районов) для осуществления возврата (зачета) излишне уплаченных или излишне взысканных сумм налогов, сборов и иных платежей, а также сумм процентов за несвоевременное осуществление такого возврата и процентов, начисленных на излишне взысканные суммы
A48: 910 | B48: 2 19 05000 05 0000 151 | C48: Возврат остатков субсидий и субвенций из бюджетов муниципальных районов
A49: 913 | C49: Комитет по управлению муниципальным имуществом администрации Черемховского районного муниципального образования
A50: 913 | B50: 1 11 05013 10 0000 120 | C50: Доходы, получаемые в виде арендной платы за земельные участки, государственная собственность на которые не разграничена и которые расположены в границах поселений, а также средства от продажи права на заключение договоров аренды указанных земельных участков
A51: 913 | B51: 1 11 05035 05 0000 120 | C51: Доходы от сдачи в аренду имущества, находящегося в оперативном управлении органов управления муниципальных районов и созданных ими учреждений (за исключением имущества муниципальных автономных учреждений)
A52: 913 | B52: 1 14 02052 05 0000 410 | C52: Доходы от реализации имущества, находящегося в оперативном управлении учреждений, находящихся в ведении органов управления муниципальных районов (за исключением имущества муниципальных автономных учреждений), в части реализации основных средств по указанному имуществу
A53: 913 | B53: 1 14 02052 05 0000 440 | C53: Доходы от реализации имущества, находящегося в оперативном управлении учреждений, находящихся в ведении органов управления муниципальных районов (за исключением имущества муниципальных автономных учреждений), в части реализации материальных запасов по указанному имуществу
A54: 913 | B54: 1 14 02053 05 0000 410 | C54: Доходы от реализации иного имущества, находящегося в собственности муниципальных районов (за исключением имущества муниципальных автономных учреждений, а также имущества муниципальных унитарных предприятий, в том числе казенных), в части реализации основных средств по указанному имуществу
A55: 913 | B55: 1 14 02053 05 0000 440 | C55: Доходы от реализации иного имущества, находящегося в собственности муниципальных районов (за исключением имущества муниципальных автономных учреждений, а также имущества муниципальных унитарных предприятий, в том числе казенных), в части реализации материальных запасов по указанному имуществу
A56: 913 | B56: 1 14 06013 10 0000 430 | C56: Доходы от продажи земельных участков, государственная собственность на которые не разграничена и которые расположены в границах поселений
A57: 913 | B57: 1 14 06025 05 0000 430 | C57: Доходы от продажи земельных участков, находящихся в собственности муниципальных районов (за исключением земельных участков муниципальных автономных учреждений)
A58: 913 | B58: 1 17 01050 05 0000 180 | C58: Невыясненные поступления, зачисляемые в бюджеты муниципальных районов
A59: 913 | B59: 1 17 05050 05 0000 180 | C59: Прочие неналоговые доходы бюджетов муниципальных районов
A60: 913 | B60: 2 02 03026 05 0000 151 | C60: Субвенции бюджетам муниципальных районов на обеспечение жилыми помещениями детей-сирот, детей, оставшихся без попечения родителей, а также детей, находящихся под опекой (попечительством), не имеющих закрепленного жилого помещения
A61: 913 | B61: 2 02 04999 05 0000 151 | C61: Прочие межбюджетные трансферты, передаваемые бюджетам муниципальных районов
A62: 917 | C62: Администрация Черемховского районного муниципального образования
A63: 917 | B63: 1 08 07084 01 1000 110 | C63: Государственная пошлина за совершение действий, связанных с лицензированием, с проведением аттестации в случаях, если такая аттестация предусмотрена законодательством Российской Федерации, зачисляемая в бюджеты муниципальных районов
A64: 917 | B64: 1 08 07084 01 4000 110 | C64: Государственная пошлина за совершение действий, связанных с лицензированием, с проведением аттестации в случаях, если такая аттестация предусмотрена законодательством Российской Федерации, зачисляемая в бюджеты муниципальных районов
A65: 917 | B65: 1 16 90050 05 0000 140 | C65: Прочие поступления от денежных взысканий (штрафов) и иных сумм в возмещение ущерба, зачисляемые в бюджеты муниципальных районов
A66: 917 | B66: 1 17 01050 05 0000 180 | C66: Невыясненные поступления, зачисляемые в бюджеты муниципальных районов
A67: 917 | B67: 1 17 05050 05 0000 180 | C67: Прочие неналоговые доходы бюджетов муниципальных районов
A68: 917 | B68: 2 02 01999 05 0000 151 | C68: Прочие дотации бюджетам муниципальных районов
A69: 917 | B69: 2 02 02008 05 0000 151 | C69: Субсидии бюджетам муниципальных районов на обеспечение жильем молодых семей
A70: 917 | B70: 2 02 02105 05 0000 151 | C70: Субсидии бюджетам муниципальных районов на проведение противоаварийных мероприятий в зданиях государственных и муниципальных общеобразовательных учреждений
A71: 917 | B71: 2 02 02999 05 0000 151 | C71: Прочие субсидии бюджетам муниципальных районов
A72: 917 | B72: 2 02 03002 05 0000 151 | C72: Субвенции бюджетам муниципальных районов на осуществление полномочий по подготовке проведения статистических переписей
A73: 917 | B73: 2 02 03007 05 0000 151 | C73: Субвенции бюджетам муниципальных районов на составление списков кандидатов в присяжные заседатели федеральных судов общей юрисдикции в Российской Федерации
A74: 917 | B74: 2 02 03024 05 0000 151 | C74: Субвенции бюджетам муниципальных районов на выполнение передаваемых полномочий субъектов РФ
A75: 917 | B75: 2 02 03999 05 0000 151 | C75: Прочие субвенции бюджетам муниципальных районов
A76: 917 | B76: 2 02 04014 05 0000 151 | C76: Межбюджетные трансферты, передаваемые бюджетам муниципальных районов из бюджетов поселений на осуществление части полномочий по решению вопросов местного значения в соответствии с заключенными соглашениями
A77: 917 | B77: 2 02 04999 05 0000 151 | C77: Прочие межбюджетные трансферты, передаваемые бюджетам муниципальных районов
A78: 917 | B78: 2 07 05030 05 0000 180 | C78: Прочие безвозмездные поступления в бюджеты муниципальных районов
A79: 917 | B79: 2 18 05010 05 0000 180 | C79: Доходы бюджетов муниципальных районов от возврата бюджетными учреждениями остатков субсидий прошлых лет
A80: 918 | C80: Управление жилищно-коммунального хозяйства, строительства, транспорта, связи и экологии администрации Черемховского районного муниципального образования
A81: 918 | B81: 1 16 90050 05 0000 140 | C81: Прочие поступления от денежных взысканий (штрафов) и иных сумм в возмещение ущерба, зачисляемые в бюджеты муниципальных районов
A82: 918 | B82: 1 17 01050 05 0000 180 | C82: Невыясненные поступления, зачисляемые в бюджеты муниципальных районов
A83: 918 | B83: 1 17 05050 05 0000 180 | C83: Прочие неналоговые доходы бюджетов муниципальных районов
A84: 918 | B84: 2 02 02999 05 0000 151 | C84: Прочие субсидии бюджетам муниципальных районов
A85: 918 | B85: 2 02 03022 05 0000 151 | C85: Субвенции бюджетам муниципальных образований на предоставление гражданам субсидий на оплату жилого помещения и коммунальных услуг
A86: 918 | B86: 2 02 04014 05 0000 151 | C86: Межбюджетные трансферты, передаваемые бюджетам муниципальных районов из бюджетов поселений на осуществление части полномочий по решению вопросов местного значения в соответствии с заключенными соглашениями
A87: 918 | B87: 2 07 05030 05 0000 180 | C87: Прочие безвозмездные поступления в бюджеты муниципальных районов
A88: 923 | C88: Контрольно-счетная палата Черемховского районного муниципального образования
A89: 923 | B89: 1 17 01050 05 0000 180 | C89: Невыясненные поступления, зачисляемые в бюджеты муниципальных районов
A90: 923 | B90: 1 17 05050 05 0000 180 | C90: Прочие неналоговые доходы бюджетов муниципальных районов
A91: 923 | B91: 2 02 04014 05 0000 151 | C91: Межбюджетные трансферты, передаваемые бюджетам муниципальных районов из бюджетов поселений на осуществление части полномочий по решению вопросов местного значения в соответствии с заключенными соглашениями
A93: И.о. начальника финансового управления | D93: С.М. Татина

Sheet прил4
A16: Распределение бюджетных ассигнований по разделам, подразделам, целевым статьям и видам расходов классификации расходов бюджетов на 2013 год
A19: Наименование показателя | B19: Код | F19: Сумма , тыс. руб.
B20: раздела | C20: подраздела | D20: целевой статьи | E20: вида расходов
A21: 1 | B21: 2 | C21: 3 | D21: 4 | E21: 5 | F21: 6
A22: Обеспечение проведения выборов и референдумов | B22: 1 | C22: 7 | D22: 0 | E22: 0 | F22: 0
A23: Проведение выборов и референдумов | B23: 1 | C23: 7 | D23: 200000 | E23: 0 | F23: 0
A24: Проведение выборов и референдумов | B24: 1 | C24: 7 | D24: 200000 | E24: 0 | F24: 0
A25: Проведение выборов в представительные органы муниципального образования | B25: 1 | C25: 7 | D25: 200002 | E25: 0 | F25: 0
A26: Выполнение функций органами местного самоуправления | B26: 1 | C26: 7 | D26: 200002 | E26: 500 | F26: 0
A27: ОБЩЕГОСУДАРСТВЕННЫЕ ВОПРОСЫ | B27: 1 | C27: 0 | D27: 0 | E27: 0 | F27: 72222.232
A28: Функционирование высшего должностного лица субъекта Российской Федерации и муниципального образования | B28: 1 | C28: 2 | D28: 0 | E28: 0 | F28: 2412
A29: Руководство и управление в сфере установленных функций органов государственной власти субъектов Российской Федерации и органов местного самоуправления | B29: 1 | C29: 2 | D29: 20000 | E29: 0 | F29: 2412
A30: Глава муниципального образования | B30: 1 | C30: 2 | D30: 20300 | E30: 0 | F30: 2412
A31: Выполнение функций органами местного самоуправления | B31: 1 | C31: 2 | D31: 20300 | E31: 500 | F31: 2412
A32: Функционирование законодательных (представительных) органов государственной власти и представительных органов муниципальных образований | B32: 1 | C32: 3 | D32: 0 | E32: 0 | F32: 1350.16
A33: Руководство и управление в сфере установленных функций органов государственной власти субъектов Российской Федерации и органов местного самоуправления | B33: 1 | C33: 3 | D33: 20000 | E33: 0 | F33: 1350.16
A34: Центральный аппарат | B34: 1 | C34: 3 | D34: 20400 | E34: 0 | F34: 401.134
A35: Выполнение функций органами местного самоуправления | B35: 1 | C35: 3 | D35: 20400 | E35: 500 | F35: 401.134
A36: Председатель представительного органа муниципального образования | B36: 1 | C36: 3 | D36: 21100 | E36: 0 | F36: 949.026
A37: Выполнение функций органами местного самоуправления | B37: 1 | C37: 3 | D37: 21100 | E37: 500 | F37: 949.026
A38: Функционирование Правительства Российской Федерации, высших исполнительных органов государственной власти субъектов Российской Федерации, местных администраций | B38: 1 | C38: 4 | D38: 0 | E38: 0 | F38: 26064.189
A39: Руководство и управление в сфере установленных функций органов государственной власти субъектов Российской Федерации и органов местного самоуправления | B39: 1 | C39: 4 | D39: 20000 | E39: 0 | F39: 26003.259
A40: Центральный аппарат | B40: 1 | C40: 4 | D40: 20400 | E40: 0 | F40: 26003.259
A41: Выполнение функций органами местного самоуправления | B41: 1 | C41: 4 | D41: 20400 | E41: 500 | F41: 26003.259
A42: Региональные целевые программы | B42: 1 | C42: 4 | D42: 5220000 | E42: 0 | F42: 42.65
A43: Долгосрочная целевая программа «Энергосбережение и повышение энергетической эффективности на территории Иркутской области на 2011-2015 годы и на период до 2020 года» | B43: 1 | C43: 4 | D43: 5225400 | E43: 0 | F43: 42.65
A44: Выполнение функций органами местного самоуправления | B44: 1 | C44: 4 | D44: 5225400 | E44: 500 | F44: 42.65
A45: Целевые программы муниципальных образований | B45: 1 | C45: 4 | D45: 7950000 | E45: 0 | F45: 18.28
A46: Долгосрочная целевая программа энергосбережения и повышения энергетической эффективности Черемховского районного муниципального образования на 2010-2015 годы | B46: 1 | C46: 4 | D46: 7951100 | E46: 0 | F46: 18.28
A47: Мероприятия по повышению энергетической эффективности | B47: 1 | C47: 4 | D47: 7951100 | E47: 451 | F47: 18.28
A48: Обеспечение деятельности финансовых, налоговых и таможенных органов и органов финансового (финансово-бюджетного) надзора | B48: 1 | C48: 6 | D48: 0 | E48: 0 | F48: 11159.075
A49: Руководство и управление в сфере установленных функций органов государственной власти субъектов Российской Федерации и органов местного самоуправления | B49: 1 | C49: 6 | D49: 20000 | E49: 0 | F49: 8282.185
A50: Центральный аппарат | B50: 1 | C50: 6 | D50: 20400 | E50: 0 | F50: 8282.185
A51: Выполнение функций органами местного самоуправления | B51: 1 | C51: 6 | D51: 20400 | E51: 500 | F51: 8282.185
A52: Целевые программы муниципальных образований | B52: 1 | C52: 6 | D52: 7950000 | E52: 0 | F52: 200
A53: Долгосрочная целевая программа Черемховского районного муниципального образования "Повышение эффективности бюджетных расходов Черемховского районного муниципального образования на 2012-2013 годы" | B53: 1 | C53: 6 | D53: 7950200 | E53: 0 | F53: 200
A54: Выполнение функций органами местного самоуправления | B54: 1 | C54: 6 | D54: 7950200 | E54: 500 | F54: 200
A55: Руководство и управление в сфере установленных функций органов государственной власти субъектов Российской Федерации и органов местного самоуправления | B55: 1 | C55: 6 | D55: 20000 | E55: 0 | F55: 2676.89
A56: Центральный аппарат | B56: 1 | C56: 6 | D56: 20400 | E56: 0 | F56: 1561.619
A57: Выполнение функций органами местного самоуправления | B57: 1 | C57: 6 | D57: 20400 | E57: 500 | F57: 1561.619
A58: Руководитель контрольно-счетной палаты муниципального образования и его заместители | B58: 1 | C58: 6 | D58: 22500 | E58: 0 | F58: 1115.271
A59: Выполнение функций органами местного самоуправления | B59: 1 | C59: 6 | D59: 22500 | E59: 500 | F59: 1115.271
A60: Резервные фонды | B60: 1 | C60: 11 | D60: 0 | E60: 0 | F60: 300
A61: Резервные фонды | B61: 1 | C61: 11 | D61: 700000 | E61: 0 | F61: 300
A62: Резервные фонды местных администраций | B62: 1 | C62: 11 | D62: 700500 | E62: 0 | F62: 300
A63: Выполнение функций органами местного самоуправления | B63: 1 | C63: 11 | D63: 700500 | E63: 500 | F63: 300
A64: Другие общегосударственные вопросы | B64: 1 | C64: 13 | D64: 0 | E64: 0 | F64: 30936.808
A65: Руководство и управление в сфере установленных функций органов государственной власти субъектов Российской Федерации и органов местного самоуправления | B65: 1 | C65: 13 | D65: 20000 | E65: 0 | F65: 15304.529
A66: Обеспечение деятельности подведомственных учреждений | B66: 1 | C66: 13 | D66: 29900 | E66: 0 | F66: 15304.529
A67: Выполнение функций казенными учреждениями | B67: 1 | C67: 13 | D67: 29900 | E67: 001 | F67: 15304.529
A68: Руководство и управление в сфере установленных функций органов государственной власти субъектов Российской Федерации и органов местного самоуправления | B68: 1 | C68: 13 | D68: 20000 | E68: 0 | F68: 4007.108
A69: Центральный аппарат | B69: 1 | C69: 13 | D69: 20400 | E69: 0 | F69: 3107.108
A70: Выполнение функций органами местного самоуправления | B70: 1 | C70: 13 | D70: 20400 | E70: 500 | F70: 3107.108
A71: Обеспечение деятельности подведомственных учреждений | B71: 1 | C71: 13 | D71: 29900 | E71: 0 | F71: 900
A72: Субсидии бюджетным учреждениям на финансовое обеспечение муниципального задания на оказание муниципальных услуг (выполнение работ) | B72: 1 | C72: 13 | D72: 29900 | E72: 611 | F72: 900
A73: Реализация государственных функций, связанных с общегосударственным управлением | B73: 1 | C73: 13 | D73: 920000 | E73: 0 | F73: 607.005
A74: Выполнение других обязательств государства | B74: 1 | C74: 13 | D74: 920300 | E74: 0 | F74: 607.005
A75: Выполнение функций органами местного самоуправления | B75: 1 | C75: 13 | D75: 920300 | E75: 500 | F75: 607.005
A76: Учреждения по обеспечению хозяйственного обслуживания | B76: 1 | C76: 13 | D76: 930000 | E76: 0 | F76: 6500
A77: Субсидии бюджетным учреждениям на финансовое обеспечение муниципального задания на оказание муниципальных услуг (выполнение работ) | B77: 1 | C77: 13 | D77: 930000 | E77: 611 | F77: 6500
A78: Целевые программы муниципальных образований | B78: 1 | C78: 13 | D78: 7950000 | E78: 0 | F78: 648.602
A79: Долгосрочная целевая программа "Инвентаризация муниципальных объектов недвижимости Черемховского районного муниципального образования на 2012-2014 годы" | B79: 1 | C79: 13 | D79: 7951900 | E79: 0 | F79: 648.602
A80: Выполнение функций органами местного самоуправления | B80: 1 | C80: 13 | D80: 7951900 | E80: 500 | F80: 648.602
A81: Руководство и управление в сфере установленных функций органов государственной власти субъектов Российской Федерации и органов местного самоуправления | B81: 1 | C81: 13 | D81: 20000 | E81: 0 | F81: 2785
A82: Осуществление областных государственных полномочий по хранению, комплектованию, учету и использованию архивных документов, относящихся к государственной собственности Иркутской области | B82: 1 | C82: 13 | D82: 24000 | E82: 0 | F82: 1174
A83: Выполнение функций органами местного самоуправления | B83: 1 | C83: 13 | D83: 24000 | E83: 500 | F83: 1174
A84: Осуществление областных государственных полномочий по определению персонального состава и обеспечению деятельности административных комиссий | B84: 1 | C84: 13 | D84: 24300 | E84: 0 | F84: 604.1
A85: Выполнение функций органами местного самоуправления | B85: 1 | C85: 13 | D85: 24300 | E85: 500 | F85: 604.1
A86: Осуществление отдельных государственных полномочий в области производства и оборота этилового спирта, алкогольной и спиртосодержащей продукции | B86: 1 | C86: 13 | D86: 24400 | E86: 0 | F86: 402.8
A87: Выполнение функций органами местного самоуправления | B87: 1 | C87: 13 | D87: 24400 | E87: 500 | F87: 402.8
A88: Осуществление отдельных областных государственных полномочий в области охраны труда | B88: 1 | C88: 13 | D88: 24500 | E88: 0 | F88: 604.1
A89: Выполнение функций органами местного самоуправления | B89: 1 | C89: 13 | D89: 24500 | E89: 500 | F89: 604.1
A90: Реализация государственных функций, связанных с общегосударственным управлением | B90: 1 | C90: 13 | D90: 920000 | E90: 0 | F90: 181
A91: Выполнение других обязательств государства | B91: 1 | C91: 13 | D91: 920300 | E91: 0 | F91: 181
A92: Выполнение функций органами местного самоуправления | B92: 1 | C92: 13 | D92: 920300 | E92: 500 | F92: 181
A93: Целевые программы муниципальных образований | B93: 1 | C93: 13 | D93: 7950000 | E93: 0 | F93: 155
A94: Долгосрочная целевая программа "Улучшение условий и охраны труда в Черемховском районе на 2011-2013гг." | B94: 1 | C94: 13 | D94: 7951400 | E94: 0 | F94: 15
A95: Выполнение функций органами местного самоуправления | B95: 1 | C95: 13 | D95: 7951400 | E95: 500 | F95: 15
A96: Комплексная программа "Профилактика правонарушений в Черемховском районном муниципальном образовании на 2013-2016 годы" | B96: 1 | C96: 13 | D96: 7952600 | E96: 0 | F96: 40
A97: Выполнение функций органами местного самоуправления | B97: 1 | C97: 13 | D97: 7952600 | E97: 500 | F97: 40
A98: Долгосрочная целевая программа "Поддержка молодых педагогов на территории Черемховского районного муниципального образования" на 2012-2013 годы | B98: 1 | C98: 13 | D98: 7952700 | E98: 0 | F98: 100
A99: Выполнение функций органами местного самоуправления | B99: 1 | C99: 13 | D99: 7952700 | E99: 500 | F99: 100
A100: Реализация государственных функций, связанных с общегосударственным управлением | B100: 1 | C100: 13 | D100: 920000 | E100: 0 | F100: 748.564
A101: Выполнение других обязательств государства | B101: 1 | C101: 13 | D101: 920300 | E101: 0 | F101: 748.564
A102: Выполнение функций органами местного самоуправления | B102: 1 | C102: 13 | D102: 920300 | E102: 500 | F102: 748.564
A103: НАЦИОНАЛЬНАЯ ЭКОНОМИКА | B103: 4 | C103: 0 | D103: 0 | E103: 0 | F103: 5981.71
A104: Дорожное хозяйство(дорожные фонды) | B104: 4 | C104: 9 | D104: 0 | E104: 0 | F104: 5351.51
A105: Целевые программы муниципальных образований | B105: 4 | C105: 9 | D105: 7950000 | E105: 0 | F105: 1320
A106: Долгосрочная целевая программа "Инвентаризация муниципальных объектов недвижимости Черемховского районного муниципального образования на 2012-2014 годы" | B106: 4 | C106: 9 | D106: 7951900 | E106: 0 | F106: 1320
A107: Выполнение функций органами местного самоуправления | B107: 4 | C107: 9 | D107: 7951900 | E107: 500 | F107: 1320
A108: Региональные целевые программы | B108: 4 | C108: 9 | D108: 5220000 | E108: 0 | F108: 3829
A109: Долгосрочная целевая программа "Развитие автомобильных дорог общего пользования регионального или межмуниципального значения и местного значения в Иркутской области на 2011 - 2014 годы" | B109: 4 | C109: 9 | D109: 5224700 | E109: 0 | F109: 3829
A110: Выполнение функций органами местного самоуправления | B110: 4 | C110: 9 | D110: 5224700 | E110: 500 | F110: 3829
A111: Целевые программы муниципальных образований | B111: 4 | C111: 9 | D111: 7950000 | E111: 0 | F111: 202.51
A112: Долгосрочная целевая программа "Развитие автомобильных дорог Черемховского районного муниципального образования на 2013-2015 годы" | B112: 4 | C112: 9 | D112: 7952300 | E112: 0 | F112: 202.51
A113: Выполнение функций органами местного самоуправления | B113: 4 | C113: 9 | D113: 7952300 | E113: 500 | F113: 202.51
A114: Другие вопросы в области национальной экономики | B114: 4 | C114: 12 | D114: 0 | E114: 0 | F114: 630.2
A115: Целевые программы муниципальных образований | B115: 4 | C115: 12 | D115: 7950000 | E115: 0 | F115: 500
A116: Долгосрочная целевая программа "Инвентаризация муниципальных объектов недвижимости Черемховского районного муниципального образования на 2012-2014 годы" | B116: 4 | C116: 12 | D116: 7951900 | E116: 0 | F116: 500
A117: Выполнение функций органами местного самоуправления | B117: 4 | C117: 12 | D117: 7951900 | E117: 500 | F117: 500
A118: Целевые программы муниципальных образований | B118: 4 | C118: 12 | D118: 7950000 | E118: 0 | F118: 100
A119: Долгосрочная целевая программа "Поддержка и развитие малого и среднего предпринимательства в Черемховском районе" на 2013-2014 годы | B119: 4 | C119: 12 | D119: 7952200 | E119: 0 | F119: 100
A120: Выполнение функций органами местного самоуправления | B120: 4 | C120: 12 | D120: 7952200 | E120: 500 | F120: 100
A121: Мероприятия в области строительства, архитектуры и градостроительства | B121: 4 | C121: 12 | D121: 3380000 | E121: 0 | F121: 30.2
A122: Подготовка проектов правил землепользования и застройки муниципальных образований Черемховского районного муниципального образования | B122: 4 | C122: 12 | D122: 3380200 | E122: 0 | F122: 30.2
A123: Выполнение функций органами местного самоуправления | B123: 4 | C123: 12 | D123: 3380200 | E123: 500 | F123: 30.2
A124: ЖИЛИЩНО-КОММУНАЛЬНОЕ ХОЗЯЙСТВО | B124: 5 | C124: 0 | D124: 0 | E124: 0 | F124: 7765.891
A125: Жилищное хозяйство | B125: 5 | C125: 1 | D125: 0 | E125: 0 | F125: 2399.944
A126: Поддержка жилищного хозяйства | B126: 5 | C126: 1 | D126: 3500000 | E126: 0 | F126: 1100.127
A127: Капитальный ремонт государственного жилищного фонда субъектов Российской Федерации и муниципального жилищного фонда | B127: 5 | C127: 1 | D127: 3500200 | E127: 0 | F127: 1046.114
A128: Субсидии юридическим лицам | B128: 5 | C128: 1 | D128: 3500200 | E128: 006 | F128: 1046.114
A129: Мероприятия в области жилищного хозяйства | B129: 5 | C129: 1 | D129: 3500300 | E129: 0 | F129: 54.013
A130: Выполнение функций органами местного самоуправления | B130: 5 | C130: 1 | D130: 3500300 | E130: 500 | F130: 54.013
A131: Поддержка жилищного хозяйства | B131: 5 | C131: 1 | D131: 3500000 | E131: 0 | F131: 1299.817
A132: Мероприятия в области жилищного хозяйства | B132: 5 | C132: 1 | D132: 3500300 | E132: 0 | F132: 1299.817
A133: Выполнение функций органами местного самоуправления | B133: 5 | C133: 1 | D133: 3500300 | E133: 500 | F133: 1299.817
A134: Коммунальное хозяйство | B134: 5 | C134: 2 | D134: 0 | E134: 0 | F134: 70
A135: Региональные целевые программы | B135: 5 | C135: 2 | D135: 5220000 | E135: 0 | F135: 70
A136: Долгосрочная целевая программа «Энергосбережение и повышение энергетической эффективности на территории Иркутской области на 2011-2015 годы и на период до 2020 года» | B136: 5 | C136: 2 | D136: 5225400 | E136: 0 | F136: 70
A137: Иные межбюджетные трансферты | B137: 5 | C137: 2 | D137: 5225400 | E137: 017 | F137: 70
A138: Другие вопросы в области жилищно-коммунального хозяйства | B138: 5 | C138: 5 | D138: 0 | E138: 0 | F138: 5295.947
A139: Руководство и управление в сфере установленных функций органов государственной власти субъектов Российской Федерации и органов местного самоуправления | B139: 5 | C139: 5 | D139: 20000 | E139: 0 | F139: 5295.947
A140: Центральный аппарат | B140: 5 | C140: 5 | D140: 20400 | E140: 0 | F140: 5295.947
A141: Выполнение функций органами местного самоуправления | B141: 5 | C141: 5 | D141: 20400 | E141: 500 | F141: 5295.947
A142: ОХРАНА ОКРУЖАЮЩЕЙ СРЕДЫ | B142: 6 | C142: 0 | D142: 0 | E142: 0 | F142: 5150
A143: Другие вопросы в области охраны окружающей среды | B143: 6 | C143: 5 | D143: 0 | E143: 0 | F143: 5150
A144: Состояние окружающей среды и природопользования | B144: 6 | C144: 5 | D144: 4100000 | E144: 0 | F144: 150
A145: Природоохранные мероприятия | B145: 6 | C145: 5 | D145: 4100100 | E145: 0 | F145: 150
A146: Выполнение функций органами местного самоуправления | B146: 6 | C146: 5 | D146: 4100100 | E146: 500 | F146: 150
A147: Региональные целевые программы | B147: 6 | C147: 5 | D147: 5220000 | E147: 0 | F147: 5000
A148: Долгосрочная целевая программа Иркутской области «Защита окружающей среды в Иркутской области на 2011-2015 годы» | B148: 6 | C148: 5 | D148: 5222500 | E148: 0 | F148: 5000
A149: Подпрограмма «Отходы производства и потребления в Иркутской области на 2011-2015 годы» | B149: 6 | C149: 5 | D149: 5222502 | E149: 0 | F149: 5000
A150: Выполнение функций органами местного самоуправления | B150: 6 | C150: 5 | D150: 5222502 | E150: 500 | F150: 5000
A151: ОБРАЗОВАНИЕ | B151: 7 | C151: 0 | D151: 0 | E151: 0 | F151: 478334.945
A152: Дошкольное образование | B152: 7 | C152: 1 | D152: 0 | E152: 0 | F152: 106629.858
A153: Детские дошкольные учреждения | B153: 7 | C153: 1 | D153: 4200000 | E153: 0 | F153: 65953.713
A154: Обеспечение деятельности подведомственных учреждений | B154: 7 | C154: 1 | D154: 4209900 | E154: 0 | F154: 65953.713
A155: Выполнение функций казенными учреждениями | B155: 7 | C155: 1 | D155: 4209900 | E155: 001 | F155: 65953.713
A156: Региональные целевые программы | B156: 7 | C156: 1 | D156: 5220000 | E156: 0 | F156: 3335.766
A157: Областная государственная целевая программа поддержки и развития учреждений дошкольного образования в Иркутской области на 2009-2014 годы | B157: 7 | C157: 1 | D157: 5223700 | E157: 0 | F157: 3027.506
A158: Выполнение функций казенными учреждениями | B158: 7 | C158: 1 | D158: 5223700 | E158: 001 | F158: 3027.506
A159: Долгосрочная целевая программа «Энергосбережение и повышение энергетической эффективности на территории Иркутской области на 2011-2015 годы и на период до 2020 года» | B159: 7 | C159: 1 | D159: 5225400 | E159: 0 | F159: 308.26
A160: Выполнение функций казенными учреждениями | B160: 7 | C160: 1 | D160: 5225400 | E160: 001 | F160: 308.26
A161: Выплата заработной платы с начислениями на нее педагогическим работникам муниципальных дошкольных образовательных учреждений и муниципальных учреждений дополнительного образования | B161: 7 | C161: 1 | D161: 5890000 | E161: 0 | F161: 29973.349
A162: Выполнение функций казенными учреждениями | B162: 7 | C162: 1 | D162: 5890000 | E162: 001 | F162: 29973.349
A163: Целевые программы муниципальных образований | B163: 7 | C163: 1 | D163: 7950000 | E163: 0 | F163: 7367.03
A164: Долгосрочная целевая программа Черемховского районного муниципального образования "Повышение эффективности бюджетных расходов Черемховского районного муниципального образования на 2012-2013 годы" | B164: 7 | C164: 1 | D164: 7950200 | E164: 0 | F164: 5211
A165: Выполнение функций казенными учреждениями | B165: 7 | C165: 1 | D165: 7950200 | E165: 001 | F165: 5211
A166: Долгосрочная целевая программа "Безопасность образовательных учреждений на 2010-2014 гг." | B166: 7 | C166: 1 | D166: 7951000 | E166: 0 | F166: 572
A167: Мероприятия по обеспечению пожарной безопасности | B167: 7 | C167: 1 | D167: 7951000 | E167: 450 | F167: 572
A168: Долгосрочная целевая программа энергосбережения и повышения энергетической эффективности Черемховского районного муниципального образования на 2010-2015 годы | B168: 7 | C168: 1 | D168: 7951100 | E168: 0 | F168: 132.03
A169: Мероприятия по повышению энергетической эффективности | B169: 7 | C169: 1 | D169: 7951100 | E169: 451 | F169: 132.03
A170: Долгосрочная целевая программа "Развитие дошкольного образования на 2011-2014 гг." | B170: 7 | C170: 1 | D170: 7951700 | E170: 0 | F170: 1102
A171: Мероприятия в сфере образования | B171: 7 | C171: 1 | D171: 7951700 | E171: 022 | F171: 1102
A172: Долгосрочная целевая программа "Совершенствование дошкольного образования Черемховского района на 2011-2014 гг." | B172: 7 | C172: 1 | D172: 7951800 | E172: 0 | F172: 350
A173: Мероприятия в сфере образования | B173: 7 | C173: 1 | D173: 7951800 | E173: 022 | F173: 350
A174: Общее образование | B174: 7 | C174: 2 | D174: 0 | E174: 0 | F174: 360420.446
A175: Учреждения по внешкольной работе с детьми | B175: 7 | C175: 2 | D175: 4230000 | E175: 0 | F175: 5390.918
A176: Обеспечение деятельности подведомственных учреждений | B176: 7 | C176: 2 | D176: 4239900 | E176: 0 | F176: 5390.918
A177: Выполнение функций казенными учреждениями | B177: 7 | C177: 2 | D177: 4239900 | E177: 001 | F177: 5390.918
A178: Целевые программы муниципальных образований | B178: 7 | C178: 2 | D178: 7950000 | E178: 0 | F178: 803.8
A179: Долгосрочная целевая программа Черемховского районного муниципального образования "Повышение эффективности бюджетных расходов Черемховского районного муниципального образования на 2012-2013 годы" | B179: 7 | C179: 2 | D179: 7950200 | E179: 0 | F179: 711
A180: Выполнение функций казенными учреждениями | B180: 7 | C180: 2 | D180: 7950200 | E180: 001 | F180: 711
A181: Долгосрочная целевая программа "Развитие культуры в Черемховском районном муниципальном образовании на период 2012-2016 гг." | B181: 7 | C181: 2 | D181: 7952000 | E181: 0 | F181: 92.8
A182: Мероприятия по поддержке и развитию культуры, искусства, кинематографии | B182: 7 | C182: 2 | D182: 7952000 | E182: 023 | F182: 92.8
A183: Руководство и управление в сфере установленных функций органов государственной власти субъектов Российской Федерации и органов местного самоуправления | B183: 7 | C183: 2 | D183: 20000 | E183: 0 | F183: 281204.449
A184: Обеспечение государственных гарантий прав граждан на получение общедоступного и бесплатного дошкольного, начального общего, основного общего, среднего (полного) общего образования, а также дополнительного образования в общеобразовательных учреждениях | B184: 7 | C184: 2 | D184: 25000 | E184: 0 | F184: 281204.449
A185: Выполнение функций казенными учреждениями | B185: 7 | C185: 2 | D185: 25000 | E185: 001 | F185: 281204.449
A186: Школы - детские сады, школы начальные, неполные средние и средние | B186: 7 | C186: 2 | D186: 4210000 | E186: 0 | F186: 22043.405
A187: Обеспечение деятельности подведомственных учреждений | B187: 7 | C187: 2 | D187: 4219900 | E187: 0 | F187: 22043.405
A188: Выполнение функций казенными учреждениями | B188: 7 | C188: 2 | D188: 4219900 | E188: 001 | F188: 22043.405
A189: Учреждения по внешкольной работе с детьми | B189: 7 | C189: 2 | D189: 4230000 | E189: 0 | F189: 23454.874
A190: Обеспечение деятельности подведомственных учреждений | B190: 7 | C190: 2 | D190: 4239900 | E190: 0 | F190: 23454.874
A191: Выполнение функций казенными учреждениями | B191: 7 | C191: 2 | D191: 4239900 | E191: 001 | F191: 23454.874
A192: Мероприятия в области образования | B192: 7 | C192: 2 | D192: 4360000 | E192: 0 | F192: 1600
A193: Модернизация региональных систем образования | B193: 7 | C193: 2 | D193: 4362100 | E193: 0 | F193: 1600
A194: Модернизация региональных систем образования за счет средств федерального бюджета | B194: 7 | C194: 2 | D194: 4362101 | E194: 0 | F194: 1600
A195: Выполнение функций казенными учреждениями | B195: 7 | C195: 2 | D195: 4362101 | E195: 001 | F195: 1600
A196: Иные безвозмездные и безвозвратные перечисления | B196: 7 | C196: 2 | D196: 5200000 | E196: 0 | F196: 5000.1
A197: Ежемесячное денежное вознаграждение за классное руководство | B197: 7 | C197: 2 | D197: 5200900 | E197: 0 | F197: 5000.1
A198: Выполнение функций казенными учреждениями | B198: 7 | C198: 2 | D198: 5200900 | E198: 001 | F198: 5000.1
A199: Региональные целевые программы | B199: 7 | C199: 2 | D199: 5220000 | E199: 0 | F199: 2040.09
A200: Долгосрочная целевая программа «Модернизация объектов коммунальной инфраструктуры Иркутской области на 2011-2013 годы» | B200: 7 | C200: 2 | D200: 5222000 | E200: 0 | F200: 1700
A201: Подпрограмма «Подготовка объектов коммунальной инфраструктуры Иркутской области к отопительному сезону в 2011-2013 годах» | B201: 7 | C201: 2 | D201: 5222001 | E201: 0 | F201: 1700
A202: Выполнение функций казенными учреждениями | B202: 7 | C202: 2 | D202: 5222001 | E202: 001 | F202: 1700
A203: Долгосрочная целевая программа «Энергосбережение и повышение энергетической эффективности на территории Иркутской области на 2011-2015 годы и на период до 2020 года» | B203: 7 | C203: 2 | D203: 5225400 | E203: 0 | F203: 340.09
A204: Выполнение функций казенными учреждениями | B204: 7 | C204: 2 | D204: 5225400 | E204: 001 | F204: 340.09
A205: Выплата заработной платы с начислениями на нее педагогическим работникам муниципальных дошкольных образовательных учреждений и муниципальных учреждений дополнительного образования | B205: 7 | C205: 2 | D205: 5890000 | E205: 0 | F205: 2201.951
A206: Выполнение функций казенными учреждениями | B206: 7 | C206: 2 | D206: 5890000 | E206: 001 | F206: 2201.951
A207: Целевые программы муниципальных образований | B207: 7 | C207: 2 | D207: 7950000 | E207: 0 | F207: 16680.859
A208: Долгосрочная целевая программа Черемховского районного муниципального образования "Повышение эффективности бюджетных расходов Черемховского районного муниципального образования на 2012-2013 годы" | B208: 7 | C208: 2 | D208: 7950200 | E208: 0 | F208: 13184.889
A209: Выполнение функций казенными учреждениями | B209: 7 | C209: 2 | D209: 7950200 | E209: 001 | F209: 13184.889
A210: Долгосрочная целевая программа "Безопасность образовательных учреждений на 2010-2014 гг." | B210: 7 | C210: 2 | D210: 7951000 | E210: 0 | F210: 1128
A211: Мероприятия по обеспечению пожарной безопасности | B211: 7 | C211: 2 | D211: 7951000 | E211: 450 | F211: 1128
A212: Долгосрочная целевая программа энергосбережения и повышения энергетической эффективности Черемховского районного муниципального образования на 2010-2015 годы | B212: 7 | C212: 2 | D212: 7951100 | E212: 0 | F212: 467.97
A213: Мероприятия по повышению энергетической эффективности | B213: 7 | C213: 2 | D213: 7951100 | E213: 451 | F213: 467.97
A214: Долгосрочная целевая программа "Ветхие школы Черемховского района" на 2011-2013 гг. | B214: 7 | C214: 2 | D214: 7951500 | E214: 0 | F214: 900
A215: Мероприятия в сфере образования | B215: 7 | C215: 2 | D215: 7951500 | E215: 022 | F215: 900
A216: Долгосрочная целевая программа "Совершенствование организации питания в образовательных учреждениях Черемховского района на 2011-2013гг." | B216: 7 | C216: 2 | D216: 7951600 | E216: 0 | F216: 1000
A217: Мероприятия в сфере образования | B217: 7 | C217: 2 | D217: 7951600 | E217: 022 | F217: 1000
... 138 more rows

Sheet прил5 (hidden)
A15: Распределение бюджетных ассигнований по разделам, подразделам, целевым статьям и видам расходов классификации расходов бюджетов на плановый период 2014 и 2015 годов
A17: Наименование показателя | B17: Код | F17: Сумма, тыс.руб.
B18: раздела | C18: подраздела | D18: целевой статьи | E18: вида расходов | F18: 2014 | G18: 2015
A19: 1 | B19: 2 | C19: 3 | D19: 4 | E19: 5 | F19: 6 | G19: 7
A20: ОБЩЕГОСУДАРСТВЕННЫЕ ВОПРОСЫ | B20: 1 | C20: 0 | D20: 0 | E20: 0 | F20: 57173.4 | G20: 56134.3
A21: Функционирование высшего должностного лица субъекта Российской Федерации и муниципального образования | B21: 1 | C21: 2 | D21: 0 | E21: 0 | F21: 1403 | G21: 1472.1
A22: Руководство и управление в сфере установленных функций органов государственной власти субъектов Российской Федерации и органов местного самоуправления | B22: 1 | C22: 2 | D22: 20000 | E22: 0 | F22: 1403 | G22: 1472.1
A23: Глава муниципального образования | B23: 1 | C23: 2 | D23: 20300 | E23: 0 | F23: 1403 | G23: 1472.1
A24: Выполнение функций органами местного самоуправления | B24: 1 | C24: 2 | D24: 20300 | E24: 500 | F24: 1403 | G24: 1472.1
A25: Функционирование законодательных (представительных) органов государственной власти и представительных органов муниципальных образований | B25: 1 | C25: 3 | D25: 0 | E25: 0 | F25: 940.5 | G25: 986.3
A26: Руководство и управление в сфере установленных функций органов государственной власти субъектов Российской Федерации и органов местного самоуправления | B26: 1 | C26: 3 | D26: 20000 | E26: 0 | F26: 940.5 | G26: 986.3
A27: Центральный аппарат | B27: 1 | C27: 3 | D27: 20400 | E27: 0 | F27: 289 | G27: 302
A28: Выполнение функций органами местного самоуправления | B28: 1 | C28: 3 | D28: 20400 | E28: 500 | F28: 289 | G28: 302
A29: Председатель представительного органа муниципального образования | B29: 1 | C29: 3 | D29: 21100 | E29: 0 | F29: 651.5 | G29: 684.3
A30: Выполнение функций органами местного самоуправления | B30: 1 | C30: 3 | D30: 21100 | E30: 500 | F30: 651.5 | G30: 684.3
A31: Функционирование Правительства Российской Федерации, высших исполнительных органов государственной власти субъектов Российской Федерации, местных администраций | B31: 1 | C31: 4 | D31: 0 | E31: 0 | F31: 20490.6 | G31: 21389.4
A32: Руководство и управление в сфере установленных функций органов государственной власти субъектов Российской Федерации и органов местного самоуправления | B32: 1 | C32: 4 | D32: 20000 | E32: 0 | F32: 20490.6 | G32: 21389.4
A33: Центральный аппарат | B33: 1 | C33: 4 | D33: 20400 | E33: 0 | F33: 20490.6 | G33: 21389.4
A34: Выполнение функций органами местного самоуправления | B34: 1 | C34: 4 | D34: 20400 | E34: 500 | F34: 20490.6 | G34: 21389.4
A35: Региональные целевые программы | B35: 1 | C35: 4 | D35: 5220000 | E35: 0 | F35: 0 | G35: 0
A36: Долгосрочная целевая программа «Энергосбережение и повышение энергетической эффективности на территории Иркутской области на 2011-2015 годы и на период до 2020 года» | B36: 1 | C36: 4 | D36: 5225400 | E36: 0 | F36: 0 | G36: 0
A37: Выполнение функций органами местного самоуправления | B37: 1 | C37: 4 | D37: 5225400 | E37: 500 | F37: 0 | G37: 0
A38: Целевые программы муниципальных образований | B38: 1 | C38: 4 | D38: 7950000 | E38: 0 | F38: 0 | G38: 0
A39: Долгосрочная целевая программа энергосбережения и повышения энергетической эффективности Черемховского районного муниципального образования на 2010-2015 годы | B39: 1 | C39: 4 | D39: 7951100 | E39: 0 | F39: 0 | G39: 0
A40: Мероприятия по повышению энергетической эффективности | B40: 1 | C40: 4 | D40: 7951100 | E40: 451 | F40: 0 | G40: 0
A41: Обеспечение деятельности финансовых, налоговых и таможенных органов и органов финансового (финансово-бюджетного) надзора | B41: 1 | C41: 6 | D41: 0 | E41: 0 | F41: 7459.3 | G41: 7789.5
A42: Руководство и управление в сфере установленных функций органов государственной власти субъектов Российской Федерации и органов местного самоуправления | B42: 1 | C42: 6 | D42: 20000 | E42: 0 | F42: 7459.3 | G42: 7789.5
A43: Центральный аппарат | B43: 1 | C43: 6 | D43: 20400 | E43: 0 | F43: 6674.1 | G43: 6964.3
A44: Выполнение функций органами местного самоуправления | B44: 1 | C44: 6 | D44: 20400 | E44: 500 | F44: 6674.1 | G44: 6964.3
A45: Руководитель контрольно-счетной палаты муниципального образования и его заместители | B45: 1 | C45: 6 | D45: 22500 | E45: 0 | F45: 785.2 | G45: 825.2
A46: Выполнение функций органами местного самоуправления | B46: 1 | C46: 6 | D46: 22500 | E46: 500 | F46: 785.2 | G46: 825.2
A47: Целевые программы муниципальных образований | B47: 1 | C47: 6 | D47: 7950000 | E47: 0 | F47: 0 | G47: 0
A48: Долгосрочная целевая программа Черемховского районного муниципального образования "Повышение эффективности бюджетных расходов Черемховского районного муниципального образования на 2012-2013 годы" | B48: 1 | C48: 6 | D48: 7950200 | E48: 0 | F48: 0 | G48: 0
A49: Выполнение функций органами местного самоуправления | B49: 1 | C49: 6 | D49: 7950200 | E49: 500 | F49: 0 | G49: 0
A50: Обеспечение проведения выборов и референдумов | B50: 1 | C50: 7 | D50: 0 | E50: 0 | F50: 2500 | G50: 0
A51: Проведение выборов и референдумов | B51: 1 | C51: 7 | D51: 200000 | E51: 0 | F51: 2500 | G51: 0
A52: Проведение выборов и референдумов | B52: 1 | C52: 7 | D52: 200000 | E52: 0 | F52: 2500 | G52: 0
A53: Проведение выборов в представительные органы муниципального образования | B53: 1 | C53: 7 | D53: 200002 | E53: 0 | F53: 2500 | G53: 0
A54: Выполнение функций органами местного самоуправления | B54: 1 | C54: 7 | D54: 200002 | E54: 500 | F54: 2500 | G54: 0
A55: Резервные фонды | B55: 1 | C55: 11 | D55: 0 | E55: 0 | F55: 300 | G55: 300
A56: Резервные фонды | B56: 1 | C56: 11 | D56: 700000 | E56: 0 | F56: 300 | G56: 300
A57: Резервные фонды местных администраций | B57: 1 | C57: 11 | D57: 700500 | E57: 0 | F57: 300 | G57: 300
A58: Выполнение функций органами местного самоуправления | B58: 1 | C58: 11 | D58: 700500 | E58: 500 | F58: 300 | G58: 300
A59: Другие общегосударственные вопросы | B59: 1 | C59: 13 | D59: 0 | E59: 0 | F59: 24080 | G59: 24197
A60: Руководство и управление в сфере установленных функций органов государственной власти субъектов Российской Федерации и органов местного самоуправления | B60: 1 | C60: 13 | D60: 20000 | E60: 0 | F60: 16869.2 | G60: 17486.2
A61: Центральный аппарат | B61: 1 | C61: 13 | D61: 20400 | E61: 0 | F61: 2262.4 | G61: 2351.7
A62: Выполнение функций органами местного самоуправления | B62: 1 | C62: 13 | D62: 20400 | E62: 500 | F62: 2262.4 | G62: 2351.7
A63: Осуществление областных государственных полномочий по хранению, комплектованию, учету и использованию архивных документов, относящихся к государственной собственности Иркутской области | B63: 1 | C63: 13 | D63: 24000 | E63: 0 | F63: 1086 | G63: 1086
A64: Выполнение функций органами местного самоуправления | B64: 1 | C64: 13 | D64: 24000 | E64: 500 | F64: 1086 | G64: 1086
A65: Осуществление областных государственных полномочий по определению персонального состава и обеспечению деятельности административных комиссий | B65: 1 | C65: 13 | D65: 24300 | E65: 0 | F65: 563.6 | G65: 563.6
A66: Выполнение функций органами местного самоуправления | B66: 1 | C66: 13 | D66: 24300 | E66: 500 | F66: 563.6 | G66: 563.6
A67: Осуществление отдельных государственных полномочий в области производства и оборота этилового спирта, алкогольной и спиртосодержащей продукции | B67: 1 | C67: 13 | D67: 24400 | E67: 0 | F67: 404.3 | G67: 430.2
A68: Выполнение функций органами местного самоуправления | B68: 1 | C68: 13 | D68: 24400 | E68: 500 | F68: 404.3 | G68: 430.2
A69: Осуществление отдельных областных государственных полномочий в области охраны труда | B69: 1 | C69: 13 | D69: 24500 | E69: 0 | F69: 563.6 | G69: 563.6
A70: Выполнение функций органами местного самоуправления | B70: 1 | C70: 13 | D70: 24500 | E70: 500 | F70: 563.6 | G70: 563.6
A71: Обеспечение деятельности подведомственных учреждений | B71: 1 | C71: 13 | D71: 29900 | E71: 0 | F71: 11989.3 | G71: 12491.1
A72: Выполнение функций казенными учреждениями | B72: 1 | C72: 13 | D72: 29900 | E72: 001 | F72: 11089.3 | G72: 11591.1
A73: Субсидии бюджетным учреждениям на финансовое обеспечение муниципального задания на оказание муниципальных услуг (выполнение работ) | B73: 1 | C73: 13 | D73: 29900 | E73: 611 | F73: 900 | G73: 900
A74: Реализация государственных функций, связанных с общегосударственным управлением | B74: 1 | C74: 13 | D74: 920000 | E74: 0 | F74: 170.8 | G74: 170.8
A75: Выполнение других обязательств государства | B75: 1 | C75: 13 | D75: 920300 | E75: 0 | F75: 170.8 | G75: 170.8
A76: Выполнение функций органами местного самоуправления | B76: 1 | C76: 13 | D76: 920300 | E76: 500 | F76: 170.8 | G76: 170.8
A77: Учреждения по обеспечению хозяйственного обслуживания | B77: 1 | C77: 13 | D77: 930000 | E77: 0 | F77: 6500 | G77: 6500
A78: Субсидии бюджетным учреждениям на финансовое обеспечение муниципального задания на оказание муниципальных услуг (выполнение работ) | B78: 1 | C78: 13 | D78: 930000 | E78: 611 | F78: 6500 | G78: 6500
A79: Целевые программы муниципальных образований | B79: 1 | C79: 13 | D79: 7950000 | E79: 0 | F79: 540 | G79: 40
A80: Долгосрочная целевая программа "Улучшение условий и охраны труда в Черемховском районе на 2011-2013гг." | B80: 1 | C80: 13 | D80: 7951400 | E80: 0 | F80: 0 | G80: 0
A81: Выполнение функций органами местного самоуправления | B81: 1 | C81: 13 | D81: 7951400 | E81: 500 | F81: 0 | G81: 0
A82: Долгосрочная целевая программа "Инвентаризация муниципальных объектов недвижимости Черемховского районного муниципального образования на 2012-2014 годы" | B82: 1 | C82: 13 | D82: 7951900 | E82: 0 | F82: 500 | G82: 0
A83: Выполнение функций органами местного самоуправления | B83: 1 | C83: 13 | D83: 7951900 | E83: 500 | F83: 500 | G83: 0
A84: Комплексная программа "Профилактика правонарушений в Черемховском районном муниципальном образовании на 2013-2016 годы" | B84: 1 | C84: 13 | D84: 7952600 | E84: 0 | F84: 40 | G84: 40
A85: Выполнение функций органами местного самоуправления | B85: 1 | C85: 13 | D85: 7952600 | E85: 500 | F85: 40 | G85: 40
A86: Долгосрочная целевая программа "Поддержка молодых педагогов на территории Черемховского районного муниципального образования" на 2012-2013 годы | B86: 1 | C86: 13 | D86: 7952700 | E86: 0 | F86: 0 | G86: 0
A87: Выполнение функций органами местного самоуправления | B87: 1 | C87: 13 | D87: 7952700 | E87: 500 | F87: 0 | G87: 0
A88: НАЦИОНАЛЬНАЯ ЭКОНОМИКА | B88: 4 | C88: 0 | D88: 0 | E88: 0 | F88: 3698.1 | G88: 2406.5
A89: Дорожное хозяйство(дорожные фонды) | B89: 4 | C89: 9 | D89: 0 | E89: 0 | F89: 3048.1 | G89: 2406.5
A90: Региональные целевые программы | B90: 4 | C90: 9 | D90: 5220000 | E90: 0 | F90: 0 | G90: 0
A91: Долгосрочная целевая программа "Развитие автомобильных дорог общего пользования регионального или межмуниципального значения и местного значения в Иркутской области на 2011 - 2014 годы" | B91: 4 | C91: 9 | D91: 5224700 | E91: 0 | F91: 0 | G91: 0
A92: Выполнение функций органами местного самоуправления | B92: 4 | C92: 9 | D92: 5224700 | E92: 500 | F92: 0 | G92: 0
A93: Целевые программы муниципальных образований | B93: 4 | C93: 9 | D93: 7950000 | E93: 0 | F93: 3048.1 | G93: 2406.5
A94: Долгосрочная целевая программа "Инвентаризация муниципальных объектов недвижимости Черемховского районного муниципального образования на 2012-2014 годы" | B94: 4 | C94: 9 | D94: 7951900 | E94: 0 | F94: 0 | G94: 0
A95: Выполнение функций органами местного самоуправления | B95: 4 | C95: 9 | D95: 7951900 | E95: 500 | F95: 0 | G95: 0
A96: Долгосрочная целевая программа "Развитие автомобильных дорог Черемховского районного муниципального образования на 2013-2015 годы" | B96: 4 | C96: 9 | D96: 7952300 | E96: 0 | F96: 3048.1 | G96: 2406.5
A97: Выполнение функций органами местного самоуправления | B97: 4 | C97: 9 | D97: 7952300 | E97: 500 | F97: 3048.1 | G97: 2406.5
A98: Другие вопросы в области национальной экономики | B98: 4 | C98: 12 | D98: 0 | E98: 0 | F98: 650 | G98: 0
A99: Мероприятия в области строительства, архитектуры и градостроительства | B99: 4 | C99: 12 | D99: 3380000 | E99: 0 | F99: 0 | G99: 0
A100: Подготовка проектов правил землепользования и застройки муниципальных образований Черемховского районного муниципального образования | B100: 4 | C100: 12 | D100: 3380200 | E100: 0 | F100: 0 | G100: 0
A101: Выполнение функций органами местного самоуправления | B101: 4 | C101: 12 | D101: 3380200 | E101: 500 | F101: 0 | G101: 0
A102: Целевые программы муниципальных образований | B102: 4 | C102: 12 | D102: 7950000 | E102: 0 | F102: 650 | G102: 0
A103: Долгосрочная целевая программа "Инвентаризация муниципальных объектов недвижимости Черемховского районного муниципального образования на 2012-2014 годы" | B103: 4 | C103: 12 | D103: 7951900 | E103: 0 | F103: 500 | G103: 0
A104: Выполнение функций органами местного самоуправления | B104: 4 | C104: 12 | D104: 7951900 | E104: 500 | F104: 500 | G104: 0
A105: Долгосрочная целевая программа "Поддержка и развитие малого и среднего предпринимательства в Черемховском районе" на 2013-2014 годы | B105: 4 | C105: 12 | D105: 7952200 | E105: 0 | F105: 150 | G105: 0
A106: Выполнение функций органами местного самоуправления | B106: 4 | C106: 12 | D106: 7952200 | E106: 500 | F106: 150 | G106: 0
A107: ЖИЛИЩНО-КОММУНАЛЬНОЕ ХОЗЯЙСТВО | B107: 5 | C107: 0 | D107: 0 | E107: 0 | F107: 4258 | G107: 4464.7
A108: Жилищное хозяйство | B108: 5 | C108: 1 | D108: 0 | E108: 0 | F108: 0 | G108: 0
A109: Поддержка жилищного хозяйства | B109: 5 | C109: 1 | D109: 3500000 | E109: 0 | F109: 0 | G109: 0
A110: Мероприятия в области жилищного хозяйства | B110: 5 | C110: 1 | D110: 3500300 | E110: 0 | F110: 0 | G110: 0
A111: Выполнение функций органами местного самоуправления | B111: 5 | C111: 1 | D111: 3500300 | E111: 500 | F111: 0 | G111: 0
A112: Коммунальное хозяйство | B112: 5 | C112: 2 | D112: 0 | E112: 0 | F112: 0 | G112: 0
A113: Региональные целевые программы | B113: 5 | C113: 2 | D113: 5220000 | E113: 0 | F113: 0 | G113: 0
A114: Долгосрочная целевая программа «Энергосбережение и повышение энергетической эффективности на территории Иркутской области на 2011-2015 годы и на период до 2020 года» | B114: 5 | C114: 2 | D114: 5225400 | E114: 0 | F114: 0 | G114: 0
A115: Иные межбюджетные трансферты | B115: 5 | C115: 2 | D115: 5225400 | E115: 017 | F115: 0 | G115: 0
A116: Другие вопросы в области жилищно-коммунального хозяйства | B116: 5 | C116: 5 | D116: 0 | E116: 0 | F116: 4258 | G116: 4464.7
A117: Руководство и управление в сфере установленных функций органов государственной власти субъектов Российской Федерации и органов местного самоуправления | B117: 5 | C117: 5 | D117: 20000 | E117: 0 | F117: 4258 | G117: 4464.7
A118: Центральный аппарат | B118: 5 | C118: 5 | D118: 20400 | E118: 0 | F118: 4258 | G118: 4464.7
A119: Выполнение функций органами местного самоуправления | B119: 5 | C119: 5 | D119: 20400 | E119: 500 | F119: 4258 | G119: 4464.7
A120: ОХРАНА ОКРУЖАЮЩЕЙ СРЕДЫ | B120: 6 | C120: 0 | D120: 0 | E120: 0 | F120: 0 | G120: 0
A121: Другие вопросы в области охраны окружающей среды | B121: 6 | C121: 5 | D121: 0 | E121: 0 | F121: 0 | G121: 0
A122: Состояние окружающей среды и природопользования | B122: 6 | C122: 5 | D122: 4100000 | E122: 0 | F122: 0 | G122: 0
A123: Природоохранные мероприятия | B123: 6 | C123: 5 | D123: 4100100 | E123: 0 | F123: 0 | G123: 0
A124: Выполнение функций органами местного самоуправления | B124: 6 | C124: 5 | D124: 4100100 | E124: 500 | F124: 0 | G124: 0
A125: Региональные целевые программы | B125: 6 | C125: 5 | D125: 5220000 | E125: 0 | F125: 0 | G125: 0
A126: Долгосрочная целевая программа Иркутской области «Защита окружающей среды в Иркутской области на 2011-2015 годы» | B126: 6 | C126: 5 | D126: 5222500 | E126: 0 | F126: 0 | G126: 0
A127: Подпрограмма «Отходы производства и потребления в Иркутской области на 2011-2015 годы» | B127: 6 | C127: 5 | D127: 5222502 | E127: 0 | F127: 0 | G127: 0
A128: Выполнение функций органами местного самоуправления | B128: 6 | C128: 5 | D128: 5222502 | E128: 500 | F128: 0 | G128: 0
A129: ОБРАЗОВАНИЕ | B129: 7 | C129: 0 | D129: 0 | E129: 0 | F129: 348970.3 | G129: 346703.1
A130: Дошкольное образование | B130: 7 | C130: 1 | D130: 0 | E130: 0 | F130: 64603.4 | G130: 62906.1
A131: Детские дошкольные учреждения | B131: 7 | C131: 1 | D131: 4200000 | E131: 0 | F131: 61308.4 | G131: 61441.1
A132: Обеспечение деятельности подведомственных учреждений | B132: 7 | C132: 1 | D132: 4209900 | E132: 0 | F132: 61308.4 | G132: 61441.1
A133: Выполнение функций казенными учреждениями | B133: 7 | C133: 1 | D133: 4209900 | E133: 001 | F133: 61308.4 | G133: 61441.1
A134: Региональные целевые программы | B134: 7 | C134: 1 | D134: 5220000 | E134: 0 | F134: 0 | G134: 0
A135: Областная государственная целевая программа поддержки и развития учреждений дошкольного образования в Иркутской области на 2009-2014 годы | B135: 7 | C135: 1 | D135: 5223700 | E135: 0 | F135: 0 | G135: 0
A136: Выполнение функций казенными учреждениями | B136: 7 | C136: 1 | D136: 5223700 | E136: 001 | F136: 0 | G136: 0
A137: Долгосрочная целевая программа «Энергосбережение и повышение энергетической эффективности на территории Иркутской области на 2011-2015 годы и на период до 2020 года» | B137: 7 | C137: 1 | D137: 5225400 | E137: 0 | F137: 0 | G137: 0
A138: Выполнение функций казенными учреждениями | B138: 7 | C138: 1 | D138: 5225400 | E138: 001 | F138: 0 | G138: 0
A139: Выплата заработной платы с начислениями на нее педагогическим работникам муниципальных дошкольных образовательных учреждений и муниципальных учреждений дополнительного образования | B139: 7 | C139: 1 | D139: 5890000 | E139: 0 | F139: 1465 | G139: 1465
A140: Выполнение функций казенными учреждениями | B140: 7 | C140: 1 | D140: 5890000 | E140: 001 | F140: 1465 | G140: 1465
A141: Целевые программы муниципальных образований | B141: 7 | C141: 1 | D141: 7950000 | E141: 0 | F141: 1830 | G141: 0
A142: Долгосрочная целевая программа Черемховского районного муниципального образования "Повышение эффективности бюджетных расходов Черемховского районного муниципального образования на 2012-2013 годы" | B142: 7 | C142: 1 | D142: 7950200 | E142: 0 | F142: 0 | G142: 0
A143: Выполнение функций казенными учреждениями | B143: 7 | C143: 1 | D143: 7950200 | E143: 001 | F143: 0 | G143: 0
A144: Долгосрочная целевая программа "Безопасность образовательных учреждений на 2010-2014 гг." | B144: 7 | C144: 1 | D144: 7951000 | E144: 0 | F144: 830 | G144: 0
A145: Мероприятия по обеспечению пожарной безопасности | B145: 7 | C145: 1 | D145: 7951000 | E145: 450 | F145: 830 | G145: 0
A146: Долгосрочная целевая программа энергосбережения и повышения энергетической эффективности Черемховского районного муниципального образования на 2010-2015 годы | B146: 7 | C146: 1 | D146: 7951100 | E146: 0 | F146: 600 | G146: 0
A147: Мероприятия по повышению энергетической эффективности | B147: 7 | C147: 1 | D147: 7951100 | E147: 451 | F147: 600 | G147: 0
A148: Долгосрочная целевая программа "Развитие дошкольного образования на 2011-2014 гг." | B148: 7 | C148: 1 | D148: 7951700 | E148: 0 | F148: 0 | G148: 0
A149: Мероприятия в сфере образования | B149: 7 | C149: 1 | D149: 7951700 | E149: 022 | F149: 0 | G149: 0
A150: Долгосрочная целевая программа "Совершенствование дошкольного образования Черемховского района на 2011-2014 гг." | B150: 7 | C150: 1 | D150: 7951800 | E150: 0 | F150: 400 | G150: 0
A151: Мероприятия в сфере образования | B151: 7 | C151: 1 | D151: 7951800 | E151: 022 | F151: 400 | G151: 0
A152: Общее образование | B152: 7 | C152: 2 | D152: 0 | E152: 0 | F152: 276921.3 | G152: 276261.6
A153: Руководство и управление в сфере установленных функций органов государственной власти субъектов Российской Федерации и органов местного самоуправления | B153: 7 | C153: 2 | D153: 20000 | E153: 0 | F153: 238581.5 | G153: 238581.5
A154: Обеспечение государственных гарантий прав граждан на получение общедоступного и бесплатного дошкольного, начального общего, основного общего, среднего (полного) общего образования, а также дополнительного образования в общеобразовательных учреждениях | B154: 7 | C154: 2 | D154: 25000 | E154: 0 | F154: 238581.5 | G154: 238581.5
A155: Выполнение функций казенными учреждениями | B155: 7 | C155: 2 | D155: 25000 | E155: 001 | F155: 238581.5 | G155: 238581.5
A156: Школы - детские сады, школы начальные, неполные средние и средние | B156: 7 | C156: 2 | D156: 4210000 | E156: 0 | F156: 15782.6 | G156: 15808.4
A157: Обеспечение деятельности подведомственных учреждений | B157: 7 | C157: 2 | D157: 4219900 | E157: 0 | F157: 15782.6 | G157: 15808.4
A158: Выполнение функций казенными учреждениями | B158: 7 | C158: 2 | D158: 4219900 | E158: 001 | F158: 15782.6 | G158: 15808.4
A159: Учреждения по внешкольной работе с детьми | B159: 7 | C159: 2 | D159: 4230000 | E159: 0 | F159: 20340.1 | G159: 21257.8
A160: Обеспечение деятельности подведомственных учреждений | B160: 7 | C160: 2 | D160: 4239900 | E160: 0 | F160: 20340.1 | G160: 21257.8
A161: Выполнение функций казенными учреждениями | B161: 7 | C161: 2 | D161: 4239900 | E161: 001 | F161: 20340.1 | G161: 21257.8
A162: Мероприятия в области образования | B162: 7 | C162: 2 | D162: 4360000 | E162: 0 | F162: 0 | G162: 0
A163: Модернизация региональных систем образования | B163: 7 | C163: 2 | D163: 4362100 | E163: 0 | F163: 0 | G163: 0
A164: Модернизация региональных систем образования за счет средств федерального бюджета | B164: 7 | C164: 2 | D164: 4362101 | E164: 0 | F164: 0 | G164: 0
A165: Выполнение функций казенными учреждениями | B165: 7 | C165: 2 | D165: 4362101 | E165: 001 | F165: 0 | G165: 0
A166: Иные безвозмездные и безвозвратные перечисления | B166: 7 | C166: 2 | D166: 5200000 | E166: 0 | F166: 0 | G166: 0
A167: Ежемесячное денежное вознаграждение за классное руководство | B167: 7 | C167: 2 | D167: 5200900 | E167: 0 | F167: 0 | G167: 0
A168: Выполнение функций казенными учреждениями | B168: 7 | C168: 2 | D168: 5200900 | E168: 001 | F168: 0 | G168: 0
A169: Региональные целевые программы | B169: 7 | C169: 2 | D169: 5220000 | E169: 0 | F169: 0 | G169: 0
A170: Долгосрочная целевая программа «Модернизация объектов коммунальной инфраструктуры Иркутской области на 2011-2013 годы» | B170: 7 | C170: 2 | D170: 5222000 | E170: 0 | F170: 0 | G170: 0
A171: Подпрограмма «Подготовка объектов коммунальной инфраструктуры Иркутской области к отопительному сезону в 2011-2013 годах» | B171: 7 | C171: 2 | D171: 5222001 | E171: 0 | F171: 0 | G171: 0
A172: Выполнение функций казенными учреждениями | B172: 7 | C172: 2 | D172: 5222001 | E172: 001 | F172: 0 | G172: 0
A173: Долгосрочная целевая программа «Энергосбережение и повышение энергетической эффективности на территории Иркутской области на 2011-2015 годы и на период до 2020 года» | B173: 7 | C173: 2 | D173: 5225400 | E173: 0 | F173: 0 | G173: 0
A174: Выполнение функций казенными учреждениями | B174: 7 | C174: 2 | D174: 5225400 | E174: 001 | F174: 0 | G174: 0
A175: Выплата заработной платы с начислениями на нее педагогическим работникам муниципальных дошкольных образовательных учреждений и муниципальных учреждений дополнительного образования | B175: 7 | C175: 2 | D175: 5890000 | E175: 0 | F175: 540.1 | G175: 540.1
A176: Выполнение функций казенными учреждениями | B176: 7 | C176: 2 | D176: 5890000 | E176: 001 | F176: 540.1 | G176: 540.1
A177: Целевые программы муниципальных образований | B177: 7 | C177: 2 | D177: 7950000 | E177: 0 | F177: 1677 | G177: 73.8
A178: Долгосрочная целевая программа Черемховского районного муниципального образования "Повышение эффективности бюджетных расходов Черемховского районного муниципального образования на 2012-2013 годы" | B178: 7 | C178: 2 | D178: 7950200 | E178: 0 | F178: 0 | G178: 0
A179: Выполнение функций казенными учреждениями | B179: 7 | C179: 2 | D179: 7950200 | E179: 001 | F179: 0 | G179: 0
A180: Долгосрочная целевая программа "Безопасность образовательных учреждений на 2010-2014 гг." | B180: 7 | C180: 2 | D180: 7951000 | E180: 0 | F180: 970 | G180: 0
A181: Мероприятия по обеспечению пожарной безопасности | B181: 7 | C181: 2 | D181: 7951000 | E181: 450 | F181: 970 | G181: 0
A182: Долгосрочная целевая программа энергосбережения и повышения энергетической эффективности Черемховского районного муниципального образования на 2010-2015 годы | B182: 7 | C182: 2 | D182: 7951100 | E182: 0 | F182: 0 | G182: 0
A183: Мероприятия по повышению энергетической эффективности | B183: 7 | C183: 2 | D183: 7951100 | E183: 451 | F183: 0 | G183: 0
A184: Долгосрочная целевая программа "Ветхие школы Черемховского района" на 2011-2013 гг. | B184: 7 | C184: 2 | D184: 7951500 | E184: 0 | F184: 0 | G184: 0
A185: Мероприятия в сфере образования | B185: 7 | C185: 2 | D185: 7951500 | E185: 022 | F185: 0 | G185: 0
A186: Долгосрочная целевая программа "Совершенствование организации питания в образовательных учреждениях Черемховского района на 2011-2013гг." | B186: 7 | C186: 2 | D186: 7951600 | E186: 0 | F186: 600 | G186: 0
A187: Мероприятия в сфере образования | B187: 7 | C187: 2 | D187: 7951600 | E187: 022 | F187: 600 | G187: 0
A188: Долгосрочная целевая программа "Развитие культуры в Черемховском районном муниципальном образовании на период 2012-2016 гг." | B188: 7 | C188: 2 | D188: 7952000 | E188: 0 | F188: 107 | G188: 73.8
A189: Мероприятия по поддержке и развитию культуры, искусства, кинематографии | B189: 7 | C189: 2 | D189: 7952000 | E189: 023 | F189: 107 | G189: 73.8
A190: Профессиональная подготовка, переподготовка и повышение квалификации | B190: 7 | C190: 5 | D190: 0 | E190: 0 | F190: 127 | G190: 127
A191: Мероприятия по переподготовке и повышению квалификации | B191: 7 | C191: 5 | D191: 4340000 | E191: 0 | F191: 127 | G191: 127
A192: Выполнение функций казенными учреждениями | B192: 7 | C192: 5 | D192: 4340000 | E192: 001 | F192: 127 | G192: 127
A193: Выполнение функций органами местного самоуправления | B193: 7 | C193: 5 | D193: 4340000 | E193: 500 | F193: 0 | G193: 0
A194: Молодежная политика и оздоровление детей | B194: 7 | C194: 7 | D194: 0 | E194: 0 | F194: 212 | G194: 212
A195: Организационно-воспитательная работа с молодежью | B195: 7 | C195: 7 | D195: 4310000 | E195: 0 | F195: 46 | G195: 46
A196: Проведение мероприятий для детей и молодежи | B196: 7 | C196: 7 | D196: 4310100 | E196: 0 | F196: 46 | G196: 46
A197: Проведение мероприятия для детей и молодежи | B197: 7 | C197: 7 | D197: 4310100 | E197: 447 | F197: 46 | G197: 46
A198: Мероприятия по проведению оздоровительной кампании детей | B198: 7 | C198: 7 | D198: 4320000 | E198: 0 | F198: 126 | G198: 126
A199: Оплата стоимости набора продуктов питания для детей в организованных органами местного самоуправления оздоровительных лагерях с дневным пребыванием детей за счет средств областного бюджета | B199: 7 | C199: 7 | D199: 4320300 | E199: 0 | F199: 126 | G199: 126
A200: Оплата стоимости набора продуктов питания для детей в организованных органами местного самоуправления оздоровительных лагерях с дневным пребыванием детей за счет средств местного бюджета | B200: 7 | C200: 7 | D200: 4320302 | E200: 0 | F200: 126 | G200: 126
A201: Выполнение функций казенными учреждениями | B201: 7 | C201: 7 | D201: 4320302 | E201: 001 | F201: 126 | G201: 126
A202: Региональные целевые программы | B202: 7 | C202: 7 | D202: 5220000 | E202: 0 | F202: 0 | G202: 0
A203: Долгосрочная целевая программа Иркутской области "Организация и обеспечение отдыха и оздоровления детей в Иркутской области на 2012-2014гг." | B203: 7 | C203: 7 | D203: 5226200 | E203: 0 | F203: 0 | G203: 0
A204: Выполнение функций казенными учреждениями | B204: 7 | C204: 7 | D204: 5226200 | E204: 001 | F204: 0 | G204: 0
A205: Целевые программы муниципальных образований | B205: 7 | C205: 7 | D205: 7950000 | E205: 0 | F205: 40 | G205: 40
A206: Долгосрочная целевая программа "Комплексные меры профилактики злоупотребления наркотическими средствами и психотропными веществами в Черемховском районном муниципальном образовании на 2011-2013 гг." | B206: 7 | C206: 7 | D206: 7951300 | E206: 0 | F206: 0 | G206: 0
A207: Выполнение функций органами местного самоуправления | B207: 7 | C207: 7 | D207: 7951300 | E207: 500 | F207: 0 | G207: 0
A208: Долгосрочная целевая программа "Молодежная политика в Черемховском районном муниципальном образовании" на 2013-2015 гг. | B208: 7 | C208: 7 | D208: 7952500 | E208: 0 | F208: 40 | G208: 40
A209: Проведение мероприятия для детей и молодежи | B209: 7 | C209: 7 | D209: 7952500 | E209: 447 | F209: 40 | G209: 40
A210: Другие вопросы в области образования | B210: 7 | C210: 9 | D210: 0 | E210: 0 | F210: 7106.6 | G210: 7196.4
A211: Руководство и управление в сфере установленных функций органов государственной власти субъектов Российской Федерации и органов местного самоуправления | B211: 7 | C211: 9 | D211: 20000 | E211: 0 | F211: 2106.6 | G211: 2196.4
A212: Центральный аппарат | B212: 7 | C212: 9 | D212: 20400 | E212: 0 | F212: 2106.6 | G212: 2196.4
A213: Выполнение функций органами местного самоуправления | B213: 7 | C213: 9 | D213: 20400 | E213: 500 | F213: 2106.6 | G213: 2196.4
A214: Учебно-методические кабинеты, централизованные бухгалтерии, группы хозяйственного обслуживания, учебные фильмотеки, межшкольные учебно-производственные комбинаты, логопедические пункты | B214: 7 | C214: 9 | D214: 4520000 | E214: 0 | F214: 5000 | G214: 5000
A215: Субсидии бюджетным учреждениям на финансовое обеспечение муниципального задания на оказание муниципальных услуг (выполнение работ) | B215: 7 | C215: 9 | D215: 4520000 | E215: 611 | F215: 5000 | G215: 5000
... 98 more rows

Sheet прил6
A16: Распределение бюджетных ассигнований по разделам и подразделам классификации расходов бюджетов Черемховского районного муниципального образования на 2013 год
A19: Наименование показателя | B19: Код | D19: Сумма, тыс. руб.
B20: раздела | C20: подраздела
A21: 1 | B21: 2 | C21: 3 | D21: 4
A22: Руководство и управление в сфере установленных функций органов государственной власти субъектов Российской Федерации и органов местного самоуправления | B22: 1 | C22: 2 | D22: 20000
A23: Глава муниципального образования | B23: 1 | C23: 2 | D23: 20300
A24: Выполнение функций органами местного самоуправления | B24: 1 | C24: 2 | D24: 20300
A25: Руководство и управление в сфере установленных функций органов государственной власти субъектов Российской Федерации и органов местного самоуправления | B25: 1 | C25: 3 | D25: 20000
A26: Центральный аппарат | B26: 1 | C26: 3 | D26: 20400
A27: Выполнение функций органами местного самоуправления | B27: 1 | C27: 3 | D27: 20400
A28: Председатель представительного органа муниципального образования | B28: 1 | C28: 3 | D28: 21100
A29: Выполнение функций органами местного самоуправления | B29: 1 | C29: 3 | D29: 21100
A30: Руководство и управление в сфере установленных функций органов государственной власти субъектов Российской Федерации и органов местного самоуправления | B30: 1 | C30: 4 | D30: 20000
A31: Центральный аппарат | B31: 1 | C31: 4 | D31: 20400
A32: Выполнение функций органами местного самоуправления | B32: 1 | C32: 4 | D32: 20400
A33: Региональные целевые программы | B33: 1 | C33: 4 | D33: 5220000
A34: Долгосрочная целевая программа «Энергосбережение и повышение энергетической эффективности на территории Иркутской области на 2011-2015 годы и на период до 2020 года» | B34: 1 | C34: 4 | D34: 5225400
A35: Выполнение функций органами местного самоуправления | B35: 1 | C35: 4 | D35: 5225400
A36: Целевые программы муниципальных образований | B36: 1 | C36: 4 | D36: 7950000
A37: Долгосрочная целевая программа энергосбережения и повышения энергетической эффективности Черемховского районного муниципального образования на 2010-2015 годы | B37: 1 | C37: 4 | D37: 7951100
A38: Мероприятия по повышению энергетической эффективности | B38: 1 | C38: 4 | D38: 7951100
A39: Руководство и управление в сфере установленных функций органов государственной власти субъектов Российской Федерации и органов местного самоуправления | B39: 1 | C39: 6 | D39: 20000
A40: Центральный аппарат | B40: 1 | C40: 6 | D40: 20400
A41: Выполнение функций органами местного самоуправления | B41: 1 | C41: 6 | D41: 20400
A42: Руководитель контрольно-счетной палаты муниципального образования и его заместители | B42: 1 | C42: 6 | D42: 22500
A43: Выполнение функций органами местного самоуправления | B43: 1 | C43: 6 | D43: 22500
A44: Целевые программы муниципальных образований | B44: 1 | C44: 6 | D44: 7950000
A45: Долгосрочная целевая программа Черемховского районного муниципального образования "Повышение эффективности бюджетных расходов Черемховского районного муниципального образования на 2012-2013 годы" | B45: 1 | C45: 6 | D45: 7950200
A46: Выполнение функций органами местного самоуправления | B46: 1 | C46: 6 | D46: 7950200
A47: Проведение выборов и референдумов | B47: 1 | C47: 7 | D47: 200000
A48: Проведение выборов и референдумов | B48: 1 | C48: 7 | D48: 200000
A49: Проведение выборов в представительные органы муниципального образования | B49: 1 | C49: 7 | D49: 200002
A50: Выполнение функций органами местного самоуправления | B50: 1 | C50: 7 | D50: 200002
A51: Резервные фонды | B51: 1 | C51: 11 | D51: 700000
A52: Резервные фонды местных администраций | B52: 1 | C52: 11 | D52: 700500
A53: Выполнение функций органами местного самоуправления | B53: 1 | C53: 11 | D53: 700500
A54: Руководство и управление в сфере установленных функций органов государственной власти субъектов Российской Федерации и органов местного самоуправления | B54: 1 | C54: 13 | D54: 20000
A55: Центральный аппарат | B55: 1 | C55: 13 | D55: 20400
A56: Выполнение функций органами местного самоуправления | B56: 1 | C56: 13 | D56: 20400
A57: Осуществление областных государственных полномочий по хранению, комплектованию, учету и использованию архивных документов, относящихся к государственной собственности Иркутской области | B57: 1 | C57: 13 | D57: 24000
A58: Выполнение функций органами местного самоуправления | B58: 1 | C58: 13 | D58: 24000
A59: Осуществление областных государственных полномочий по определению персонального состава и обеспечению деятельности административных комиссий | B59: 1 | C59: 13 | D59: 24300
A60: Выполнение функций органами местного самоуправления | B60: 1 | C60: 13 | D60: 24300
A61: Осуществление отдельных государственных полномочий в области производства и оборота этилового спирта, алкогольной и спиртосодержащей продукции | B61: 1 | C61: 13 | D61: 24400
A62: Выполнение функций органами местного самоуправления | B62: 1 | C62: 13 | D62: 24400
A63: Осуществление отдельных областных государственных полномочий в области охраны труда | B63: 1 | C63: 13 | D63: 24500
A64: Выполнение функций органами местного самоуправления | B64: 1 | C64: 13 | D64: 24500
A65: Обеспечение деятельности подведомственных учреждений | B65: 1 | C65: 13 | D65: 29900
A66: Выполнение функций казенными учреждениями | B66: 1 | C66: 13 | D66: 29900
A67: Субсидии бюджетным учреждениям на финансовое обеспечение муниципального задания на оказание муниципальных услуг (выполнение работ) | B67: 1 | C67: 13 | D67: 29900
A68: Реализация государственных функций, связанных с общегосударственным управлением | B68: 1 | C68: 13 | D68: 920000
A69: Выполнение других обязательств государства | B69: 1 | C69: 13 | D69: 920300
A70: Выполнение функций органами местного самоуправления | B70: 1 | C70: 13 | D70: 920300
A71: Учреждения по обеспечению хозяйственного обслуживания | B71: 1 | C71: 13 | D71: 930000
A72: Субсидии бюджетным учреждениям на финансовое обеспечение муниципального задания на оказание муниципальных услуг (выполнение работ) | B72: 1 | C72: 13 | D72: 930000
A73: Целевые программы муниципальных образований | B73: 1 | C73: 13 | D73: 7950000
A74: Долгосрочная целевая программа "Улучшение условий и охраны труда в Черемховском районе на 2011-2013гг." | B74: 1 | C74: 13 | D74: 7951400
A75: Выполнение функций органами местного самоуправления | B75: 1 | C75: 13 | D75: 7951400
A76: Долгосрочная целевая программа "Инвентаризация муниципальных объектов недвижимости Черемховского районного муниципального образования на 2012-2014 годы" | B76: 1 | C76: 13 | D76: 7951900
A77: Выполнение функций органами местного самоуправления | B77: 1 | C77: 13 | D77: 7951900
A78: Комплексная программа "Профилактика правонарушений в Черемховском районном муниципальном образовании на 2013-2016 годы" | B78: 1 | C78: 13 | D78: 7952600
A79: Выполнение функций органами местного самоуправления | B79: 1 | C79: 13 | D79: 7952600
A80: Долгосрочная целевая программа "Поддержка молодых педагогов на территории Черемховского районного муниципального образования" на 2012-2013 годы | B80: 1 | C80: 13 | D80: 7952700
A81: Выполнение функций органами местного самоуправления | B81: 1 | C81: 13 | D81: 7952700
A82: Региональные целевые программы | B82: 4 | C82: 9 | D82: 5220000
A83: Долгосрочная целевая программа "Развитие автомобильных дорог общего пользования регионального или межмуниципального значения и местного значения в Иркутской области на 2011 - 2014 годы" | B83: 4 | C83: 9 | D83: 5224700
A84: Выполнение функций органами местного самоуправления | B84: 4 | C84: 9 | D84: 5224700
A85: Целевые программы муниципальных образований | B85: 4 | C85: 9 | D85: 7950000
A86: Долгосрочная целевая программа "Инвентаризация муниципальных объектов недвижимости Черемховского районного муниципального образования на 2012-2014 годы" | B86: 4 | C86: 9 | D86: 7951900
A87: Выполнение функций органами местного самоуправления | B87: 4 | C87: 9 | D87: 7951900
A88: Долгосрочная целевая программа "Развитие автомобильных дорог Черемховского районного муниципального образования на 2013-2015 годы" | B88: 4 | C88: 9 | D88: 7952300
A89: Выполнение функций органами местного самоуправления | B89: 4 | C89: 9 | D89: 7952300
A90: Мероприятия в области строительства, архитектуры и градостроительства | B90: 4 | C90: 12 | D90: 3380000
A91: Подготовка проектов правил землепользования и застройки муниципальных образований Черемховского районного муниципального образования | B91: 4 | C91: 12 | D91: 3380200
A92: Выполнение функций органами местного самоуправления | B92: 4 | C92: 12 | D92: 3380200
A93: Целевые программы муниципальных образований | B93: 4 | C93: 12 | D93: 7950000
A94: Долгосрочная целевая программа "Инвентаризация муниципальных объектов недвижимости Черемховского районного муниципального образования на 2012-2014 годы" | B94: 4 | C94: 12 | D94: 7951900
A95: Выполнение функций органами местного самоуправления | B95: 4 | C95: 12 | D95: 7951900
A96: Долгосрочная целевая программа "Поддержка и развитие малого и среднего предпринимательства в Черемховском районе" на 2013-2014 годы | B96: 4 | C96: 12 | D96: 7952200
A97: Выполнение функций органами местного самоуправления | B97: 4 | C97: 12 | D97: 7952200
A98: Поддержка жилищного хозяйства | B98: 5 | C98: 1 | D98: 3500000
A99: Мероприятия в области жилищного хозяйства | B99: 5 | C99: 1 | D99: 3500300
A100: Выполнение функций органами местного самоуправления | B100: 5 | C100: 1 | D100: 3500300
A101: Региональные целевые программы | B101: 5 | C101: 2 | D101: 5220000
A102: Долгосрочная целевая программа «Энергосбережение и повышение энергетической эффективности на территории Иркутской области на 2011-2015 годы и на период до 2020 года» | B102: 5 | C102: 2 | D102: 5225400
A103: Иные межбюджетные трансферты | B103: 5 | C103: 2 | D103: 5225400
A104: Руководство и управление в сфере установленных функций органов государственной власти субъектов Российской Федерации и органов местного самоуправления | B104: 5 | C104: 5 | D104: 20000
A105: Центральный аппарат | B105: 5 | C105: 5 | D105: 20400
A106: Выполнение функций органами местного самоуправления | B106: 5 | C106: 5 | D106: 20400
A107: Состояние окружающей среды и природопользования | B107: 6 | C107: 5 | D107: 4100000
A108: Природоохранные мероприятия | B108: 6 | C108: 5 | D108: 4100100
A109: Выполнение функций органами местного самоуправления | B109: 6 | C109: 5 | D109: 4100100
A110: Региональные целевые программы | B110: 6 | C110: 5 | D110: 5220000
A111: Долгосрочная целевая программа Иркутской области «Защита окружающей среды в Иркутской области на 2011-2015 годы» | B111: 6 | C111: 5 | D111: 5222500
A112: Подпрограмма «Отходы производства и потребления в Иркутской области на 2011-2015 годы» | B112: 6 | C112: 5 | D112: 5222502
A113: Выполнение функций органами местного самоуправления | B113: 6 | C113: 5 | D113: 5222502
A114: Детские дошкольные учреждения | B114: 7 | C114: 1 | D114: 4200000
A115: Обеспечение деятельности подведомственных учреждений | B115: 7 | C115: 1 | D115: 4209900
A116: Выполнение функций казенными учреждениями | B116: 7 | C116: 1 | D116: 4209900
A117: Региональные целевые программы | B117: 7 | C117: 1 | D117: 5220000
A118: Областная государственная целевая программа поддержки и развития учреждений дошкольного образования в Иркутской области на 2009-2014 годы | B118: 7 | C118: 1 | D118: 5223700
A119: Выполнение функций казенными учреждениями | B119: 7 | C119: 1 | D119: 5223700
A120: Долгосрочная целевая программа «Энергосбережение и повышение энергетической эффективности на территории Иркутской области на 2011-2015 годы и на период до 2020 года» | B120: 7 | C120: 1 | D120: 5225400
A121: Выполнение функций казенными учреждениями | B121: 7 | C121: 1 | D121: 5225400
A122: Выплата заработной платы с начислениями на нее педагогическим работникам муниципальных дошкольных образовательных учреждений и муниципальных учреждений дополнительного образования | B122: 7 | C122: 1 | D122: 5890000
A123: Выполнение функций казенными учреждениями | B123: 7 | C123: 1 | D123: 5890000
A124: Целевые программы муниципальных образований | B124: 7 | C124: 1 | D124: 7950000
A125: Долгосрочная целевая программа Черемховского районного муниципального образования "Повышение эффективности бюджетных расходов Черемховского районного муниципального образования на 2012-2013 годы" | B125: 7 | C125: 1 | D125: 7950200
A126: Выполнение функций казенными учреждениями | B126: 7 | C126: 1 | D126: 7950200
A127: Долгосрочная целевая программа "Безопасность образовательных учреждений на 2010-2014 гг." | B127: 7 | C127: 1 | D127: 7951000
A128: Мероприятия по обеспечению пожарной безопасности | B128: 7 | C128: 1 | D128: 7951000
A129: Долгосрочная целевая программа энергосбережения и повышения энергетической эффективности Черемховского районного муниципального образования на 2010-2015 годы | B129: 7 | C129: 1 | D129: 7951100
A130: Мероприятия по повышению энергетической эффективности | B130: 7 | C130: 1 | D130: 7951100
A131: Долгосрочная целевая программа "Развитие дошкольного образования на 2011-2014 гг." | B131: 7 | C131: 1 | D131: 7951700
A132: Мероприятия в сфере образования | B132: 7 | C132: 1 | D132: 7951700
A133: Долгосрочная целевая программа "Совершенствование дошкольного образования Черемховского района на 2011-2014 гг." | B133: 7 | C133: 1 | D133: 7951800
A134: Мероприятия в сфере образования | B134: 7 | C134: 1 | D134: 7951800
A135: Руководство и управление в сфере установленных функций органов государственной власти субъектов Российской Федерации и органов местного самоуправления | B135: 7 | C135: 2 | D135: 20000
A136: Обеспечение государственных гарантий прав граждан на получение общедоступного и бесплатного дошкольного, начального общего, основного общего, среднего (полного) общего образования, а также дополнительного образования в общеобразовательных учреждениях | B136: 7 | C136: 2 | D136: 25000
A137: Выполнение функций казенными учреждениями | B137: 7 | C137: 2 | D137: 25000
A138: Школы - детские сады, школы начальные, неполные средние и средние | B138: 7 | C138: 2 | D138: 4210000
A139: Обеспечение деятельности подведомственных учреждений | B139: 7 | C139: 2 | D139: 4219900
A140: Выполнение функций казенными учреждениями | B140: 7 | C140: 2 | D140: 4219900
A141: Учреждения по внешкольной работе с детьми | B141: 7 | C141: 2 | D141: 4230000
A142: Обеспечение деятельности подведомственных учреждений | B142: 7 | C142: 2 | D142: 4239900
A143: Выполнение функций казенными учреждениями | B143: 7 | C143: 2 | D143: 4239900
A144: Мероприятия в области образования | B144: 7 | C144: 2 | D144: 4360000
A145: Модернизация региональных систем образования | B145: 7 | C145: 2 | D145: 4362100
A146: Модернизация региональных систем образования за счет средств федерального бюджета | B146: 7 | C146: 2 | D146: 4362101
A147: Выполнение функций казенными учреждениями | B147: 7 | C147: 2 | D147: 4362101
A148: Иные безвозмездные и безвозвратные перечисления | B148: 7 | C148: 2 | D148: 5200000
A149: Ежемесячное денежное вознаграждение за классное руководство | B149: 7 | C149: 2 | D149: 5200900
A150: Выполнение функций казенными учреждениями | B150: 7 | C150: 2 | D150: 5200900
A151: Региональные целевые программы | B151: 7 | C151: 2 | D151: 5220000
A152: Долгосрочная целевая программа «Модернизация объектов коммунальной инфраструктуры Иркутской области на 2011-2013 годы» | B152: 7 | C152: 2 | D152: 5222000
A153: Подпрограмма «Подготовка объектов коммунальной инфраструктуры Иркутской области к отопительному сезону в 2011-2013 годах» | B153: 7 | C153: 2 | D153: 5222001
A154: Выполнение функций казенными учреждениями | B154: 7 | C154: 2 | D154: 5222001
A155: Долгосрочная целевая программа «Энергосбережение и повышение энергетической эффективности на территории Иркутской области на 2011-2015 годы и на период до 2020 года» | B155: 7 | C155: 2 | D155: 5225400
A156: Выполнение функций казенными учреждениями | B156: 7 | C156: 2 | D156: 5225400
A157: Выплата заработной платы с начислениями на нее педагогическим работникам муниципальных дошкольных образовательных учреждений и муниципальных учреждений дополнительного образования | B157: 7 | C157: 2 | D157: 5890000
A158: Выполнение функций казенными учреждениями | B158: 7 | C158: 2 | D158: 5890000
A159: Целевые программы муниципальных образований | B159: 7 | C159: 2 | D159: 7950000
A160: Долгосрочная целевая программа Черемховского районного муниципального образования "Повышение эффективности бюджетных расходов Черемховского районного муниципального образования на 2012-2013 годы" | B160: 7 | C160: 2 | D160: 7950200
A161: Выполнение функций казенными учреждениями | B161: 7 | C161: 2 | D161: 7950200
A162: Долгосрочная целевая программа "Безопасность образовательных учреждений на 2010-2014 гг." | B162: 7 | C162: 2 | D162: 7951000
A163: Мероприятия по обеспечению пожарной безопасности | B163: 7 | C163: 2 | D163: 7951000
A164: Долгосрочная целевая программа энергосбережения и повышения энергетической эффективности Черемховского районного муниципального образования на 2010-2015 годы | B164: 7 | C164: 2 | D164: 7951100
A165: Мероприятия по повышению энергетической эффективности | B165: 7 | C165: 2 | D165: 7951100
A166: Долгосрочная целевая программа "Ветхие школы Черемховского района" на 2011-2013 гг. | B166: 7 | C166: 2 | D166: 7951500
A167: Мероприятия в сфере образования | B167: 7 | C167: 2 | D167: 7951500
A168: Долгосрочная целевая программа "Совершенствование организации питания в образовательных учреждениях Черемховского района на 2011-2013гг." | B168: 7 | C168: 2 | D168: 7951600
A169: Мероприятия в сфере образования | B169: 7 | C169: 2 | D169: 7951600
A170: Долгосрочная целевая программа "Развитие культуры в Черемховском районном муниципальном образовании на период 2012-2016 гг." | B170: 7 | C170: 2 | D170: 7952000
A171: Мероприятия по поддержке и развитию культуры, искусства, кинематографии | B171: 7 | C171: 2 | D171: 7952000
A172: Мероприятия по переподготовке и повышению квалификации | B172: 7 | C172: 5 | D172: 4340000
A173: Выполнение функций казенными учреждениями | B173: 7 | C173: 5 | D173: 4340000
A174: Выполнение функций органами местного самоуправления | B174: 7 | C174: 5 | D174: 4340000
A175: Организационно-воспитательная работа с молодежью | B175: 7 | C175: 7 | D175: 4310000
A176: Проведение мероприятий для детей и молодежи | B176: 7 | C176: 7 | D176: 4310100
A177: Проведение мероприятия для детей и молодежи | B177: 7 | C177: 7 | D177: 4310100
A178: Мероприятия по проведению оздоровительной кампании детей | B178: 7 | C178: 7 | D178: 4320000
A179: Оплата стоимости набора продуктов питания для детей в организованных органами местного самоуправления оздоровительных лагерях с дневным пребыванием детей за счет средств областного бюджета | B179: 7 | C179: 7 | D179: 4320300
A180: Оплата стоимости набора продуктов питания для детей в организованных органами местного самоуправления оздоровительных лагерях с дневным пребыванием детей за счет средств местного бюджета | B180: 7 | C180: 7 | D180: 4320302
A181: Выполнение функций казенными учреждениями | B181: 7 | C181: 7 | D181: 4320302
A182: Региональные целевые программы | B182: 7 | C182: 7 | D182: 5220000
A183: Долгосрочная целевая программа Иркутской области "Организация и обеспечение отдыха и оздоровления детей в Иркутской области на 2012-2014гг." | B183: 7 | C183: 7 | D183: 5226200
A184: Выполнение функций казенными учреждениями | B184: 7 | C184: 7 | D184: 5226200
A185: Целевые программы муниципальных образований | B185: 7 | C185: 7 | D185: 7950000
A186: Долгосрочная целевая программа "Комплексные меры профилактики злоупотребления наркотическими средствами и психотропными веществами в Черемховском районном муниципальном образовании на 2011-2013 гг." | B186: 7 | C186: 7 | D186: 7951300
A187: Выполнение функций органами местного самоуправления | B187: 7 | C187: 7 | D187: 7951300
A188: Долгосрочная целевая программа "Молодежная политика в Черемховском районном муниципальном образовании" на 2013-2015 гг. | B188: 7 | C188: 7 | D188: 7952500
A189: Проведение мероприятия для детей и молодежи | B189: 7 | C189: 7 | D189: 7952500
A190: Руководство и управление в сфере установленных функций органов государственной власти субъектов Российской Федерации и органов местного самоуправления | B190: 7 | C190: 9 | D190: 20000
A191: Центральный аппарат | B191: 7 | C191: 9 | D191: 20400
A192: Выполнение функций органами местного самоуправления | B192: 7 | C192: 9 | D192: 20400
A193: Учебно-методические кабинеты, централизованные бухгалтерии, группы хозяйственного обслуживания, учебные фильмотеки, межшкольные учебно-производственные комбинаты, логопедические пункты | B193: 7 | C193: 9 | D193: 4520000
A194: Субсидии бюджетным учреждениям на финансовое обеспечение муниципального задания на оказание муниципальных услуг (выполнение работ) | B194: 7 | C194: 9 | D194: 4520000
A195: Учреждения культуры и мероприятия в сфере культуры и кинематографии | B195: 8 | C195: 1 | D195: 4400000
A196: Комплектование книжных фондов библиотек муниципальных образований и государственных библиотек городов Москвы и Санкт-Петербурга | B196: 8 | C196: 1 | D196: 4400200
A197: Комплектование книжных фондов библиотек муниципальных образований и государственных библиотек городов Москвы и Санкт-Петербурга за счет средств федерального бюджета | B197: 8 | C197: 1 | D197: 4400201
A198: Выполнение функций казенными учреждениями | B198: 8 | C198: 1 | D198: 4400201
A199: Комплектование книжных фондов библиотек муниципальных образований и государственных библиотек городов Москвы и Санкт-Петербурга за счет областного бюджета | B199: 8 | C199: 1 | D199: 4400202
A200: Выполнение функций казенными учреждениями | B200: 8 | C200: 1 | D200: 4400202
A201: Обеспечение деятельности подведомственных учреждений | B201: 8 | C201: 1 | D201: 4409900
A202: Выполнение функций казенными учреждениями | B202: 8 | C202: 1 | D202: 4409900
A203: Музеи и постоянные выставки | B203: 8 | C203: 1 | D203: 4410000
A204: Обеспечение деятельности подведомственных учреждений | B204: 8 | C204: 1 | D204: 4419900
A205: Выполнение функций казенными учреждениями | B205: 8 | C205: 1 | D205: 4419900
A206: Библиотеки | B206: 8 | C206: 1 | D206: 4420000
A207: Обеспечение деятельности подведомственных учреждений | B207: 8 | C207: 1 | D207: 4429900
A208: Выполнение функций казенными учреждениями | B208: 8 | C208: 1 | D208: 4429900
A209: Региональные целевые программы | B209: 8 | C209: 1 | D209: 5220000
A210: Долгосрочная целевая программа Иркутской области «100 модельных домов культуры Приангарью» на 2011-2013 годы | B210: 8 | C210: 1 | D210: 5225500
A211: Выполнение функций казенными учреждениями | B211: 8 | C211: 1 | D211: 5225500
A212: Целевые программы муниципальных образований | B212: 8 | C212: 1 | D212: 7950000
A213: Долгосрочная целевая программа Черемховского районного муниципального образования "Повышение эффективности бюджетных расходов Черемховского районного муниципального образования на 2012-2013 годы" | B213: 8 | C213: 1 | D213: 7950200
A214: Выполнение функций казенными учреждениями | B214: 8 | C214: 1 | D214: 7950200
A215: Долгосрочная целевая программа энергосбережения и повышения энергетической эффективности Черемховского районного муниципального образования на 2010-2015 годы | B215: 8 | C215: 1 | D215: 7951100
A216: Мероприятия по повышению энергетической эффективности | B216: 8 | C216: 1 | D216: 7951100
A217: Долгосрочная целевая программа "Развитие культуры в Черемховском районном муниципальном образовании на период 2012-2016 гг." | B217: 8 | C217: 1 | D217: 7952000
... 97 more rows

Sheet прил7 (hidden)
A14: Распределение бюджетных ассигнований по разделам, подразделам классификации расходов бюджетов на плановый период 2014 и 2015 годов
A17: Наименование показателя | B17: Код | F17: Сумма, тыс.руб.
B18: раздела | C18: подраздела | D18: целевой статьи | E18: вида расходов | F18: 2014 | G18: 2015
A19: 1 | B19: 2 | C19: 3 | D19: 4 | E19: 5 | F19: 6 | G19: 7
A20: ОБЩЕГОСУДАРСТВЕННЫЕ ВОПРОСЫ | B20: 1 | C20: 0 | D20: 0 | E20: 0 | F20: 57173.4 | G20: 56134.3
A21: Функционирование высшего должностного лица субъекта Российской Федерации и муниципального образования | B21: 1 | C21: 2 | D21: 0 | E21: 0 | F21: 1403 | G21: 1472.1
A22: Руководство и управление в сфере установленных функций органов государственной власти субъектов Российской Федерации и органов местного самоуправления | B22: 1 | C22: 2 | D22: 20000 | E22: 0 | F22: 1403 | G22: 1472.1
A23: Глава муниципального образования | B23: 1 | C23: 2 | D23: 20300 | E23: 0 | F23: 1403 | G23: 1472.1
A24: Выполнение функций органами местного самоуправления | B24: 1 | C24: 2 | D24: 20300 | E24: 500 | F24: 1403 | G24: 1472.1
A25: Функционирование законодательных (представительных) органов государственной власти и представительных органов муниципальных образований | B25: 1 | C25: 3 | D25: 0 | E25: 0 | F25: 940.5 | G25: 986.3
A26: Руководство и управление в сфере установленных функций органов государственной власти субъектов Российской Федерации и органов местного самоуправления | B26: 1 | C26: 3 | D26: 20000 | E26: 0 | F26: 940.5 | G26: 986.3
A27: Центральный аппарат | B27: 1 | C27: 3 | D27: 20400 | E27: 0 | F27: 289 | G27: 302
A28: Выполнение функций органами местного самоуправления | B28: 1 | C28: 3 | D28: 20400 | E28: 500 | F28: 289 | G28: 302
A29: Председатель представительного органа муниципального образования | B29: 1 | C29: 3 | D29: 21100 | E29: 0 | F29: 651.5 | G29: 684.3
A30: Выполнение функций органами местного самоуправления | B30: 1 | C30: 3 | D30: 21100 | E30: 500 | F30: 651.5 | G30: 684.3
A31: Функционирование Правительства Российской Федерации, высших исполнительных органов государственной власти субъектов Российской Федерации, местных администраций | B31: 1 | C31: 4 | D31: 0 | E31: 0 | F31: 20490.6 | G31: 21389.4
A32: Руководство и управление в сфере установленных функций органов государственной власти субъектов Российской Федерации и органов местного самоуправления | B32: 1 | C32: 4 | D32: 20000 | E32: 0 | F32: 20490.6 | G32: 21389.4
A33: Центральный аппарат | B33: 1 | C33: 4 | D33: 20400 | E33: 0 | F33: 20490.6 | G33: 21389.4
A34: Выполнение функций органами местного самоуправления | B34: 1 | C34: 4 | D34: 20400 | E34: 500 | F34: 20490.6 | G34: 21389.4
A35: Региональные целевые программы | B35: 1 | C35: 4 | D35: 5220000 | E35: 0 | F35: 0 | G35: 0
A36: Долгосрочная целевая программа «Энергосбережение и повышение энергетической эффективности на территории Иркутской области на 2011-2015 годы и на период до 2020 года» | B36: 1 | C36: 4 | D36: 5225400 | E36: 0 | F36: 0 | G36: 0
A37: Выполнение функций органами местного самоуправления | B37: 1 | C37: 4 | D37: 5225400 | E37: 500 | F37: 0 | G37: 0
A38: Целевые программы муниципальных образований | B38: 1 | C38: 4 | D38: 7950000 | E38: 0 | F38: 0 | G38: 0
A39: Долгосрочная целевая программа энергосбережения и повышения энергетической эффективности Черемховского районного муниципального образования на 2010-2015 годы | B39: 1 | C39: 4 | D39: 7951100 | E39: 0 | F39: 0 | G39: 0
A40: Мероприятия по повышению энергетической эффективности | B40: 1 | C40: 4 | D40: 7951100 | E40: 451 | F40: 0 | G40: 0
A41: Обеспечение деятельности финансовых, налоговых и таможенных органов и органов финансового (финансово-бюджетного) надзора | B41: 1 | C41: 6 | D41: 0 | E41: 0 | F41: 7459.3 | G41: 7789.5
A42: Руководство и управление в сфере установленных функций органов государственной власти субъектов Российской Федерации и органов местного самоуправления | B42: 1 | C42: 6 | D42: 20000 | E42: 0 | F42: 7459.3 | G42: 7789.5
A43: Центральный аппарат | B43: 1 | C43: 6 | D43: 20400 | E43: 0 | F43: 6674.1 | G43: 6964.3
A44: Выполнение функций органами местного самоуправления | B44: 1 | C44: 6 | D44: 20400 | E44: 500 | F44: 6674.1 | G44: 6964.3
A45: Руководитель контрольно-счетной палаты муниципального образования и его заместители | B45: 1 | C45: 6 | D45: 22500 | E45: 0 | F45: 785.2 | G45: 825.2
A46: Выполнение функций органами местного самоуправления | B46: 1 | C46: 6 | D46: 22500 | E46: 500 | F46: 785.2 | G46: 825.2
A47: Целевые программы муниципальных образований | B47: 1 | C47: 6 | D47: 7950000 | E47: 0 | F47: 0 | G47: 0
A48: Долгосрочная целевая программа Черемховского районного муниципального образования "Повышение эффективности бюджетных расходов Черемховского районного муниципального образования на 2012-2013 годы" | B48: 1 | C48: 6 | D48: 7950200 | E48: 0 | F48: 0 | G48: 0
A49: Выполнение функций органами местного самоуправления | B49: 1 | C49: 6 | D49: 7950200 | E49: 500 | F49: 0 | G49: 0
A50: Обеспечение проведения выборов и референдумов | B50: 1 | C50: 7 | D50: 0 | E50: 0 | F50: 2500 | G50: 0
A51: Проведение выборов и референдумов | B51: 1 | C51: 7 | D51: 200000 | E51: 0 | F51: 2500 | G51: 0
A52: Проведение выборов и референдумов | B52: 1 | C52: 7 | D52: 200000 | E52: 0 | F52: 2500 | G52: 0
A53: Проведение выборов в представительные органы муниципального образования | B53: 1 | C53: 7 | D53: 200002 | E53: 0 | F53: 2500 | G53: 0
A54: Выполнение функций органами местного самоуправления | B54: 1 | C54: 7 | D54: 200002 | E54: 500 | F54: 2500 | G54: 0
A55: Резервные фонды | B55: 1 | C55: 11 | D55: 0 | E55: 0 | F55: 300 | G55: 300
A56: Резервные фонды | B56: 1 | C56: 11 | D56: 700000 | E56: 0 | F56: 300 | G56: 300
A57: Резервные фонды местных администраций | B57: 1 | C57: 11 | D57: 700500 | E57: 0 | F57: 300 | G57: 300
A58: Выполнение функций органами местного самоуправления | B58: 1 | C58: 11 | D58: 700500 | E58: 500 | F58: 300 | G58: 300
A59: Другие общегосударственные вопросы | B59: 1 | C59: 13 | D59: 0 | E59: 0 | F59: 24080 | G59: 24197
A60: Руководство и управление в сфере установленных функций органов государственной власти субъектов Российской Федерации и органов местного самоуправления | B60: 1 | C60: 13 | D60: 20000 | E60: 0 | F60: 16869.2 | G60: 17486.2
A61: Центральный аппарат | B61: 1 | C61: 13 | D61: 20400 | E61: 0 | F61: 2262.4 | G61: 2351.7
A62: Выполнение функций органами местного самоуправления | B62: 1 | C62: 13 | D62: 20400 | E62: 500 | F62: 2262.4 | G62: 2351.7
A63: Осуществление областных государственных полномочий по хранению, комплектованию, учету и использованию архивных документов, относящихся к государственной собственности Иркутской области | B63: 1 | C63: 13 | D63: 24000 | E63: 0 | F63: 1086 | G63: 1086
A64: Выполнение функций органами местного самоуправления | B64: 1 | C64: 13 | D64: 24000 | E64: 500 | F64: 1086 | G64: 1086
A65: Осуществление областных государственных полномочий по определению персонального состава и обеспечению деятельности административных комиссий | B65: 1 | C65: 13 | D65: 24300 | E65: 0 | F65: 563.6 | G65: 563.6
A66: Выполнение функций органами местного самоуправления | B66: 1 | C66: 13 | D66: 24300 | E66: 500 | F66: 563.6 | G66: 563.6
A67: Осуществление отдельных государственных полномочий в области производства и оборота этилового спирта, алкогольной и спиртосодержащей продукции | B67: 1 | C67: 13 | D67: 24400 | E67: 0 | F67: 404.3 | G67: 430.2
A68: Выполнение функций органами местного самоуправления | B68: 1 | C68: 13 | D68: 24400 | E68: 500 | F68: 404.3 | G68: 430.2
A69: Осуществление отдельных областных государственных полномочий в области охраны труда | B69: 1 | C69: 13 | D69: 24500 | E69: 0 | F69: 563.6 | G69: 563.6
A70: Выполнение функций органами местного самоуправления | B70: 1 | C70: 13 | D70: 24500 | E70: 500 | F70: 563.6 | G70: 563.6
A71: Обеспечение деятельности подведомственных учреждений | B71: 1 | C71: 13 | D71: 29900 | E71: 0 | F71: 11989.3 | G71: 12491.1
A72: Выполнение функций казенными учреждениями | B72: 1 | C72: 13 | D72: 29900 | E72: 001 | F72: 11089.3 | G72: 11591.1
A73: Субсидии бюджетным учреждениям на финансовое обеспечение муниципального задания на оказание муниципальных услуг (выполнение работ) | B73: 1 | C73: 13 | D73: 29900 | E73: 611 | F73: 900 | G73: 900
A74: Реализация государственных функций, связанных с общегосударственным управлением | B74: 1 | C74: 13 | D74: 920000 | E74: 0 | F74: 170.8 | G74: 170.8
A75: Выполнение других обязательств государства | B75: 1 | C75: 13 | D75: 920300 | E75: 0 | F75: 170.8 | G75: 170.8
A76: Выполнение функций органами местного самоуправления | B76: 1 | C76: 13 | D76: 920300 | E76: 500 | F76: 170.8 | G76: 170.8
A77: Учреждения по обеспечению хозяйственного обслуживания | B77: 1 | C77: 13 | D77: 930000 | E77: 0 | F77: 6500 | G77: 6500
A78: Субсидии бюджетным учреждениям на финансовое обеспечение муниципального задания на оказание муниципальных услуг (выполнение работ) | B78: 1 | C78: 13 | D78: 930000 | E78: 611 | F78: 6500 | G78: 6500
A79: Целевые программы муниципальных образований | B79: 1 | C79: 13 | D79: 7950000 | E79: 0 | F79: 540 | G79: 40
A80: Долгосрочная целевая программа "Улучшение условий и охраны труда в Черемховском районе на 2011-2013гг." | B80: 1 | C80: 13 | D80: 7951400 | E80: 0 | F80: 0 | G80: 0
A81: Выполнение функций органами местного самоуправления | B81: 1 | C81: 13 | D81: 7951400 | E81: 500 | F81: 0 | G81: 0
A82: Долгосрочная целевая программа "Инвентаризация муниципальных объектов недвижимости Черемховского районного муниципального образования на 2012-2014 годы" | B82: 1 | C82: 13 | D82: 7951900 | E82: 0 | F82: 500 | G82: 0
A83: Выполнение функций органами местного самоуправления | B83: 1 | C83: 13 | D83: 7951900 | E83: 500 | F83: 500 | G83: 0
A84: Комплексная программа "Профилактика правонарушений в Черемховском районном муниципальном образовании на 2013-2016 годы" | B84: 1 | C84: 13 | D84: 7952600 | E84: 0 | F84: 40 | G84: 40
A85: Выполнение функций органами местного самоуправления | B85: 1 | C85: 13 | D85: 7952600 | E85: 500 | F85: 40 | G85: 40
A86: Долгосрочная целевая программа "Поддержка молодых педагогов на территории Черемховского районного муниципального образования" на 2012-2013 годы | B86: 1 | C86: 13 | D86: 7952700 | E86: 0 | F86: 0 | G86: 0
A87: Выполнение функций органами местного самоуправления | B87: 1 | C87: 13 | D87: 7952700 | E87: 500 | F87: 0 | G87: 0
A88: НАЦИОНАЛЬНАЯ ЭКОНОМИКА | B88: 4 | C88: 0 | D88: 0 | E88: 0 | F88: 3698.1 | G88: 2406.5
A89: Дорожное хозяйство(дорожные фонды) | B89: 4 | C89: 9 | D89: 0 | E89: 0 | F89: 3048.1 | G89: 2406.5
A90: Региональные целевые программы | B90: 4 | C90: 9 | D90: 5220000 | E90: 0 | F90: 0 | G90: 0
A91: Долгосрочная целевая программа "Развитие автомобильных дорог общего пользования регионального или межмуниципального значения и местного значения в Иркутской области на 2011 - 2014 годы" | B91: 4 | C91: 9 | D91: 5224700 | E91: 0 | F91: 0 | G91: 0
A92: Выполнение функций органами местного самоуправления | B92: 4 | C92: 9 | D92: 5224700 | E92: 500 | F92: 0 | G92: 0
A93: Целевые программы муниципальных образований | B93: 4 | C93: 9 | D93: 7950000 | E93: 0 | F93: 3048.1 | G93: 2406.5
A94: Долгосрочная целевая программа "Инвентаризация муниципальных объектов недвижимости Черемховского районного муниципального образования на 2012-2014 годы" | B94: 4 | C94: 9 | D94: 7951900 | E94: 0 | F94: 0 | G94: 0
A95: Выполнение функций органами местного самоуправления | B95: 4 | C95: 9 | D95: 7951900 | E95: 500 | F95: 0 | G95: 0
A96: Долгосрочная целевая программа "Развитие автомобильных дорог Черемховского районного муниципального образования на 2013-2015 годы" | B96: 4 | C96: 9 | D96: 7952300 | E96: 0 | F96: 3048.1 | G96: 2406.5
A97: Выполнение функций органами местного самоуправления | B97: 4 | C97: 9 | D97: 7952300 | E97: 500 | F97: 3048.1 | G97: 2406.5
A98: Другие вопросы в области национальной экономики | B98: 4 | C98: 12 | D98: 0 | E98: 0 | F98: 650 | G98: 0
A99: Мероприятия в области строительства, архитектуры и градостроительства | B99: 4 | C99: 12 | D99: 3380000 | E99: 0 | F99: 0 | G99: 0
A100: Подготовка проектов правил землепользования и застройки муниципальных образований Черемховского районного муниципального образования | B100: 4 | C100: 12 | D100: 3380200 | E100: 0 | F100: 0 | G100: 0
A101: Выполнение функций органами местного самоуправления | B101: 4 | C101: 12 | D101: 3380200 | E101: 500 | F101: 0 | G101: 0
A102: Целевые программы муниципальных образований | B102: 4 | C102: 12 | D102: 7950000 | E102: 0 | F102: 650 | G102: 0
A103: Долгосрочная целевая программа "Инвентаризация муниципальных объектов недвижимости Черемховского районного муниципального образования на 2012-2014 годы" | B103: 4 | C103: 12 | D103: 7951900 | E103: 0 | F103: 500 | G103: 0
A104: Выполнение функций органами местного самоуправления | B104: 4 | C104: 12 | D104: 7951900 | E104: 500 | F104: 500 | G104: 0
A105: Долгосрочная целевая программа "Поддержка и развитие малого и среднего предпринимательства в Черемховском районе" на 2013-2014 годы | B105: 4 | C105: 12 | D105: 7952200 | E105: 0 | F105: 150 | G105: 0
A106: Выполнение функций органами местного самоуправления | B106: 4 | C106: 12 | D106: 7952200 | E106: 500 | F106: 150 | G106: 0
A107: ЖИЛИЩНО-КОММУНАЛЬНОЕ ХОЗЯЙСТВО | B107: 5 | C107: 0 | D107: 0 | E107: 0 | F107: 4258 | G107: 4464.7
A108: Жилищное хозяйство | B108: 5 | C108: 1 | D108: 0 | E108: 0 | F108: 0 | G108: 0
A109: Поддержка жилищного хозяйства | B109: 5 | C109: 1 | D109: 3500000 | E109: 0 | F109: 0 | G109: 0
A110: Мероприятия в области жилищного хозяйства | B110: 5 | C110: 1 | D110: 3500300 | E110: 0 | F110: 0 | G110: 0
A111: Выполнение функций органами местного самоуправления | B111: 5 | C111: 1 | D111: 3500300 | E111: 500 | F111: 0 | G111: 0
A112: Коммунальное хозяйство | B112: 5 | C112: 2 | D112: 0 | E112: 0 | F112: 0 | G112: 0
A113: Региональные целевые программы | B113: 5 | C113: 2 | D113: 5220000 | E113: 0 | F113: 0 | G113: 0
A114: Долгосрочная целевая программа «Энергосбережение и повышение энергетической эффективности на территории Иркутской области на 2011-2015 годы и на период до 2020 года» | B114: 5 | C114: 2 | D114: 5225400 | E114: 0 | F114: 0 | G114: 0
A115: Иные межбюджетные трансферты | B115: 5 | C115: 2 | D115: 5225400 | E115: 017 | F115: 0 | G115: 0
A116: Другие вопросы в области жилищно-коммунального хозяйства | B116: 5 | C116: 5 | D116: 0 | E116: 0 | F116: 4258 | G116: 4464.7
A117: Руководство и управление в сфере установленных функций органов государственной власти субъектов Российской Федерации и органов местного самоуправления | B117: 5 | C117: 5 | D117: 20000 | E117: 0 | F117: 4258 | G117: 4464.7
A118: Центральный аппарат | B118: 5 | C118: 5 | D118: 20400 | E118: 0 | F118: 4258 | G118: 4464.7
A119: Выполнение функций органами местного самоуправления | B119: 5 | C119: 5 | D119: 20400 | E119: 500 | F119: 4258 | G119: 4464.7
A120: ОХРАНА ОКРУЖАЮЩЕЙ СРЕДЫ | B120: 6 | C120: 0 | D120: 0 | E120: 0 | F120: 0 | G120: 0
A121: Другие вопросы в области охраны окружающей среды | B121: 6 | C121: 5 | D121: 0 | E121: 0 | F121: 0 | G121: 0
A122: Состояние окружающей среды и природопользования | B122: 6 | C122: 5 | D122: 4100000 | E122: 0 | F122: 0 | G122: 0
A123: Природоохранные мероприятия | B123: 6 | C123: 5 | D123: 4100100 | E123: 0 | F123: 0 | G123: 0
A124: Выполнение функций органами местного самоуправления | B124: 6 | C124: 5 | D124: 4100100 | E124: 500 | F124: 0 | G124: 0
A125: Региональные целевые программы | B125: 6 | C125: 5 | D125: 5220000 | E125: 0 | F125: 0 | G125: 0
A126: Долгосрочная целевая программа Иркутской области «Защита окружающей среды в Иркутской области на 2011-2015 годы» | B126: 6 | C126: 5 | D126: 5222500 | E126: 0 | F126: 0 | G126: 0
A127: Подпрограмма «Отходы производства и потребления в Иркутской области на 2011-2015 годы» | B127: 6 | C127: 5 | D127: 5222502 | E127: 0 | F127: 0 | G127: 0
A128: Выполнение функций органами местного самоуправления | B128: 6 | C128: 5 | D128: 5222502 | E128: 500 | F128: 0 | G128: 0
A129: ОБРАЗОВАНИЕ | B129: 7 | C129: 0 | D129: 0 | E129: 0 | F129: 348970.3 | G129: 346703.1
A130: Дошкольное образование | B130: 7 | C130: 1 | D130: 0 | E130: 0 | F130: 64603.4 | G130: 62906.1
A131: Детские дошкольные учреждения | B131: 7 | C131: 1 | D131: 4200000 | E131: 0 | F131: 61308.4 | G131: 61441.1
A132: Обеспечение деятельности подведомственных учреждений | B132: 7 | C132: 1 | D132: 4209900 | E132: 0 | F132: 61308.4 | G132: 61441.1
A133: Выполнение функций казенными учреждениями | B133: 7 | C133: 1 | D133: 4209900 | E133: 001 | F133: 61308.4 | G133: 61441.1
A134: Региональные целевые программы | B134: 7 | C134: 1 | D134: 5220000 | E134: 0 | F134: 0 | G134: 0
A135: Областная государственная целевая программа поддержки и развития учреждений дошкольного образования в Иркутской области на 2009-2014 годы | B135: 7 | C135: 1 | D135: 5223700 | E135: 0 | F135: 0 | G135: 0
A136: Выполнение функций казенными учреждениями | B136: 7 | C136: 1 | D136: 5223700 | E136: 001 | F136: 0 | G136: 0
A137: Долгосрочная целевая программа «Энергосбережение и повышение энергетической эффективности на территории Иркутской области на 2011-2015 годы и на период до 2020 года» | B137: 7 | C137: 1 | D137: 5225400 | E137: 0 | F137: 0 | G137: 0
A138: Выполнение функций казенными учреждениями | B138: 7 | C138: 1 | D138: 5225400 | E138: 001 | F138: 0 | G138: 0
A139: Выплата заработной платы с начислениями на нее педагогическим работникам муниципальных дошкольных образовательных учреждений и муниципальных учреждений дополнительного образования | B139: 7 | C139: 1 | D139: 5890000 | E139: 0 | F139: 1465 | G139: 1465
A140: Выполнение функций казенными учреждениями | B140: 7 | C140: 1 | D140: 5890000 | E140: 001 | F140: 1465 | G140: 1465
A141: Целевые программы муниципальных образований | B141: 7 | C141: 1 | D141: 7950000 | E141: 0 | F141: 1830 | G141: 0
A142: Долгосрочная целевая программа Черемховского районного муниципального образования "Повышение эффективности бюджетных расходов Черемховского районного муниципального образования на 2012-2013 годы" | B142: 7 | C142: 1 | D142: 7950200 | E142: 0 | F142: 0 | G142: 0
A143: Выполнение функций казенными учреждениями | B143: 7 | C143: 1 | D143: 7950200 | E143: 001 | F143: 0 | G143: 0
A144: Долгосрочная целевая программа "Безопасность образовательных учреждений на 2010-2014 гг." | B144: 7 | C144: 1 | D144: 7951000 | E144: 0 | F144: 830 | G144: 0
A145: Мероприятия по обеспечению пожарной безопасности | B145: 7 | C145: 1 | D145: 7951000 | E145: 450 | F145: 830 | G145: 0
A146: Долгосрочная целевая программа энергосбережения и повышения энергетической эффективности Черемховского районного муниципального образования на 2010-2015 годы | B146: 7 | C146: 1 | D146: 7951100 | E146: 0 | F146: 600 | G146: 0
A147: Мероприятия по повышению энергетической эффективности | B147: 7 | C147: 1 | D147: 7951100 | E147: 451 | F147: 600 | G147: 0
A148: Долгосрочная целевая программа "Развитие дошкольного образования на 2011-2014 гг." | B148: 7 | C148: 1 | D148: 7951700 | E148: 0 | F148: 0 | G148: 0
A149: Мероприятия в сфере образования | B149: 7 | C149: 1 | D149: 7951700 | E149: 022 | F149: 0 | G149: 0
A150: Долгосрочная целевая программа "Совершенствование дошкольного образования Черемховского района на 2011-2014 гг." | B150: 7 | C150: 1 | D150: 7951800 | E150: 0 | F150: 400 | G150: 0
A151: Мероприятия в сфере образования | B151: 7 | C151: 1 | D151: 7951800 | E151: 022 | F151: 400 | G151: 0
A152: Общее образование | B152: 7 | C152: 2 | D152: 0 | E152: 0 | F152: 276921.3 | G152: 276261.6
A153: Руководство и управление в сфере установленных функций органов государственной власти субъектов Российской Федерации и органов местного самоуправления | B153: 7 | C153: 2 | D153: 20000 | E153: 0 | F153: 238581.5 | G153: 238581.5
A154: Обеспечение государственных гарантий прав граждан на получение общедоступного и бесплатного дошкольного, начального общего, основного общего, среднего (полного) общего образования, а также дополнительного образования в общеобразовательных учреждениях | B154: 7 | C154: 2 | D154: 25000 | E154: 0 | F154: 238581.5 | G154: 238581.5
A155: Выполнение функций казенными учреждениями | B155: 7 | C155: 2 | D155: 25000 | E155: 001 | F155: 238581.5 | G155: 238581.5
A156: Школы - детские сады, школы начальные, неполные средние и средние | B156: 7 | C156: 2 | D156: 4210000 | E156: 0 | F156: 15782.6 | G156: 15808.4
A157: Обеспечение деятельности подведомственных учреждений | B157: 7 | C157: 2 | D157: 4219900 | E157: 0 | F157: 15782.6 | G157: 15808.4
A158: Выполнение функций казенными учреждениями | B158: 7 | C158: 2 | D158: 4219900 | E158: 001 | F158: 15782.6 | G158: 15808.4
A159: Учреждения по внешкольной работе с детьми | B159: 7 | C159: 2 | D159: 4230000 | E159: 0 | F159: 20340.1 | G159: 21257.8
A160: Обеспечение деятельности подведомственных учреждений | B160: 7 | C160: 2 | D160: 4239900 | E160: 0 | F160: 20340.1 | G160: 21257.8
A161: Выполнение функций казенными учреждениями | B161: 7 | C161: 2 | D161: 4239900 | E161: 001 | F161: 20340.1 | G161: 21257.8
A162: Мероприятия в области образования | B162: 7 | C162: 2 | D162: 4360000 | E162: 0 | F162: 0 | G162: 0
A163: Модернизация региональных систем образования | B163: 7 | C163: 2 | D163: 4362100 | E163: 0 | F163: 0 | G163: 0
A164: Модернизация региональных систем образования за счет средств федерального бюджета | B164: 7 | C164: 2 | D164: 4362101 | E164: 0 | F164: 0 | G164: 0
A165: Выполнение функций казенными учреждениями | B165: 7 | C165: 2 | D165: 4362101 | E165: 001 | F165: 0 | G165: 0
A166: Иные безвозмездные и безвозвратные перечисления | B166: 7 | C166: 2 | D166: 5200000 | E166: 0 | F166: 0 | G166: 0
A167: Ежемесячное денежное вознаграждение за классное руководство | B167: 7 | C167: 2 | D167: 5200900 | E167: 0 | F167: 0 | G167: 0
A168: Выполнение функций казенными учреждениями | B168: 7 | C168: 2 | D168: 5200900 | E168: 001 | F168: 0 | G168: 0
A169: Региональные целевые программы | B169: 7 | C169: 2 | D169: 5220000 | E169: 0 | F169: 0 | G169: 0
A170: Долгосрочная целевая программа «Модернизация объектов коммунальной инфраструктуры Иркутской области на 2011-2013 годы» | B170: 7 | C170: 2 | D170: 5222000 | E170: 0 | F170: 0 | G170: 0
A171: Подпрограмма «Подготовка объектов коммунальной инфраструктуры Иркутской области к отопительному сезону в 2011-2013 годах» | B171: 7 | C171: 2 | D171: 5222001 | E171: 0 | F171: 0 | G171: 0
A172: Выполнение функций казенными учреждениями | B172: 7 | C172: 2 | D172: 5222001 | E172: 001 | F172: 0 | G172: 0
A173: Долгосрочная целевая программа «Энергосбережение и повышение энергетической эффективности на территории Иркутской области на 2011-2015 годы и на период до 2020 года» | B173: 7 | C173: 2 | D173: 5225400 | E173: 0 | F173: 0 | G173: 0
A174: Выполнение функций казенными учреждениями | B174: 7 | C174: 2 | D174: 5225400 | E174: 001 | F174: 0 | G174: 0
A175: Выплата заработной платы с начислениями на нее педагогическим работникам муниципальных дошкольных образовательных учреждений и муниципальных учреждений дополнительного образования | B175: 7 | C175: 2 | D175: 5890000 | E175: 0 | F175: 540.1 | G175: 540.1
A176: Выполнение функций казенными учреждениями | B176: 7 | C176: 2 | D176: 5890000 | E176: 001 | F176: 540.1 | G176: 540.1
A177: Целевые программы муниципальных образований | B177: 7 | C177: 2 | D177: 7950000 | E177: 0 | F177: 1677 | G177: 73.8
A178: Долгосрочная целевая программа Черемховского районного муниципального образования "Повышение эффективности бюджетных расходов Черемховского районного муниципального образования на 2012-2013 годы" | B178: 7 | C178: 2 | D178: 7950200 | E178: 0 | F178: 0 | G178: 0
A179: Выполнение функций казенными учреждениями | B179: 7 | C179: 2 | D179: 7950200 | E179: 001 | F179: 0 | G179: 0
A180: Долгосрочная целевая программа "Безопасность образовательных учреждений на 2010-2014 гг." | B180: 7 | C180: 2 | D180: 7951000 | E180: 0 | F180: 970 | G180: 0
A181: Мероприятия по обеспечению пожарной безопасности | B181: 7 | C181: 2 | D181: 7951000 | E181: 450 | F181: 970 | G181: 0
A182: Долгосрочная целевая программа энергосбережения и повышения энергетической эффективности Черемховского районного муниципального образования на 2010-2015 годы | B182: 7 | C182: 2 | D182: 7951100 | E182: 0 | F182: 0 | G182: 0
A183: Мероприятия по повышению энергетической эффективности | B183: 7 | C183: 2 | D183: 7951100 | E183: 451 | F183: 0 | G183: 0
A184: Долгосрочная целевая программа "Ветхие школы Черемховского района" на 2011-2013 гг. | B184: 7 | C184: 2 | D184: 7951500 | E184: 0 | F184: 0 | G184: 0
A185: Мероприятия в сфере образования | B185: 7 | C185: 2 | D185: 7951500 | E185: 022 | F185: 0 | G185: 0
A186: Долгосрочная целевая программа "Совершенствование организации питания в образовательных учреждениях Черемховского района на 2011-2013гг." | B186: 7 | C186: 2 | D186: 7951600 | E186: 0 | F186: 600 | G186: 0
A187: Мероприятия в сфере образования | B187: 7 | C187: 2 | D187: 7951600 | E187: 022 | F187: 600 | G187: 0
A188: Долгосрочная целевая программа "Развитие культуры в Черемховском районном муниципальном образовании на период 2012-2016 гг." | B188: 7 | C188: 2 | D188: 7952000 | E188: 0 | F188: 107 | G188: 73.8
A189: Мероприятия по поддержке и развитию культуры, искусства, кинематографии | B189: 7 | C189: 2 | D189: 7952000 | E189: 023 | F189: 107 | G189: 73.8
A190: Профессиональная подготовка, переподготовка и повышение квалификации | B190: 7 | C190: 5 | D190: 0 | E190: 0 | F190: 127 | G190: 127
A191: Мероприятия по переподготовке и повышению квалификации | B191: 7 | C191: 5 | D191: 4340000 | E191: 0 | F191: 127 | G191: 127
A192: Выполнение функций казенными учреждениями | B192: 7 | C192: 5 | D192: 4340000 | E192: 001 | F192: 127 | G192: 127
A193: Выполнение функций органами местного самоуправления | B193: 7 | C193: 5 | D193: 4340000 | E193: 500 | F193: 0 | G193: 0
A194: Молодежная политика и оздоровление детей | B194: 7 | C194: 7 | D194: 0 | E194: 0 | F194: 212 | G194: 212
A195: Организационно-воспитательная работа с молодежью | B195: 7 | C195: 7 | D195: 4310000 | E195: 0 | F195: 46 | G195: 46
A196: Проведение мероприятий для детей и молодежи | B196: 7 | C196: 7 | D196: 4310100 | E196: 0 | F196: 46 | G196: 46
A197: Проведение мероприятия для детей и молодежи | B197: 7 | C197: 7 | D197: 4310100 | E197: 447 | F197: 46 | G197: 46
A198: Мероприятия по проведению оздоровительной кампании детей | B198: 7 | C198: 7 | D198: 4320000 | E198: 0 | F198: 126 | G198: 126
A199: Оплата стоимости набора продуктов питания для детей в организованных органами местного самоуправления оздоровительных лагерях с дневным пребыванием детей за счет средств областного бюджета | B199: 7 | C199: 7 | D199: 4320300 | E199: 0 | F199: 126 | G199: 126
A200: Оплата стоимости набора продуктов питания для детей в организованных органами местного самоуправления оздоровительных лагерях с дневным пребыванием детей за счет средств местного бюджета | B200: 7 | C200: 7 | D200: 4320302 | E200: 0 | F200: 126 | G200: 126
A201: Выполнение функций казенными учреждениями | B201: 7 | C201: 7 | D201: 4320302 | E201: 001 | F201: 126 | G201: 126
A202: Региональные целевые программы | B202: 7 | C202: 7 | D202: 5220000 | E202: 0 | F202: 0 | G202: 0
A203: Долгосрочная целевая программа Иркутской области "Организация и обеспечение отдыха и оздоровления детей в Иркутской области на 2012-2014гг." | B203: 7 | C203: 7 | D203: 5226200 | E203: 0 | F203: 0 | G203: 0
A204: Выполнение функций казенными учреждениями | B204: 7 | C204: 7 | D204: 5226200 | E204: 001 | F204: 0 | G204: 0
A205: Целевые программы муниципальных образований | B205: 7 | C205: 7 | D205: 7950000 | E205: 0 | F205: 40 | G205: 40
A206: Долгосрочная целевая программа "Комплексные меры профилактики злоупотребления наркотическими средствами и психотропными веществами в Черемховском районном муниципальном образовании на 2011-2013 гг." | B206: 7 | C206: 7 | D206: 7951300 | E206: 0 | F206: 0 | G206: 0
A207: Выполнение функций органами местного самоуправления | B207: 7 | C207: 7 | D207: 7951300 | E207: 500 | F207: 0 | G207: 0
A208: Долгосрочная целевая программа "Молодежная политика в Черемховском районном муниципальном образовании" на 2013-2015 гг. | B208: 7 | C208: 7 | D208: 7952500 | E208: 0 | F208: 40 | G208: 40
A209: Проведение мероприятия для детей и молодежи | B209: 7 | C209: 7 | D209: 7952500 | E209: 447 | F209: 40 | G209: 40
A210: Другие вопросы в области образования | B210: 7 | C210: 9 | D210: 0 | E210: 0 | F210: 7106.6 | G210: 7196.4
A211: Руководство и управление в сфере установленных функций органов государственной власти субъектов Российской Федерации и органов местного самоуправления | B211: 7 | C211: 9 | D211: 20000 | E211: 0 | F211: 2106.6 | G211: 2196.4
A212: Центральный аппарат | B212: 7 | C212: 9 | D212: 20400 | E212: 0 | F212: 2106.6 | G212: 2196.4
A213: Выполнение функций органами местного самоуправления | B213: 7 | C213: 9 | D213: 20400 | E213: 500 | F213: 2106.6 | G213: 2196.4
A214: Учебно-методические кабинеты, централизованные бухгалтерии, группы хозяйственного обслуживания, учебные фильмотеки, межшкольные учебно-производственные комбинаты, логопедические пункты | B214: 7 | C214: 9 | D214: 4520000 | E214: 0 | F214: 5000 | G214: 5000
A215: Субсидии бюджетным учреждениям на финансовое обеспечение муниципального задания на оказание муниципальных услуг (выполнение работ) | B215: 7 | C215: 9 | D215: 4520000 | E215: 611 | F215: 5000 | G215: 5000
... 98 more rows

Sheet прил8
A18: Распределение бюджетных ассигнований по разделам, подразделам, целевым статьям и видам расходов классификации расходов бюджетов в ведомственной структуре расходов бюджета Черемховского районного муниципального образования на 2013 год
A21: Наименование показателя | B21: Код | G21: Сумма , тыс. руб.
B22: ГРБС | C22: раздела | D22: подраздела | E22: целевой статьи | F22: вида расходов
A23: 1 | B23: 2 | C23: 3 | D23: 4 | E23: 5 | F23: 6 | G23: 7
A24: Обеспечение проведения выборов и референдумов | B24: 917 | C24: 1 | D24: 7 | E24: 0 | F24: 0 | G24: 0
A25: Проведение выборов и референдумов | B25: 917 | C25: 1 | D25: 7 | E25: 200000 | F25: 0 | G25: 0
A26: Проведение выборов и референдумов | B26: 917 | C26: 1 | D26: 7 | E26: 200000 | F26: 0 | G26: 0
A27: Проведение выборов в представительные органы муниципального образования | B27: 917 | C27: 1 | D27: 7 | E27: 200002 | F27: 0 | G27: 0
A28: Выполнение функций органами местного самоуправления | B28: 917 | C28: 1 | D28: 7 | E28: 200002 | F28: 500 | G28: 0
A29: ИТОГО | G29: 616524.8
A30: Отдел по культуре и библиотечному обслуживанию АЧРМО | B30: 904 | C30: 0 | D30: 0 | E30: 0 | F30: 0 | G30: 28033.28
A31: ОБРАЗОВАНИЕ | B31: 904 | C31: 7 | D31: 0 | E31: 0 | F31: 0 | G31: 6202.779
A32: Общее образование | B32: 904 | C32: 7 | D32: 2 | E32: 0 | F32: 0 | G32: 6194.719
A33: Учреждения по внешкольной работе с детьми | B33: 904 | C33: 7 | D33: 2 | E33: 4230000 | F33: 0 | G33: 5390.919
A34: Обеспечение деятельности подведомственных учреждений | B34: 904 | C34: 7 | D34: 2 | E34: 4239900 | F34: 0 | G34: 5390.919
A35: Выполнение функций казенными учреждениями | B35: 904 | C35: 7 | D35: 2 | E35: 4239900 | F35: 001 | G35: 5390.919
A36: Целевые программы муниципальных образований | B36: 904 | C36: 7 | D36: 2 | E36: 7950000 | F36: 0 | G36: 803.8
A37: Долгосрочная целевая программа Черемховского районного муниципального образования "Повышение эффективности бюджетных расходов Черемховского районного муниципального образования на 2012-2013 годы" | B37: 904 | C37: 7 | D37: 2 | E37: 7950200 | F37: 0 | G37: 711
A38: Выполнение функций казенными учреждениями | B38: 904 | C38: 7 | D38: 2 | E38: 7950200 | F38: 001 | G38: 711
A39: Долгосрочная целевая программа "Развитие культуры в Черемховском районном муниципальном образовании на период 2012-2016 гг." | B39: 904 | C39: 7 | D39: 2 | E39: 7952000 | F39: 0 | G39: 92.8
A40: Мероприятия по поддержке и развитию культуры, искусства, кинематографии | B40: 904 | C40: 7 | D40: 2 | E40: 7952000 | F40: 023 | G40: 92.8
A41: Профессиональная подготовка, переподготовка и повышение квалификации | B41: 904 | C41: 7 | D41: 5 | E41: 0 | F41: 0 | G41: 8.06
A42: Мероприятия по переподготовке и повышению квалификации | B42: 904 | C42: 7 | D42: 5 | E42: 4340000 | F42: 0 | G42: 8.06
A43: Выполнение функций казенными учреждениями | B43: 904 | C43: 7 | D43: 5 | E43: 4340000 | F43: 001 | G43: 8.06
A44: КУЛЬТУРА И КИНЕМАТОГРАФИЯ | B44: 904 | C44: 8 | D44: 0 | E44: 0 | F44: 0 | G44: 21830.501
A45: Культура | B45: 904 | C45: 8 | D45: 1 | E45: 0 | F45: 0 | G45: 20508.774
A46: Учреждения культуры и мероприятия в сфере культуры и кинематографии | B46: 904 | C46: 8 | D46: 1 | E46: 4400000 | F46: 0 | G46: 6951.457
A47: Комплектование книжных фондов библиотек муниципальных образований и государственных библиотек городов Москвы и Санкт-Петербурга | B47: 904 | C47: 8 | D47: 1 | E47: 4400200 | F47: 0 | G47: 466.3
A48: Комплектование книжных фондов библиотек муниципальных образований и государственных библиотек городов Москвы и Санкт-Петербурга за счет средств федерального бюджета | B48: 904 | C48: 8 | D48: 1 | E48: 4400201 | F48: 0 | G48: 303.6
A49: Выполнение функций казенными учреждениями | B49: 904 | C49: 8 | D49: 1 | E49: 4400201 | F49: 001 | G49: 303.6
A50: Комплектование книжных фондов библиотек муниципальных образований и государственных библиотек городов Москвы и Санкт-Петербурга за счет областного бюджета | B50: 904 | C50: 8 | D50: 1 | E50: 4400202 | F50: 0 | G50: 162.7
A51: Выполнение функций казенными учреждениями | B51: 904 | C51: 8 | D51: 1 | E51: 4400202 | F51: 001 | G51: 162.7
A52: Обеспечение деятельности подведомственных учреждений | B52: 904 | C52: 8 | D52: 1 | E52: 4409900 | F52: 0 | G52: 6485.157
A53: Выполнение функций казенными учреждениями | B53: 904 | C53: 8 | D53: 1 | E53: 4409900 | F53: 001 | G53: 6485.157
A54: Музеи и постоянные выставки | B54: 904 | C54: 8 | D54: 1 | E54: 4410000 | F54: 0 | G54: 1338.618
A55: Обеспечение деятельности подведомственных учреждений | B55: 904 | C55: 8 | D55: 1 | E55: 4419900 | F55: 0 | G55: 1338.618
A56: Выполнение функций казенными учреждениями | B56: 904 | C56: 8 | D56: 1 | E56: 4419900 | F56: 001 | G56: 1338.618
A57: Библиотеки | B57: 904 | C57: 8 | D57: 1 | E57: 4420000 | F57: 0 | G57: 8758.699
A58: Обеспечение деятельности подведомственных учреждений | B58: 904 | C58: 8 | D58: 1 | E58: 4429900 | F58: 0 | G58: 8758.699
A59: Выполнение функций казенными учреждениями | B59: 904 | C59: 8 | D59: 1 | E59: 4429900 | F59: 001 | G59: 8758.699
A60: Региональные целевые программы | B60: 904 | C60: 8 | D60: 1 | E60: 5220000 | F60: 0 | G60: 1500
A61: Долгосрочная целевая программа Иркутской области «100 модельных домов культуры Приангарью» на 2011-2013 годы | B61: 904 | C61: 8 | D61: 1 | E61: 5225500 | F61: 0 | G61: 1000
A62: Выполнение функций казенными учреждениями | B62: 904 | C62: 8 | D62: 1 | E62: 5225500 | F62: 001 | G62: 1000
A63: Долгосрочная целевая программа "Публичные центры правовой, деловой и социально-значимой информации центральных районных библиотек Иркутской области" (2013-2014 годы) | B63: 904 | C63: 8 | D63: 1 | E63: 5227600 | F63: 0 | G63: 500
A64: Выполнение функций казенными учреждениями | B64: 904 | C64: 8 | D64: 1 | E64: 5227600 | F64: 001 | G64: 500
A65: Целевые программы муниципальных образований | B65: 904 | C65: 8 | D65: 1 | E65: 7950000 | F65: 0 | G65: 1960
A66: Долгосрочная целевая программа Черемховского районного муниципального образования "Повышение эффективности бюджетных расходов Черемховского районного муниципального образования на 2012-2013 годы" | B66: 904 | C66: 8 | D66: 1 | E66: 7950200 | F66: 0 | G66: 747
A67: Выполнение функций казенными учреждениями | B67: 904 | C67: 8 | D67: 1 | E67: 7950200 | F67: 001 | G67: 747
A68: Долгосрочная целевая программа энергосбережения и повышения энергетической эффективности Черемховского районного муниципального образования на 2010-2015 годы | B68: 904 | C68: 8 | D68: 1 | E68: 7951100 | F68: 0 | G68: 282
A69: Мероприятия по повышению энергетической эффективности | B69: 904 | C69: 8 | D69: 1 | E69: 7951100 | F69: 451 | G69: 282
A70: Долгосрочная целевая программа "Развитие культуры в Черемховском районном муниципальном образовании на период 2012-2016 гг." | B70: 904 | C70: 8 | D70: 1 | E70: 7952000 | F70: 0 | G70: 931
A71: Мероприятия по поддержке и развитию культуры, искусства, кинематографии | B71: 904 | C71: 8 | D71: 1 | E71: 7952000 | F71: 023 | G71: 931
A72: Другие вопросы в области культуры, кинематографии | B72: 904 | C72: 8 | D72: 4 | E72: 0 | F72: 0 | G72: 1321.727
A73: Руководство и управление в сфере установленных функций органов государственной власти субъектов Российской Федерации и органов местного самоуправления | B73: 904 | C73: 8 | D73: 4 | E73: 20000 | F73: 0 | G73: 1321.727
A74: Центральный аппарат | B74: 904 | C74: 8 | D74: 4 | E74: 20400 | F74: 0 | G74: 1321.727
A75: Выполнение функций органами местного самоуправления | B75: 904 | C75: 8 | D75: 4 | E75: 20400 | F75: 500 | G75: 1321.727
A76: Отдел образования АЧРМО | B76: 907 | C76: 0 | D76: 0 | E76: 0 | F76: 0 | G76: 478290.567
A77: ОБРАЗОВАНИЕ | B77: 907 | C77: 7 | D77: 0 | E77: 0 | F77: 0 | G77: 471928.767
A78: Дошкольное образование | B78: 907 | C78: 7 | D78: 1 | E78: 0 | F78: 0 | G78: 106629.858
A79: Детские дошкольные учреждения | B79: 907 | C79: 7 | D79: 1 | E79: 4200000 | F79: 0 | G79: 65953.713
A80: Обеспечение деятельности подведомственных учреждений | B80: 907 | C80: 7 | D80: 1 | E80: 4209900 | F80: 0 | G80: 65953.713
A81: Выполнение функций казенными учреждениями | B81: 907 | C81: 7 | D81: 1 | E81: 4209900 | F81: 001 | G81: 65953.713
A82: Региональные целевые программы | B82: 907 | C82: 7 | D82: 1 | E82: 5220000 | F82: 0 | G82: 3335.766
A83: Областная государственная целевая программа поддержки и развития учреждений дошкольного образования в Иркутской области на 2009-2014 годы | B83: 907 | C83: 7 | D83: 1 | E83: 5223700 | F83: 0 | G83: 3027.506
A84: Выполнение функций казенными учреждениями | B84: 907 | C84: 7 | D84: 1 | E84: 5223700 | F84: 001 | G84: 3027.506
A85: Долгосрочная целевая программа «Энергосбережение и повышение энергетической эффективности на территории Иркутской области на 2011-2015 годы и на период до 2020 года» | B85: 907 | C85: 7 | D85: 1 | E85: 5225400 | F85: 0 | G85: 308.26
A86: Выполнение функций казенными учреждениями | B86: 907 | C86: 7 | D86: 1 | E86: 5225400 | F86: 001 | G86: 308.26
A87: Выплата заработной платы с начислениями на нее педагогическим работникам муниципальных дошкольных образовательных учреждений и муниципальных учреждений дополнительного образования | B87: 907 | C87: 7 | D87: 1 | E87: 5890000 | F87: 0 | G87: 29973.349
A88: Выполнение функций казенными учреждениями | B88: 907 | C88: 7 | D88: 1 | E88: 5890000 | F88: 001 | G88: 29973.349
A89: Целевые программы муниципальных образований | B89: 907 | C89: 7 | D89: 1 | E89: 7950000 | F89: 0 | G89: 7367.03
A90: Долгосрочная целевая программа Черемховского районного муниципального образования "Повышение эффективности бюджетных расходов Черемховского районного муниципального образования на 2012-2013 годы" | B90: 907 | C90: 7 | D90: 1 | E90: 7950200 | F90: 0 | G90: 5211
A91: Выполнение функций казенными учреждениями | B91: 907 | C91: 7 | D91: 1 | E91: 7950200 | F91: 001 | G91: 5211
A92: Долгосрочная целевая программа "Безопасность образовательных учреждений на 2010-2014 гг." | B92: 907 | C92: 7 | D92: 1 | E92: 7951000 | F92: 0 | G92: 572
A93: Мероприятия по обеспечению пожарной безопасности | B93: 907 | C93: 7 | D93: 1 | E93: 7951000 | F93: 450 | G93: 572
A94: Долгосрочная целевая программа энергосбережения и повышения энергетической эффективности Черемховского районного муниципального образования на 2010-2015 годы | B94: 907 | C94: 7 | D94: 1 | E94: 7951100 | F94: 0 | G94: 132.03
A95: Мероприятия по повышению энергетической эффективности | B95: 907 | C95: 7 | D95: 1 | E95: 7951100 | F95: 451 | G95: 132.03
A96: Долгосрочная целевая программа "Развитие дошкольного образования на 2011-2014 гг." | B96: 907 | C96: 7 | D96: 1 | E96: 7951700 | F96: 0 | G96: 1102
A97: Мероприятия в сфере образования | B97: 907 | C97: 7 | D97: 1 | E97: 7951700 | F97: 022 | G97: 1102
A98: Долгосрочная целевая программа "Совершенствование дошкольного образования Черемховского района на 2011-2014 гг." | B98: 907 | C98: 7 | D98: 1 | E98: 7951800 | F98: 0 | G98: 350
A99: Мероприятия в сфере образования | B99: 907 | C99: 7 | D99: 1 | E99: 7951800 | F99: 022 | G99: 350
A100: Общее образование | B100: 907 | C100: 7 | D100: 2 | E100: 0 | F100: 0 | G100: 354225.728
A101: Руководство и управление в сфере установленных функций органов государственной власти субъектов Российской Федерации и органов местного самоуправления | B101: 907 | C101: 7 | D101: 2 | E101: 20000 | F101: 0 | G101: 281204.449
A102: Обеспечение государственных гарантий прав граждан на получение общедоступного и бесплатного дошкольного, начального общего, основного общего, среднего (полного) общего образования, а также дополнительного образования в общеобразовательных учреждениях | B102: 907 | C102: 7 | D102: 2 | E102: 25000 | F102: 0 | G102: 281204.449
A103: Выполнение функций казенными учреждениями | B103: 907 | C103: 7 | D103: 2 | E103: 25000 | F103: 001 | G103: 281204.449
A104: Школы - детские сады, школы начальные, неполные средние и средние | B104: 907 | C104: 7 | D104: 2 | E104: 4210000 | F104: 0 | G104: 22043.405
A105: Обеспечение деятельности подведомственных учреждений | B105: 907 | C105: 7 | D105: 2 | E105: 4219900 | F105: 0 | G105: 22043.405
A106: Выполнение функций казенными учреждениями | B106: 907 | C106: 7 | D106: 2 | E106: 4219900 | F106: 001 | G106: 22043.405
A107: Учреждения по внешкольной работе с детьми | B107: 907 | C107: 7 | D107: 2 | E107: 4230000 | F107: 0 | G107: 23454.874
A108: Обеспечение деятельности подведомственных учреждений | B108: 907 | C108: 7 | D108: 2 | E108: 4239900 | F108: 0 | G108: 23454.874
A109: Выполнение функций казенными учреждениями | B109: 907 | C109: 7 | D109: 2 | E109: 4239900 | F109: 001 | G109: 23454.874
A110: Мероприятия в области образования | B110: 907 | C110: 7 | D110: 2 | E110: 4360000 | F110: 0 | G110: 1600
A111: Модернизация региональных систем образования | B111: 907 | C111: 7 | D111: 2 | E111: 4362100 | F111: 0 | G111: 1600
A112: Модернизация региональных систем образования за счет средств федерального бюджета | B112: 907 | C112: 7 | D112: 2 | E112: 4362101 | F112: 0 | G112: 1600
A113: Выполнение функций казенными учреждениями | B113: 907 | C113: 7 | D113: 2 | E113: 4362101 | F113: 001 | G113: 1600
A114: Иные безвозмездные и безвозвратные перечисления | B114: 907 | C114: 7 | D114: 2 | E114: 5200000 | F114: 0 | G114: 5000.1
A115: Ежемесячное денежное вознаграждение за классное руководство | B115: 907 | C115: 7 | D115: 2 | E115: 5200900 | F115: 0 | G115: 5000.1
A116: Выполнение функций казенными учреждениями | B116: 907 | C116: 7 | D116: 2 | E116: 5200900 | F116: 001 | G116: 5000.1
A117: Региональные целевые программы | B117: 907 | C117: 7 | D117: 2 | E117: 5220000 | F117: 0 | G117: 2040.09
A118: Долгосрочная целевая программа «Модернизация объектов коммунальной инфраструктуры Иркутской области на 2011-2013 годы» | B118: 907 | C118: 7 | D118: 2 | E118: 5222000 | F118: 0 | G118: 1700
A119: Подпрограмма «Подготовка объектов коммунальной инфраструктуры Иркутской области к отопительному сезону в 2011-2013 годах» | B119: 907 | C119: 7 | D119: 2 | E119: 5222001 | F119: 0 | G119: 1700
A120: Выполнение функций казенными учреждениями | B120: 907 | C120: 7 | D120: 2 | E120: 5222001 | F120: 001 | G120: 1700
A121: Долгосрочная целевая программа «Энергосбережение и повышение энергетической эффективности на территории Иркутской области на 2011-2015 годы и на период до 2020 года» | B121: 907 | C121: 7 | D121: 2 | E121: 5225400 | F121: 0 | G121: 340.09
A122: Выполнение функций казенными учреждениями | B122: 907 | C122: 7 | D122: 2 | E122: 5225400 | F122: 001 | G122: 340.09
A123: Выплата заработной платы с начислениями на нее педагогическим работникам муниципальных дошкольных образовательных учреждений и муниципальных учреждений дополнительного образования | B123: 907 | C123: 7 | D123: 2 | E123: 5890000 | F123: 0 | G123: 2201.951
A124: Выполнение функций казенными учреждениями | B124: 907 | C124: 7 | D124: 2 | E124: 5890000 | F124: 001 | G124: 2201.951
A125: Целевые программы муниципальных образований | B125: 907 | C125: 7 | D125: 2 | E125: 7950000 | F125: 0 | G125: 16680.859
A126: Долгосрочная целевая программа Черемховского районного муниципального образования "Повышение эффективности бюджетных расходов Черемховского районного муниципального образования на 2012-2013 годы" | B126: 907 | C126: 7 | D126: 2 | E126: 7950200 | F126: 0 | G126: 13184.889
A127: Выполнение функций казенными учреждениями | B127: 907 | C127: 7 | D127: 2 | E127: 7950200 | F127: 001 | G127: 13184.889
A128: Долгосрочная целевая программа "Безопасность образовательных учреждений на 2010-2014 гг." | B128: 907 | C128: 7 | D128: 2 | E128: 7951000 | F128: 0 | G128: 1128
A129: Мероприятия по обеспечению пожарной безопасности | B129: 907 | C129: 7 | D129: 2 | E129: 7951000 | F129: 450 | G129: 1128
A130: Долгосрочная целевая программа энергосбережения и повышения энергетической эффективности Черемховского районного муниципального образования на 2010-2015 годы | B130: 907 | C130: 7 | D130: 2 | E130: 7951100 | F130: 0 | G130: 467.97
A131: Мероприятия по повышению энергетической эффективности | B131: 907 | C131: 7 | D131: 2 | E131: 7951100 | F131: 451 | G131: 467.97
A132: Долгосрочная целевая программа "Ветхие школы Черемховского района" на 2011-2013 гг. | B132: 907 | C132: 7 | D132: 2 | E132: 7951500 | F132: 0 | G132: 900
A133: Мероприятия в сфере образования | B133: 907 | C133: 7 | D133: 2 | E133: 7951500 | F133: 022 | G133: 900
A134: Долгосрочная целевая программа "Совершенствование организации питания в образовательных учреждениях Черемховского района на 2011-2013гг." | B134: 907 | C134: 7 | D134: 2 | E134: 7951600 | F134: 0 | G134: 1000
A135: Мероприятия в сфере образования | B135: 907 | C135: 7 | D135: 2 | E135: 7951600 | F135: 022 | G135: 1000
A136: Профессиональная подготовка, переподготовка и повышение квалификации | B136: 907 | C136: 7 | D136: 5 | E136: 0 | F136: 0 | G136: 100
A137: Мероприятия по переподготовке и повышению квалификации | B137: 907 | C137: 7 | D137: 5 | E137: 4340000 | F137: 0 | G137: 100
A138: Выполнение функций казенными учреждениями | B138: 907 | C138: 7 | D138: 5 | E138: 4340000 | F138: 001 | G138: 100
A139: Молодежная политика и оздоровление детей | B139: 907 | C139: 7 | D139: 7 | E139: 0 | F139: 0 | G139: 2475.9
A140: Мероприятия по проведению оздоровительной кампании детей | B140: 907 | C140: 7 | D140: 7 | E140: 4320000 | F140: 0 | G140: 123.8
A141: Оплата стоимости набора продуктов питания для детей в организованных органами местного самоуправления оздоровительных лагерях с дневным пребыванием детей за счет средств областного бюджета | B141: 907 | C141: 7 | D141: 7 | E141: 4320300 | F141: 0 | G141: 123.8
A142: Оплата стоимости набора продуктов питания для детей в организованных органами местного самоуправления оздоровительных лагерях с дневным пребыванием детей за счет средств местного бюджета | B142: 907 | C142: 7 | D142: 7 | E142: 4320302 | F142: 0 | G142: 123.8
A143: Выполнение функций казенными учреждениями | B143: 907 | C143: 7 | D143: 7 | E143: 4320302 | F143: 001 | G143: 123.8
A144: Региональные целевые программы | B144: 907 | C144: 7 | D144: 7 | E144: 5220000 | F144: 0 | G144: 2352.1
A145: Долгосрочная целевая программа Иркутской области "Организация и обеспечение отдыха и оздоровления детей в Иркутской области на 2012-2014гг." | B145: 907 | C145: 7 | D145: 7 | E145: 5226200 | F145: 0 | G145: 2352.1
A146: Выполнение функций казенными учреждениями | B146: 907 | C146: 7 | D146: 7 | E146: 5226200 | F146: 001 | G146: 2352.1
A147: Другие вопросы в области образования | B147: 907 | C147: 7 | D147: 9 | E147: 0 | F147: 0 | G147: 8497.281
A148: Руководство и управление в сфере установленных функций органов государственной власти субъектов Российской Федерации и органов местного самоуправления | B148: 907 | C148: 7 | D148: 9 | E148: 20000 | F148: 0 | G148: 2997.281
A149: Центральный аппарат | B149: 907 | C149: 7 | D149: 9 | E149: 20400 | F149: 0 | G149: 2997.281
A150: Выполнение функций органами местного самоуправления | B150: 907 | C150: 7 | D150: 9 | E150: 20400 | F150: 500 | G150: 2997.281
A151: Учебно-методические кабинеты, централизованные бухгалтерии, группы хозяйственного обслуживания, учебные фильмотеки, межшкольные учебно-производственные комбинаты, логопедические пункты | B151: 907 | C151: 7 | D151: 9 | E151: 4520000 | F151: 0 | G151: 5500
A152: Субсидии бюджетным учреждениям на финансовое обеспечение муниципального задания на оказание муниципальных услуг (выполнение работ) | B152: 907 | C152: 7 | D152: 9 | E152: 4520000 | F152: 611 | G152: 5500
A153: Социальная политика | B153: 907 | C153: 10 | D153: 0 | E153: 0 | F153: 0 | G153: 6361.8
A154: Социальное обеспечение населения | B154: 907 | C154: 10 | D154: 3 | E154: 0 | F154: 0 | G154: 6361.8
A155: Руководство и управление в сфере установленных функций органов государственной власти субъектов Российской Федерации и органов местного самоуправления | B155: 907 | C155: 10 | D155: 3 | E155: 20000 | F155: 0 | G155: 6361.8
A156: Осуществление отдельных областных государственных полномочий по предоставлению мер социальной поддержки многодетным и малоимущим семьям | B156: 907 | C156: 10 | D156: 3 | E156: 24600 | F156: 0 | G156: 6361.8
A157: Социальные выплаты | B157: 907 | C157: 10 | D157: 3 | E157: 24600 | F157: 005 | G157: 6361.8
A158: Финансовое управление администрации ЧРМО | B158: 910 | C158: 0 | D158: 0 | E158: 0 | F158: 0 | G158: 32367.714
A159: ОБЩЕГОСУДАРСТВЕННЫЕ ВОПРОСЫ | B159: 910 | C159: 1 | D159: 0 | E159: 0 | F159: 0 | G159: 23786.714
A160: Обеспечение деятельности финансовых, налоговых и таможенных органов и органов финансового (финансово-бюджетного) надзора | B160: 910 | C160: 1 | D160: 6 | E160: 0 | F160: 0 | G160: 8482.185
A161: Руководство и управление в сфере установленных функций органов государственной власти субъектов Российской Федерации и органов местного самоуправления | B161: 910 | C161: 1 | D161: 6 | E161: 20000 | F161: 0 | G161: 8282.185
A162: Центральный аппарат | B162: 910 | C162: 1 | D162: 6 | E162: 20400 | F162: 0 | G162: 8282.185
A163: Выполнение функций органами местного самоуправления | B163: 910 | C163: 1 | D163: 6 | E163: 20400 | F163: 500 | G163: 8282.185
A164: Целевые программы муниципальных образований | B164: 910 | C164: 1 | D164: 6 | E164: 7950000 | F164: 0 | G164: 200
A165: Долгосрочная целевая программа Черемховского районного муниципального образования "Повышение эффективности бюджетных расходов Черемховского районного муниципального образования на 2012-2013 годы" | B165: 910 | C165: 1 | D165: 6 | E165: 7950200 | F165: 0 | G165: 200
A166: Выполнение функций органами местного самоуправления | B166: 910 | C166: 1 | D166: 6 | E166: 7950200 | F166: 500 | G166: 200
A167: Другие общегосударственные вопросы | B167: 910 | C167: 1 | D167: 13 | E167: 0 | F167: 0 | G167: 15304.529
A168: Руководство и управление в сфере установленных функций органов государственной власти субъектов Российской Федерации и органов местного самоуправления | B168: 910 | C168: 1 | D168: 13 | E168: 20000 | F168: 0 | G168: 15304.529
A169: Обеспечение деятельности подведомственных учреждений | B169: 910 | C169: 1 | D169: 13 | E169: 29900 | F169: 0 | G169: 15304.529
A170: Выполнение функций казенными учреждениями | B170: 910 | C170: 1 | D170: 13 | E170: 29900 | F170: 001 | G170: 15304.529
A171: ЖИЛИЩНО-КОММУНАЛЬНОЕ ХОЗЯЙСТВО | B171: 910 | C171: 5 | D171: 0 | E171: 0 | F171: 0 | G171: 70
A172: Коммунальное хозяйство | B172: 910 | C172: 5 | D172: 2 | E172: 0 | F172: 0 | G172: 70
A173: Региональные целевые программы | B173: 910 | C173: 5 | D173: 2 | E173: 5220000 | F173: 0 | G173: 70
A174: Долгосрочная целевая программа «Энергосбережение и повышение энергетической эффективности на территории Иркутской области на 2011-2015 годы и на период до 2020 года» | B174: 910 | C174: 5 | D174: 2 | E174: 5225400 | F174: 0 | G174: 70
A175: Иные межбюджетные трансферты | B175: 910 | C175: 5 | D175: 2 | E175: 5225400 | F175: 017 | G175: 70
A176: ОБРАЗОВАНИЕ | B176: 910 | C176: 7 | D176: 0 | E176: 0 | F176: 0 | G176: 60
A177: Профессиональная подготовка, переподготовка и повышение квалификации | B177: 910 | C177: 7 | D177: 5 | E177: 0 | F177: 0 | G177: 60
A178: Мероприятия по переподготовке и повышению квалификации | B178: 910 | C178: 7 | D178: 5 | E178: 4340000 | F178: 0 | G178: 60
A179: Выполнение функций органами местного самоуправления | B179: 910 | C179: 7 | D179: 5 | E179: 4340000 | F179: 500 | G179: 60
A180: ОБСЛУЖИВАНИЕ ГОСУДАРСТВЕННОГО И МУНИЦИПАЛЬНОГО ДОЛГА | B180: 910 | C180: 13 | D180: 0 | E180: 0 | F180: 0 | G180: 60
A181: Обслуживание внутреннего государственного и муниципального долга | B181: 910 | C181: 13 | D181: 1 | E181: 0 | F181: 0 | G181: 60
A182: Процентные платежи по долговым обязательствам | B182: 910 | C182: 13 | D182: 1 | E182: 650000 | F182: 0 | G182: 60
A183: Процентные платежи по муниципальному долгу | B183: 910 | C183: 13 | D183: 1 | E183: 650300 | F183: 0 | G183: 60
A184: Прочие расходы | B184: 910 | C184: 13 | D184: 1 | E184: 650300 | F184: 013 | G184: 60
A185: МЕЖБЮДЖЕТНЫЕ ТРАНСФЕРТЫ ОБЩЕГО ХАРАКТЕРА БЮДЖЕТАМ СУБЪЕКТОВ РОССИЙСКОЙ ФЕДЕРАЦИИ И МУНИЦИПАЛЬНЫХ ОБРАЗОВАНИЙ | B185: 910 | C185: 14 | D185: 0 | E185: 0 | F185: 0 | G185: 8391
A186: Дотации на выравнивание бюджетной обеспеченности субъектов Российской Федерации и муниципальных образований | B186: 910 | C186: 14 | D186: 1 | E186: 0 | F186: 0 | G186: 3500
A187: Выравнивание бюджетной обеспечености | B187: 910 | C187: 14 | D187: 1 | E187: 5160000 | F187: 0 | G187: 3500
A188: Выравнивание бюджетной обеспеченности | B188: 910 | C188: 14 | D188: 1 | E188: 5160100 | F188: 0 | G188: 3500
A189: Выравнивание бюджетной обеспеченности поселений из районного фонда финансовой поддержки | B189: 910 | C189: 14 | D189: 1 | E189: 5160130 | F189: 0 | G189: 3500
A190: Фонд финансовой поддержки | B190: 910 | C190: 14 | D190: 1 | E190: 5160130 | F190: 008 | G190: 3500
A191: Прочие межбюджетные трансферты общего характера бюджетам субъектов Российской Федерации и муниципальных образований | B191: 910 | C191: 14 | D191: 3 | E191: 0 | F191: 0 | G191: 4891
A192: Целевые программы муниципальных образований | B192: 910 | C192: 14 | D192: 3 | E192: 7950000 | F192: 0 | G192: 4891
A193: Долгосрочная целевая программа Черемховского районного муниципального образования "Повышение эффективности бюджетных расходов Черемховского районного муниципального образования на 2012-2013 годы" | B193: 910 | C193: 14 | D193: 3 | E193: 7950200 | F193: 0 | G193: 4891
A194: Иные межбюджетные трансферты | B194: 910 | C194: 14 | D194: 3 | E194: 7950200 | F194: 017 | G194: 4891
A195: Комитет по управлению муниципальным имуществом ЧРМО | B195: 913 | C195: 0 | D195: 0 | E195: 0 | F195: 0 | G195: 21446.241
A196: ОБЩЕГОСУДАРСТВЕННЫЕ ВОПРОСЫ | B196: 913 | C196: 1 | D196: 0 | E196: 0 | F196: 0 | G196: 11762.714
A197: Другие общегосударственные вопросы | B197: 913 | C197: 1 | D197: 13 | E197: 0 | F197: 0 | G197: 11762.714
A198: Руководство и управление в сфере установленных функций органов государственной власти субъектов Российской Федерации и органов местного самоуправления | B198: 913 | C198: 1 | D198: 13 | E198: 20000 | F198: 0 | G198: 4007.108
A199: Центральный аппарат | B199: 913 | C199: 1 | D199: 13 | E199: 20400 | F199: 0 | G199: 3107.108
A200: Выполнение функций органами местного самоуправления | B200: 913 | C200: 1 | D200: 13 | E200: 20400 | F200: 500 | G200: 3107.108
A201: Обеспечение деятельности подведомственных учреждений | B201: 913 | C201: 1 | D201: 13 | E201: 29900 | F201: 0 | G201: 900
A202: Субсидии бюджетным учреждениям на финансовое обеспечение муниципального задания на оказание муниципальных услуг (выполнение работ) | B202: 913 | C202: 1 | D202: 13 | E202: 29900 | F202: 611 | G202: 900
A203: Реализация государственных функций, связанных с общегосударственным управлением | B203: 913 | C203: 1 | D203: 13 | E203: 920000 | F203: 0 | G203: 607.004
A204: Выполнение других обязательств государства | B204: 913 | C204: 1 | D204: 13 | E204: 920300 | F204: 0 | G204: 607.004
A205: Выполнение функций органами местного самоуправления | B205: 913 | C205: 1 | D205: 13 | E205: 920300 | F205: 500 | G205: 607.004
A206: Учреждения по обеспечению хозяйственного обслуживания | B206: 913 | C206: 1 | D206: 13 | E206: 930000 | F206: 0 | G206: 6500
A207: Субсидии бюджетным учреждениям на финансовое обеспечение муниципального задания на оказание муниципальных услуг (выполнение работ) | B207: 913 | C207: 1 | D207: 13 | E207: 930000 | F207: 611 | G207: 6500
A208: Целевые программы муниципальных образований | B208: 913 | C208: 1 | D208: 13 | E208: 7950000 | F208: 0 | G208: 648.602
A209: Долгосрочная целевая программа "Инвентаризация муниципальных объектов недвижимости Черемховского районного муниципального образования на 2012-2014 годы" | B209: 913 | C209: 1 | D209: 13 | E209: 7951900 | F209: 0 | G209: 648.602
A210: Выполнение функций органами местного самоуправления | B210: 913 | C210: 1 | D210: 13 | E210: 7951900 | F210: 500 | G210: 648.602
A211: НАЦИОНАЛЬНАЯ ЭКОНОМИКА | B211: 913 | C211: 4 | D211: 0 | E211: 0 | F211: 0 | G211: 1820
A212: Дорожное хозяйство(дорожные фонды) | B212: 913 | C212: 4 | D212: 9 | E212: 0 | F212: 0 | G212: 1320
A213: Целевые программы муниципальных образований | B213: 913 | C213: 4 | D213: 9 | E213: 7950000 | F213: 0 | G213: 1320
A214: Долгосрочная целевая программа "Инвентаризация муниципальных объектов недвижимости Черемховского районного муниципального образования на 2012-2014 годы" | B214: 913 | C214: 4 | D214: 9 | E214: 7951900 | F214: 0 | G214: 1320
A215: Выполнение функций органами местного самоуправления | B215: 913 | C215: 4 | D215: 9 | E215: 7951900 | F215: 500 | G215: 1320
A216: Другие вопросы в области национальной экономики | B216: 913 | C216: 4 | D216: 12 | E216: 0 | F216: 0 | G216: 500
A217: Целевые программы муниципальных образований | B217: 913 | C217: 4 | D217: 12 | E217: 7950000 | F217: 0 | G217: 500
A218: Долгосрочная целевая программа "Инвентаризация муниципальных объектов недвижимости Черемховского районного муниципального образования на 2012-2014 годы" | B218: 913 | C218: 4 | D218: 12 | E218: 7951900 | F218: 0 | G218: 500
A219: Выполнение функций органами местного самоуправления | B219: 913 | C219: 4 | D219: 12 | E219: 7951900 | F219: 500 | G219: 500
... 184 more rows

Sheet прил9 (hidden)
A15: Распределение бюджетных ассигнований по разделам, подразделам, целевым статьям и видам расходов классификации расходов бюджетов в ведомственной структуре расходов бюджета Черемховского районного муниципального образования на плановый период 2014 и 2015 годов
A18: Наименование показателя | B18: Код | G18: Сумма, тыс. руб.
B19: ГРБС | C19: раздела | D19: подраздела | E19: целевой статьи | F19: вида расходов | G19: 2014 | H19: 2015
A20: 1 | B20: 2 | C20: 3 | D20: 4 | E20: 5 | F20: 6 | G20: 7 | H20: 8
A21: Отдел по культуре и библиотечному обслуживанию АЧРМО | B21: 904 | C21: 0 | D21: 0 | E21: 0 | F21: 0 | G21: 17104.7 | H21: 16855.8
A22: ОБРАЗОВАНИЕ | B22: 904 | C22: 7 | D22: 0 | E22: 0 | F22: 0 | G22: 3985.3 | H22: 4112.7
A23: Общее образование | B23: 904 | C23: 7 | D23: 2 | E23: 0 | F23: 0 | G23: 3958.3 | H23: 4085.7
A24: Учреждения по внешкольной работе с детьми | B24: 904 | C24: 7 | D24: 2 | E24: 4230000 | F24: 0 | G24: 3851.3 | H24: 4011.9
A25: Обеспечение деятельности подведомственных учреждений | B25: 904 | C25: 7 | D25: 2 | E25: 4239900 | F25: 0 | G25: 3851.3 | H25: 4011.9
A26: Выполнение функций казенными учреждениями | B26: 904 | C26: 7 | D26: 2 | E26: 4239900 | F26: 001 | G26: 3851.3 | H26: 4011.9
A27: Целевые программы муниципальных образований | B27: 904 | C27: 7 | D27: 2 | E27: 7950000 | F27: 0 | G27: 107 | H27: 73.8
A28: Долгосрочная целевая программа Черемховского районного муниципального образования "Повышение эффективности бюджетных расходов Черемховского районного муниципального образования на 2012-2013 годы" | B28: 904 | C28: 7 | D28: 2 | E28: 7950200 | F28: 0 | G28: 0 | H28: 0
A29: Выполнение функций казенными учреждениями | B29: 904 | C29: 7 | D29: 2 | E29: 7950200 | F29: 001 | G29: 0 | H29: 0
A30: Долгосрочная целевая программа "Развитие культуры в Черемховском районном муниципальном образовании на период 2012-2016 гг." | B30: 904 | C30: 7 | D30: 2 | E30: 7952000 | F30: 0 | G30: 107 | H30: 73.8
A31: Мероприятия по поддержке и развитию культуры, искусства, кинематографии | B31: 904 | C31: 7 | D31: 2 | E31: 7952000 | F31: 023 | G31: 107 | H31: 73.8
A32: Профессиональная подготовка, переподготовка и повышение квалификации | B32: 904 | C32: 7 | D32: 5 | E32: 0 | F32: 0 | G32: 27 | H32: 27
A33: Мероприятия по переподготовке и повышению квалификации | B33: 904 | C33: 7 | D33: 5 | E33: 4340000 | F33: 0 | G33: 27 | H33: 27
A34: Выполнение функций казенными учреждениями | B34: 904 | C34: 7 | D34: 5 | E34: 4340000 | F34: 001 | G34: 27 | H34: 27
A35: КУЛЬТУРА И КИНЕМАТОГРАФИЯ | B35: 904 | C35: 8 | D35: 0 | E35: 0 | F35: 0 | G35: 13119.4 | H35: 12743.1
A36: Культура | B36: 904 | C36: 8 | D36: 1 | E36: 0 | F36: 0 | G36: 12183.5 | H36: 11762
A37: Учреждения культуры и мероприятия в сфере культуры и кинематографии | B37: 904 | C37: 8 | D37: 1 | E37: 4400000 | F37: 0 | G37: 3856.1 | H37: 4010.2
A38: Комплектование книжных фондов библиотек муниципальных образований и государственных библиотек городов Москвы и Санкт-Петербурга | B38: 904 | C38: 8 | D38: 1 | E38: 4400200 | F38: 0 | G38: 466.3 | H38: 466.3
A39: Комплектование книжных фондов библиотек муниципальных образований и государственных библиотек городов Москвы и Санкт-Петербурга за счет средств федерального бюджета | B39: 904 | C39: 8 | D39: 1 | E39: 4400201 | F39: 0 | G39: 303.6 | H39: 303.6
A40: Выполнение функций казенными учреждениями | B40: 904 | C40: 8 | D40: 1 | E40: 4400201 | F40: 001 | G40: 303.6 | H40: 303.6
A41: Комплектование книжных фондов библиотек муниципальных образований и государственных библиотек городов Москвы и Санкт-Петербурга за счет областного бюджета | B41: 904 | C41: 8 | D41: 1 | E41: 4400202 | F41: 0 | G41: 162.7 | H41: 162.7
A42: Выполнение функций казенными учреждениями | B42: 904 | C42: 8 | D42: 1 | E42: 4400202 | F42: 001 | G42: 162.7 | H42: 162.7
A43: Обеспечение деятельности подведомственных учреждений | B43: 904 | C43: 8 | D43: 1 | E43: 4409900 | F43: 0 | G43: 3389.8 | H43: 3543.9
A44: Выполнение функций казенными учреждениями | B44: 904 | C44: 8 | D44: 1 | E44: 4409900 | F44: 001 | G44: 3389.8 | H44: 3543.9
A45: Музеи и постоянные выставки | B45: 904 | C45: 8 | D45: 1 | E45: 4410000 | F45: 0 | G45: 899.1 | H45: 935.8
A46: Обеспечение деятельности подведомственных учреждений | B46: 904 | C46: 8 | D46: 1 | E46: 4419900 | F46: 0 | G46: 899.1 | H46: 935.8
A47: Выполнение функций казенными учреждениями | B47: 904 | C47: 8 | D47: 1 | E47: 4419900 | F47: 001 | G47: 899.1 | H47: 935.8
A48: Библиотеки | B48: 904 | C48: 8 | D48: 1 | E48: 4420000 | F48: 0 | G48: 5424.3 | H48: 5676.8
A49: Обеспечение деятельности подведомственных учреждений | B49: 904 | C49: 8 | D49: 1 | E49: 4429900 | F49: 0 | G49: 5424.3 | H49: 5676.8
A50: Выполнение функций казенными учреждениями | B50: 904 | C50: 8 | D50: 1 | E50: 4429900 | F50: 001 | G50: 5424.3 | H50: 5676.8
A51: Региональные целевые программы | B51: 904 | C51: 8 | D51: 1 | E51: 5220000 | F51: 0 | G51: 1000 | H51: 0
A52: Долгосрочная целевая программа Иркутской области «100 модельных домов культуры Приангарью» на 2011-2013 годы | B52: 904 | C52: 8 | D52: 1 | E52: 5225500 | F52: 0 | G52: 1000 | H52: 0
A53: Выполнение функций казенными учреждениями | B53: 904 | C53: 8 | D53: 1 | E53: 5225500 | F53: 001 | G53: 1000 | H53: 0
A54: Целевые программы муниципальных образований | B54: 904 | C54: 8 | D54: 1 | E54: 7950000 | F54: 0 | G54: 1004 | H54: 1139.2
A55: Долгосрочная целевая программа Черемховского районного муниципального образования "Повышение эффективности бюджетных расходов Черемховского районного муниципального образования на 2012-2013 годы" | B55: 904 | C55: 8 | D55: 1 | E55: 7950200 | F55: 0 | G55: 0 | H55: 0
A56: Выполнение функций казенными учреждениями | B56: 904 | C56: 8 | D56: 1 | E56: 7950200 | F56: 001 | G56: 0 | H56: 0
A57: Долгосрочная целевая программа энергосбережения и повышения энергетической эффективности Черемховского районного муниципального образования на 2010-2015 годы | B57: 904 | C57: 8 | D57: 1 | E57: 7951100 | F57: 0 | G57: 100 | H57: 200
A58: Мероприятия по повышению энергетической эффективности | B58: 904 | C58: 8 | D58: 1 | E58: 7951100 | F58: 451 | G58: 100 | H58: 200
A59: Долгосрочная целевая программа "Развитие культуры в Черемховском районном муниципальном образовании на период 2012-2016 гг." | B59: 904 | C59: 8 | D59: 1 | E59: 7952000 | F59: 0 | G59: 904 | H59: 939.2
A60: Мероприятия по поддержке и развитию культуры, искусства, кинематографии | B60: 904 | C60: 8 | D60: 1 | E60: 7952000 | F60: 023 | G60: 904 | H60: 939.2
A61: Другие вопросы в области культуры, кинематографии | B61: 904 | C61: 8 | D61: 4 | E61: 0 | F61: 0 | G61: 935.9 | H61: 981.1
A62: Руководство и управление в сфере установленных функций органов государственной власти субъектов Российской Федерации и органов местного самоуправления | B62: 904 | C62: 8 | D62: 4 | E62: 20000 | F62: 0 | G62: 935.9 | H62: 981.1
A63: Центральный аппарат | B63: 904 | C63: 8 | D63: 4 | E63: 20400 | F63: 0 | G63: 935.9 | H63: 981.1
A64: Выполнение функций органами местного самоуправления | B64: 904 | C64: 8 | D64: 4 | E64: 20400 | F64: 500 | G64: 935.9 | H64: 981.1
A65: Отдел образования АЧРМО | B65: 907 | C65: 0 | D65: 0 | E65: 0 | F65: 0 | G65: 351260.8 | H65: 348866.2
A66: ОБРАЗОВАНИЕ | B66: 907 | C66: 7 | D66: 0 | E66: 0 | F66: 0 | G66: 344899 | H66: 342504.4
A67: Дошкольное образование | B67: 907 | C67: 7 | D67: 1 | E67: 0 | F67: 0 | G67: 64603.4 | H67: 62906.1
A68: Детские дошкольные учреждения | B68: 907 | C68: 7 | D68: 1 | E68: 4200000 | F68: 0 | G68: 61308.4 | H68: 61441.1
A69: Обеспечение деятельности подведомственных учреждений | B69: 907 | C69: 7 | D69: 1 | E69: 4209900 | F69: 0 | G69: 61308.4 | H69: 61441.1
A70: Выполнение функций казенными учреждениями | B70: 907 | C70: 7 | D70: 1 | E70: 4209900 | F70: 001 | G70: 61308.4 | H70: 61441.1
A71: Региональные целевые программы | B71: 907 | C71: 7 | D71: 1 | E71: 5220000 | F71: 0 | G71: 0 | H71: 0
A72: Областная государственная целевая программа поддержки и развития учреждений дошкольного образования в Иркутской области на 2009-2014 годы | B72: 907 | C72: 7 | D72: 1 | E72: 5223700 | F72: 0 | G72: 0 | H72: 0
A73: Выполнение функций казенными учреждениями | B73: 907 | C73: 7 | D73: 1 | E73: 5223700 | F73: 001 | G73: 0 | H73: 0
A74: Долгосрочная целевая программа «Энергосбережение и повышение энергетической эффективности на территории Иркутской области на 2011-2015 годы и на период до 2020 года» | B74: 907 | C74: 7 | D74: 1 | E74: 5225400 | F74: 0 | G74: 0 | H74: 0
A75: Выполнение функций казенными учреждениями | B75: 907 | C75: 7 | D75: 1 | E75: 5225400 | F75: 001 | G75: 0 | H75: 0
A76: Выплата заработной платы с начислениями на нее педагогическим работникам муниципальных дошкольных образовательных учреждений и муниципальных учреждений дополнительного образования | B76: 907 | C76: 7 | D76: 1 | E76: 5890000 | F76: 0 | G76: 1465 | H76: 1465
A77: Выполнение функций казенными учреждениями | B77: 907 | C77: 7 | D77: 1 | E77: 5890000 | F77: 001 | G77: 1465 | H77: 1465
A78: Целевые программы муниципальных образований | B78: 907 | C78: 7 | D78: 1 | E78: 7950000 | F78: 0 | G78: 1830 | H78: 0
A79: Долгосрочная целевая программа Черемховского районного муниципального образования "Повышение эффективности бюджетных расходов Черемховского районного муниципального образования на 2012-2013 годы" | B79: 907 | C79: 7 | D79: 1 | E79: 7950200 | F79: 0 | G79: 0 | H79: 0
A80: Выполнение функций казенными учреждениями | B80: 907 | C80: 7 | D80: 1 | E80: 7950200 | F80: 001 | G80: 0 | H80: 0
A81: Долгосрочная целевая программа "Безопасность образовательных учреждений на 2010-2014 гг." | B81: 907 | C81: 7 | D81: 1 | E81: 7951000 | F81: 0 | G81: 830 | H81: 0
A82: Мероприятия по обеспечению пожарной безопасности | B82: 907 | C82: 7 | D82: 1 | E82: 7951000 | F82: 450 | G82: 830 | H82: 0
A83: Долгосрочная целевая программа энергосбережения и повышения энергетической эффективности Черемховского районного муниципального образования на 2010-2015 годы | B83: 907 | C83: 7 | D83: 1 | E83: 7951100 | F83: 0 | G83: 600 | H83: 0
A84: Мероприятия по повышению энергетической эффективности | B84: 907 | C84: 7 | D84: 1 | E84: 7951100 | F84: 451 | G84: 600 | H84: 0
A85: Долгосрочная целевая программа "Развитие дошкольного образования на 2011-2014 гг." | B85: 907 | C85: 7 | D85: 1 | E85: 7951700 | F85: 0 | G85: 0 | H85: 0
A86: Мероприятия в сфере образования | B86: 907 | C86: 7 | D86: 1 | E86: 7951700 | F86: 022 | G86: 0 | H86: 0
A87: Долгосрочная целевая программа "Совершенствование дошкольного образования Черемховского района на 2011-2014 гг." | B87: 907 | C87: 7 | D87: 1 | E87: 7951800 | F87: 0 | G87: 400 | H87: 0
A88: Мероприятия в сфере образования | B88: 907 | C88: 7 | D88: 1 | E88: 7951800 | F88: 022 | G88: 400 | H88: 0
A89: Общее образование | B89: 907 | C89: 7 | D89: 2 | E89: 0 | F89: 0 | G89: 272963 | H89: 272175.9
A90: Руководство и управление в сфере установленных функций органов государственной власти субъектов Российской Федерации и органов местного самоуправления | B90: 907 | C90: 7 | D90: 2 | E90: 20000 | F90: 0 | G90: 238581.5 | H90: 238581.5
A91: Обеспечение государственных гарантий прав граждан на получение общедоступного и бесплатного дошкольного, начального общего, основного общего, среднего (полного) общего образования, а также дополнительного образования в общеобразовательных учреждениях | B91: 907 | C91: 7 | D91: 2 | E91: 25000 | F91: 0 | G91: 238581.5 | H91: 238581.5
A92: Выполнение функций казенными учреждениями | B92: 907 | C92: 7 | D92: 2 | E92: 25000 | F92: 001 | G92: 238581.5 | H92: 238581.5
A93: Школы - детские сады, школы начальные, неполные средние и средние | B93: 907 | C93: 7 | D93: 2 | E93: 4210000 | F93: 0 | G93: 15782.6 | H93: 15808.4
A94: Обеспечение деятельности подведомственных учреждений | B94: 907 | C94: 7 | D94: 2 | E94: 4219900 | F94: 0 | G94: 15782.6 | H94: 15808.4
A95: Выполнение функций казенными учреждениями | B95: 907 | C95: 7 | D95: 2 | E95: 4219900 | F95: 001 | G95: 15782.6 | H95: 15808.4
A96: Учреждения по внешкольной работе с детьми | B96: 907 | C96: 7 | D96: 2 | E96: 4230000 | F96: 0 | G96: 16488.8 | H96: 17245.9
A97: Обеспечение деятельности подведомственных учреждений | B97: 907 | C97: 7 | D97: 2 | E97: 4239900 | F97: 0 | G97: 16488.8 | H97: 17245.9
A98: Выполнение функций казенными учреждениями | B98: 907 | C98: 7 | D98: 2 | E98: 4239900 | F98: 001 | G98: 16488.8 | H98: 17245.9
A99: Мероприятия в области образования | B99: 907 | C99: 7 | D99: 2 | E99: 4360000 | F99: 0 | G99: 0 | H99: 0
A100: Модернизация региональных систем образования | B100: 907 | C100: 7 | D100: 2 | E100: 4362100 | F100: 0 | G100: 0 | H100: 0
A101: Модернизация региональных систем образования за счет средств федерального бюджета | B101: 907 | C101: 7 | D101: 2 | E101: 4362101 | F101: 0 | G101: 0 | H101: 0
A102: Выполнение функций казенными учреждениями | B102: 907 | C102: 7 | D102: 2 | E102: 4362101 | F102: 001 | G102: 0 | H102: 0
A103: Иные безвозмездные и безвозвратные перечисления | B103: 907 | C103: 7 | D103: 2 | E103: 5200000 | F103: 0 | G103: 0 | H103: 0
A104: Ежемесячное денежное вознаграждение за классное руководство | B104: 907 | C104: 7 | D104: 2 | E104: 5200900 | F104: 0 | G104: 0 | H104: 0
A105: Выполнение функций казенными учреждениями | B105: 907 | C105: 7 | D105: 2 | E105: 5200900 | F105: 001 | G105: 0 | H105: 0
A106: Региональные целевые программы | B106: 907 | C106: 7 | D106: 2 | E106: 5220000 | F106: 0 | G106: 0 | H106: 0
A107: Долгосрочная целевая программа «Модернизация объектов коммунальной инфраструктуры Иркутской области на 2011-2013 годы» | B107: 907 | C107: 7 | D107: 2 | E107: 5222000 | F107: 0 | G107: 0 | H107: 0
A108: Подпрограмма «Подготовка объектов коммунальной инфраструктуры Иркутской области к отопительному сезону в 2011-2013 годах» | B108: 907 | C108: 7 | D108: 2 | E108: 5222001 | F108: 0 | G108: 0 | H108: 0
A109: Выполнение функций казенными учреждениями | B109: 907 | C109: 7 | D109: 2 | E109: 5222001 | F109: 001 | G109: 0 | H109: 0
A110: Долгосрочная целевая программа «Энергосбережение и повышение энергетической эффективности на территории Иркутской области на 2011-2015 годы и на период до 2020 года» | B110: 907 | C110: 7 | D110: 2 | E110: 5225400 | F110: 0 | G110: 0 | H110: 0
A111: Выполнение функций казенными учреждениями | B111: 907 | C111: 7 | D111: 2 | E111: 5225400 | F111: 001 | G111: 0 | H111: 0
A112: Выплата заработной платы с начислениями на нее педагогическим работникам муниципальных дошкольных образовательных учреждений и муниципальных учреждений дополнительного образования | B112: 907 | C112: 7 | D112: 2 | E112: 5890000 | F112: 0 | G112: 540.1 | H112: 540.1
A113: Выполнение функций казенными учреждениями | B113: 907 | C113: 7 | D113: 2 | E113: 5890000 | F113: 001 | G113: 540.1 | H113: 540.1
A114: Целевые программы муниципальных образований | B114: 907 | C114: 7 | D114: 2 | E114: 7950000 | F114: 0 | G114: 1570 | H114: 0
A115: Долгосрочная целевая программа Черемховского районного муниципального образования "Повышение эффективности бюджетных расходов Черемховского районного муниципального образования на 2012-2013 годы" | B115: 907 | C115: 7 | D115: 2 | E115: 7950200 | F115: 0 | G115: 0 | H115: 0
A116: Выполнение функций казенными учреждениями | B116: 907 | C116: 7 | D116: 2 | E116: 7950200 | F116: 001 | G116: 0 | H116: 0
A117: Долгосрочная целевая программа "Безопасность образовательных учреждений на 2010-2014 гг." | B117: 907 | C117: 7 | D117: 2 | E117: 7951000 | F117: 0 | G117: 970 | H117: 0
A118: Мероприятия по обеспечению пожарной безопасности | B118: 907 | C118: 7 | D118: 2 | E118: 7951000 | F118: 450 | G118: 970 | H118: 0
A119: Долгосрочная целевая программа энергосбережения и повышения энергетической эффективности Черемховского районного муниципального образования на 2010-2015 годы | B119: 907 | C119: 7 | D119: 2 | E119: 7951100 | F119: 0 | G119: 0 | H119: 0
A120: Мероприятия по повышению энергетической эффективности | B120: 907 | C120: 7 | D120: 2 | E120: 7951100 | F120: 451 | G120: 0 | H120: 0
A121: Долгосрочная целевая программа "Ветхие школы Черемховского района" на 2011-2013 гг. | B121: 907 | C121: 7 | D121: 2 | E121: 7951500 | F121: 0 | G121: 0 | H121: 0
A122: Мероприятия в сфере образования | B122: 907 | C122: 7 | D122: 2 | E122: 7951500 | F122: 022 | G122: 0 | H122: 0
A123: Долгосрочная целевая программа "Совершенствование организации питания в образовательных учреждениях Черемховского района на 2011-2013гг." | B123: 907 | C123: 7 | D123: 2 | E123: 7951600 | F123: 0 | G123: 600 | H123: 0
A124: Мероприятия в сфере образования | B124: 907 | C124: 7 | D124: 2 | E124: 7951600 | F124: 022 | G124: 600 | H124: 0
A125: Профессиональная подготовка, переподготовка и повышение квалификации | B125: 907 | C125: 7 | D125: 5 | E125: 0 | F125: 0 | G125: 100 | H125: 100
A126: Мероприятия по переподготовке и повышению квалификации | B126: 907 | C126: 7 | D126: 5 | E126: 4340000 | F126: 0 | G126: 100 | H126: 100
A127: Выполнение функций казенными учреждениями | B127: 907 | C127: 7 | D127: 5 | E127: 4340000 | F127: 001 | G127: 100 | H127: 100
A128: Молодежная политика и оздоровление детей | B128: 907 | C128: 7 | D128: 7 | E128: 0 | F128: 0 | G128: 126 | H128: 126
A129: Мероприятия по проведению оздоровительной кампании детей | B129: 907 | C129: 7 | D129: 7 | E129: 4320000 | F129: 0 | G129: 126 | H129: 126
A130: Оплата стоимости набора продуктов питания для детей в организованных органами местного самоуправления оздоровительных лагерях с дневным пребыванием детей за счет средств областного бюджета | B130: 907 | C130: 7 | D130: 7 | E130: 4320300 | F130: 0 | G130: 126 | H130: 126
A131: Оплата стоимости набора продуктов питания для детей в организованных органами местного самоуправления оздоровительных лагерях с дневным пребыванием детей за счет средств местного бюджета | B131: 907 | C131: 7 | D131: 7 | E131: 4320302 | F131: 0 | G131: 126 | H131: 126
A132: Выполнение функций казенными учреждениями | B132: 907 | C132: 7 | D132: 7 | E132: 4320302 | F132: 001 | G132: 126 | H132: 126
A133: Региональные целевые программы | B133: 907 | C133: 7 | D133: 7 | E133: 5220000 | F133: 0 | G133: 0 | H133: 0
A134: Долгосрочная целевая программа Иркутской области "Организация и обеспечение отдыха и оздоровления детей в Иркутской области на 2012-2014гг." | B134: 907 | C134: 7 | D134: 7 | E134: 5226200 | F134: 0 | G134: 0 | H134: 0
A135: Выполнение функций казенными учреждениями | B135: 907 | C135: 7 | D135: 7 | E135: 5226200 | F135: 001 | G135: 0 | H135: 0
A136: Другие вопросы в области образования | B136: 907 | C136: 7 | D136: 9 | E136: 0 | F136: 0 | G136: 7106.6 | H136: 7196.4
A137: Руководство и управление в сфере установленных функций органов государственной власти субъектов Российской Федерации и органов местного самоуправления | B137: 907 | C137: 7 | D137: 9 | E137: 20000 | F137: 0 | G137: 2106.6 | H137: 2196.4
A138: Центральный аппарат | B138: 907 | C138: 7 | D138: 9 | E138: 20400 | F138: 0 | G138: 2106.6 | H138: 2196.4
A139: Выполнение функций органами местного самоуправления | B139: 907 | C139: 7 | D139: 9 | E139: 20400 | F139: 500 | G139: 2106.6 | H139: 2196.4
A140: Учебно-методические кабинеты, централизованные бухгалтерии, группы хозяйственного обслуживания, учебные фильмотеки, межшкольные учебно-производственные комбинаты, логопедические пункты | B140: 907 | C140: 7 | D140: 9 | E140: 4520000 | F140: 0 | G140: 5000 | H140: 5000
A141: Субсидии бюджетным учреждениям на финансовое обеспечение муниципального задания на оказание муниципальных услуг (выполнение работ) | B141: 907 | C141: 7 | D141: 9 | E141: 4520000 | F141: 611 | G141: 5000 | H141: 5000
A142: Социальная политика | B142: 907 | C142: 10 | D142: 0 | E142: 0 | F142: 0 | G142: 6361.8 | H142: 6361.8
A143: Социальное обеспечение населения | B143: 907 | C143: 10 | D143: 3 | E143: 0 | F143: 0 | G143: 6361.8 | H143: 6361.8
A144: Руководство и управление в сфере установленных функций органов государственной власти субъектов Российской Федерации и органов местного самоуправления | B144: 907 | C144: 10 | D144: 3 | E144: 20000 | F144: 0 | G144: 6361.8 | H144: 6361.8
A145: Осуществление отдельных областных государственных полномочий по предоставлению мер социальной поддержки многодетным и малоимущим семьям | B145: 907 | C145: 10 | D145: 3 | E145: 24600 | F145: 0 | G145: 6361.8 | H145: 6361.8
A146: Социальные выплаты | B146: 907 | C146: 10 | D146: 3 | E146: 24600 | F146: 005 | G146: 6361.8 | H146: 6361.8
A147: Финансовое управление администрации ЧРМО | B147: 910 | C147: 0 | D147: 0 | E147: 0 | F147: 0 | G147: 20193.3 | H147: 21036.8
A148: ОБЩЕГОСУДАРСТВЕННЫЕ ВОПРОСЫ | B148: 910 | C148: 1 | D148: 0 | E148: 0 | F148: 0 | G148: 16732.1 | H148: 17473.3
A149: Обеспечение деятельности финансовых, налоговых и таможенных органов и органов финансового (финансово-бюджетного) надзора | B149: 910 | C149: 1 | D149: 6 | E149: 0 | F149: 0 | G149: 5642.7 | H149: 5882.2
A150: Руководство и управление в сфере установленных функций органов государственной власти субъектов Российской Федерации и органов местного самоуправления | B150: 910 | C150: 1 | D150: 6 | E150: 20000 | F150: 0 | G150: 5642.7 | H150: 5882.2
A151: Центральный аппарат | B151: 910 | C151: 1 | D151: 6 | E151: 20400 | F151: 0 | G151: 5642.7 | H151: 5882.2
A152: Выполнение функций органами местного самоуправления | B152: 910 | C152: 1 | D152: 6 | E152: 20400 | F152: 500 | G152: 5642.7 | H152: 5882.2
A153: Целевые программы муниципальных образований | B153: 910 | C153: 1 | D153: 6 | E153: 7950000 | F153: 0 | G153: 0 | H153: 0
A154: Долгосрочная целевая программа Черемховского районного муниципального образования "Повышение эффективности бюджетных расходов Черемховского районного муниципального образования на 2012-2013 годы" | B154: 910 | C154: 1 | D154: 6 | E154: 7950200 | F154: 0 | G154: 0 | H154: 0
A155: Выполнение функций органами местного самоуправления | B155: 910 | C155: 1 | D155: 6 | E155: 7950200 | F155: 500 | G155: 0 | H155: 0
A156: Другие общегосударственные вопросы | B156: 910 | C156: 1 | D156: 13 | E156: 0 | F156: 0 | G156: 11089.4 | H156: 11591.1
A157: Руководство и управление в сфере установленных функций органов государственной власти субъектов Российской Федерации и органов местного самоуправления | B157: 910 | C157: 1 | D157: 13 | E157: 20000 | F157: 0 | G157: 11089.4 | H157: 11591.1
A158: Обеспечение деятельности подведомственных учреждений | B158: 910 | C158: 1 | D158: 13 | E158: 29900 | F158: 0 | G158: 11089.4 | H158: 11591.1
A159: Выполнение функций казенными учреждениями | B159: 910 | C159: 1 | D159: 13 | E159: 29900 | F159: 001 | G159: 11089.4 | H159: 11591.1
A160: ЖИЛИЩНО-КОММУНАЛЬНОЕ ХОЗЯЙСТВО | B160: 910 | C160: 5 | D160: 0 | E160: 0 | F160: 0 | G160: 0 | H160: 0
A161: Коммунальное хозяйство | B161: 910 | C161: 5 | D161: 2 | E161: 0 | F161: 0 | G161: 0 | H161: 0
A162: Региональные целевые программы | B162: 910 | C162: 5 | D162: 2 | E162: 5220000 | F162: 0 | G162: 0 | H162: 0
A163: Долгосрочная целевая программа «Энергосбережение и повышение энергетической эффективности на территории Иркутской области на 2011-2015 годы и на период до 2020 года» | B163: 910 | C163: 5 | D163: 2 | E163: 5225400 | F163: 0 | G163: 0 | H163: 0
A164: Иные межбюджетные трансферты | B164: 910 | C164: 5 | D164: 2 | E164: 5225400 | F164: 017 | G164: 0 | H164: 0
A165: ОБРАЗОВАНИЕ | B165: 910 | C165: 7 | D165: 0 | E165: 0 | F165: 0 | G165: 0 | H165: 0
A166: Профессиональная подготовка, переподготовка и повышение квалификации | B166: 910 | C166: 7 | D166: 5 | E166: 0 | F166: 0 | G166: 0 | H166: 0
A167: Мероприятия по переподготовке и повышению квалификации | B167: 910 | C167: 7 | D167: 5 | E167: 4340000 | F167: 0 | G167: 0 | H167: 0
A168: Выполнение функций органами местного самоуправления | B168: 910 | C168: 7 | D168: 5 | E168: 4340000 | F168: 500 | G168: 0 | H168: 0
A169: ОБСЛУЖИВАНИЕ ГОСУДАРСТВЕННОГО И МУНИЦИПАЛЬНОГО ДОЛГА | B169: 910 | C169: 13 | D169: 0 | E169: 0 | F169: 0 | G169: 61.2 | H169: 63.5
A170: Обслуживание внутреннего государственного и муниципального долга | B170: 910 | C170: 13 | D170: 1 | E170: 0 | F170: 0 | G170: 61.2 | H170: 63.5
A171: Процентные платежи по долговым обязательствам | B171: 910 | C171: 13 | D171: 1 | E171: 650000 | F171: 0 | G171: 61.2 | H171: 63.5
A172: Процентные платежи по муниципальному долгу | B172: 910 | C172: 13 | D172: 1 | E172: 650300 | F172: 0 | G172: 61.2 | H172: 63.5
A173: Прочие расходы | B173: 910 | C173: 13 | D173: 1 | E173: 650300 | F173: 013 | G173: 61.2 | H173: 63.5
A174: МЕЖБЮДЖЕТНЫЕ ТРАНСФЕРТЫ ОБЩЕГО ХАРАКТЕРА БЮДЖЕТАМ СУБЪЕКТОВ РОССИЙСКОЙ ФЕДЕРАЦИИ И МУНИЦИПАЛЬНЫХ ОБРАЗОВАНИЙ | B174: 910 | C174: 14 | D174: 0 | E174: 0 | F174: 0 | G174: 3400 | H174: 3500
A175: Дотации на выравнивание бюджетной обеспеченности субъектов Российской Федерации и муниципальных образований | B175: 910 | C175: 14 | D175: 1 | E175: 0 | F175: 0 | G175: 3400 | H175: 3500
A176: Выравнивание бюджетной обеспечености | B176: 910 | C176: 14 | D176: 1 | E176: 5160000 | F176: 0 | G176: 3400 | H176: 3500
A177: Выравнивание бюджетной обеспеченности | B177: 910 | C177: 14 | D177: 1 | E177: 5160100 | F177: 0 | G177: 3400 | H177: 3500
A178: Выравнивание бюджетной обеспеченности поселений из районного фонда финансовой поддержки | B178: 910 | C178: 14 | D178: 1 | E178: 5160130 | F178: 0 | G178: 3400 | H178: 3500
A179: Фонд финансовой поддержки | B179: 910 | C179: 14 | D179: 1 | E179: 5160130 | F179: 008 | G179: 3400 | H179: 3500
A180: Прочие межбюджетные трансферты общего характера бюджетам субъектов Российской Федерации и муниципальных образований | B180: 910 | C180: 14 | D180: 3 | E180: 0 | F180: 0 | G180: 0 | H180: 0
A181: Целевые программы муниципальных образований | B181: 910 | C181: 14 | D181: 3 | E181: 7950000 | F181: 0 | G181: 0 | H181: 0
A182: Долгосрочная целевая программа Черемховского районного муниципального образования "Повышение эффективности бюджетных расходов Черемховского районного муниципального образования на 2012-2013 годы" | B182: 910 | C182: 14 | D182: 3 | E182: 7950200 | F182: 0 | G182: 0 | H182: 0
A183: Иные межбюджетные трансферты | B183: 910 | C183: 14 | D183: 3 | E183: 7950200 | F183: 017 | G183: 0 | H183: 0
A184: Комитет по управлению муниципальным имуществом ЧРМО | B184: 913 | C184: 0 | D184: 0 | E184: 0 | F184: 0 | G184: 12669.7 | H184: 11759
A185: ОБЩЕГОСУДАРСТВЕННЫЕ ВОПРОСЫ | B185: 913 | C185: 1 | D185: 0 | E185: 0 | F185: 0 | G185: 10169.7 | H185: 9759
A186: Другие общегосударственные вопросы | B186: 913 | C186: 1 | D186: 13 | E186: 0 | F186: 0 | G186: 10169.7 | H186: 9759
A187: Руководство и управление в сфере установленных функций органов государственной власти субъектов Российской Федерации и органов местного самоуправления | B187: 913 | C187: 1 | D187: 13 | E187: 20000 | F187: 0 | G187: 3162.4 | H187: 3251.7
A188: Центральный аппарат | B188: 913 | C188: 1 | D188: 13 | E188: 20400 | F188: 0 | G188: 2262.4 | H188: 2351.7
A189: Выполнение функций органами местного самоуправления | B189: 913 | C189: 1 | D189: 13 | E189: 20400 | F189: 500 | G189: 2262.4 | H189: 2351.7
A190: Обеспечение деятельности подведомственных учреждений | B190: 913 | C190: 1 | D190: 13 | E190: 29900 | F190: 0 | G190: 900 | H190: 900
A191: Субсидии бюджетным учреждениям на финансовое обеспечение муниципального задания на оказание муниципальных услуг (выполнение работ) | B191: 913 | C191: 1 | D191: 13 | E191: 29900 | F191: 611 | G191: 900 | H191: 900
A192: Реализация государственных функций, связанных с общегосударственным управлением | B192: 913 | C192: 1 | D192: 13 | E192: 920000 | F192: 0 | G192: 7.3 | H192: 7.3
A193: Выполнение других обязательств государства | B193: 913 | C193: 1 | D193: 13 | E193: 920300 | F193: 0 | G193: 7.3 | H193: 7.3
A194: Выполнение функций органами местного самоуправления | B194: 913 | C194: 1 | D194: 13 | E194: 920300 | F194: 500 | G194: 7.3 | H194: 7.3
A195: Учреждения по обеспечению хозяйственного обслуживания | B195: 913 | C195: 1 | D195: 13 | E195: 930000 | F195: 0 | G195: 6500 | H195: 6500
A196: Субсидии бюджетным учреждениям на финансовое обеспечение муниципального задания на оказание муниципальных услуг (выполнение работ) | B196: 913 | C196: 1 | D196: 13 | E196: 930000 | F196: 611 | G196: 6500 | H196: 6500
A197: Целевые программы муниципальных образований | B197: 913 | C197: 1 | D197: 13 | E197: 7950000 | F197: 0 | G197: 500 | H197: 0
A198: Долгосрочная целевая программа "Инвентаризация муниципальных объектов недвижимости Черемховского районного муниципального образования на 2012-2014 годы" | B198: 913 | C198: 1 | D198: 13 | E198: 7951900 | F198: 0 | G198: 500 | H198: 0
A199: Выполнение функций органами местного самоуправления | B199: 913 | C199: 1 | D199: 13 | E199: 7951900 | F199: 500 | G199: 500 | H199: 0
A200: НАЦИОНАЛЬНАЯ ЭКОНОМИКА | B200: 913 | C200: 4 | D200: 0 | E200: 0 | F200: 0 | G200: 500 | H200: 0
A201: Дорожное хозяйство(дорожные фонды) | B201: 913 | C201: 4 | D201: 9 | E201: 0 | F201: 0 | G201: 0 | H201: 0
A202: Целевые программы муниципальных образований | B202: 913 | C202: 4 | D202: 9 | E202: 7950000 | F202: 0 | G202: 0 | H202: 0
A203: Долгосрочная целевая программа "Инвентаризация муниципальных объектов недвижимости Черемховского районного муниципального образования на 2012-2014 годы" | B203: 913 | C203: 4 | D203: 9 | E203: 7951900 | F203: 0 | G203: 0 | H203: 0
A204: Выполнение функций органами местного самоуправления | B204: 913 | C204: 4 | D204: 9 | E204: 7951900 | F204: 500 | G204: 0 | H204: 0
A205: Другие вопросы в области национальной экономики | B205: 913 | C205: 4 | D205: 12 | E205: 0 | F205: 0 | G205: 500 | H205: 0
A206: Целевые программы муниципальных образований | B206: 913 | C206: 4 | D206: 12 | E206: 7950000 | F206: 0 | G206: 500 | H206: 0
A207: Долгосрочная целевая программа "Инвентаризация муниципальных объектов недвижимости Черемховского районного муниципального образования на 2012-2014 годы" | B207: 913 | C207: 4 | D207: 12 | E207: 7951900 | F207: 0 | G207: 500 | H207: 0
A208: Выполнение функций органами местного самоуправления | B208: 913 | C208: 4 | D208: 12 | E208: 7951900 | F208: 500 | G208: 500 | H208: 0
A209: ЖИЛИЩНО-КОММУНАЛЬНОЕ ХОЗЯЙСТВО | B209: 913 | C209: 5 | D209: 0 | E209: 0 | F209: 0 | G209: 0 | H209: 0
A210: Жилищное хозяйство | B210: 913 | C210: 5 | D210: 1 | E210: 0 | F210: 0 | G210: 0 | H210: 0
A211: Поддержка жилищного хозяйства | B211: 913 | C211: 5 | D211: 1 | E211: 3500000 | F211: 0 | G211: 0 | H211: 0
A212: Мероприятия в области жилищного хозяйства | B212: 913 | C212: 5 | D212: 1 | E212: 3500300 | F212: 0 | G212: 0 | H212: 0
A213: Выполнение функций органами местного самоуправления | B213: 913 | C213: 5 | D213: 1 | E213: 3500300 | F213: 500 | G213: 0 | H213: 0
A214: ОБРАЗОВАНИЕ | B214: 913 | C214: 7 | D214: 0 | E214: 0 | F214: 0 | G214: 0 | H214: 0
A215: Профессиональная подготовка, переподготовка и повышение квалификации | B215: 913 | C215: 7 | D215: 5 | E215: 0 | F215: 0 | G215: 0 | H215: 0
A216: Мероприятия по переподготовке и повышению квалификации | B216: 913 | C216: 7 | D216: 5 | E216: 4340000 | F216: 0 | G216: 0 | H216: 0
... 179 more rows

Sheet прил10
A15: Распределение бюджетных ассигнований на реализацию долгосрочных районных целевых программ Черемховского районного муниципального образования на 2013 год
G16: (тыс. рублей)
A17: № п/п | B17: Наименование программы | C17: Исполнители | D17: Бюджетная классификация | H17: сумма
D18: ГРБС | E18: РзПр | F18: ЦСР | G18: ВР
A19: 1 | B19: 2 | C19: 3 | D19: 4 | E19: 5 | F19: 6 | G19: 7 | H19: 8
A20: 1 | B20: Развитие культуры в Черемховском районном муниципальном образовании на период 2012-2016 гг. | C20: Отдел по культуре и библиотечному обслуживанию АЧРМО | D20: 904 | E20: 0801, 0702 | F20: 7952000 | G20: 023 | H20: 1023.8
A21: 2 | B21: Ветхие школы Черемховского района на 2011-2013 гг. | C21: Отдел образования АЧРМО | D21: 907 | E21: 0702 | F21: 7951500 | G21: 022 | H21: 900
A22: 3 | B22: Совершенствование дошкольного образования Черемховского района на 2011-2014 гг. | D22: 907 | E22: 0701 | F22: 7951800 | G22: 022 | H22: 350
A23: 4 | B23: Совершенствование организации питания в образовательных учреждениях Черемховского района на 2011-2013 гг. | D23: 907 | E23: 0702 | F23: 7951600 | G23: 022 | H23: 1000
A24: 5 | B24: Развитие дошкольного образования на 2011-2014 гг. | D24: 907 | E24: 0701 | F24: 7951700 | G24: 022 | H24: 1102
A25: 6 | B25: "Безопасность образовательных учреждений" 2010-2014гг. | D25: 907 | E25: 0701, 0702 | F25: 7951000 | G25: 450 | H25: 1700
A26: 7 | B26: Инвентаризация муниципальных объектов недвижимости Черемховского районного муниципального образования на 2012-2014 годы | C26: КУМИ | D26: 913 | E26: 0113, 0412, 0409 | F26: 7951900 | G26: 500 | H26: 2468.6
A27: 8 | B27: Молодым семьям доступное жилье на 2012-2019гг. | C27: Администрация ЧРМО | D27: 917 | E27: 1003 | F27: 7952100 | G27: 005 | H27: 360
A28: 9 | B28: Комплексные меры профилактики злоупотребления наркотическими средствами, психотропними веществами в Черемховском районном муниципальном образовании на 2011-2013 гг. | D28: 917 | E28: 0707 | F28: 7951300 | G28: 500 | H28: 10
A29: 10 | B29: Молодежная политика в Черемховском районном муниципальном образовании на 2013-2015 | D29: 917 | E29: 0707 | F29: 7952500 | G29: 447 | H29: 40
A30: 11 | B30: Развитие физической культуры, спорта и туризма в Черемховском районном муниципальном образовании на 2011-2013гг. | D30: 917 | E30: 1101 | F30: 7951200 | G30: 500 | H30: 100
A31: 12 | B31: Поддержка и развитие малого и среднего предпринимательства в Черемховском районе на 2013-2014 гг. | D31: 917 | E31: 0412 | F31: 7952200 | G31: 500 | H31: 100
A32: 13 | B32: Поддержка, проводимых мероприятий, посвященных Дням воинской славы, памятным датам России и работе с ветеранами и инвалидами в Черемховском районе на 2013-2015 гг. | D32: 917 | E32: 1006 | F32: 7952400 | G32: 500 | H32: 100
A33: 14 | B33: Улучшение условий и охраны труда в Черемховском районе на 2011-2013 гг | D33: 917 | E33: 0113 | F33: 7951400 | G33: 500 | H33: 15
A34: 15 | B34: Развитие автомобильных дорог Черемховского районного муниципального образования на 2013-2015 гг. | D34: 917 | E34: 0409 | F34: 7952300 | G34: 500 | H34: 202.5
A35: 16 | B35: Поддержка молодых педагогов на территории Черемховского районного муниципального образования на 2012-2013 гг. | D35: 917 | E35: 0113 | F35: 7952700 | G35: 500 | H35: 100
A36: 17 | B36: Обеспечение учреждений здравоохранения Черемховского районного муниципального образования квалифицированными медицинскими кадрами на 2013 год | D36: 917 | E36: 0909 | F36: 7952800 | G36: 500 | H36: 200
A37: 18 | B37: Профилактика правонарушений в Черемховском районном муниципальном образовании на 2013-2016 гг. | D37: 917 | E37: 0113 | F37: 7952600 | G37: 500 | H37: 40
A38: 19 | B38: Программа повышения энергетической эффективности Черемховского районного муниципального образования на 2010-2015 гг | C38: Отдел образования АЧРМО | D38: 907 | E38: 0701, 0702 | F38: 7951100 | G38: 451 | H38: 600
C39: Отдел по культуре и библиотечному обслуживанию АЧРМО | D39: 903 | E39: 0800 | F39: 7951099 | G39: 451 | H39: 282
C40: Администрация ЧРМО | D40: 917 | E40: 0104 | F40: 7951100 | G40: 451 | H40: 18.3
A41: 20 | B41: Повышение эффективности бюджетных расходов Черемховского районного муниципального образования на 2012-2013 годы | C41: Финансовое управление АЧРМО | D41: 910 | E41: 0106 | F41: 7950200 | G41: 500 | H41: 200
C42: Отдел образования АЧРМО | D42: 907 | E42: 0701, 0702 | F42: 7950200 | G42: 001 | H42: 18395.9
C43: Отдел по культуре и библиотечному обслуживанию АЧРМО | D43: 904 | E43: 0702, 0801 | F43: 7950200 | G43: 001 | H43: 1458
C44: Муниципальные образования района, Всего, в том числе | H44: =SUM(H45:H62) -> 4891
C45: Алехинское сельское поселение | D45: 910 | E45: 1403 | F45: 7950200 | G45: 017 | H45: 391
C46: Бельское сельское поселение | D46: 910 | E46: 1403 | F46: 7950200 | G46: 017 | H46: 307
C47: Булайское сельское поселение | D47: 910 | E47: 1403 | F47: 7950200 | G47: 017 | H47: 351
C48: Голуметское сельское поселение | D48: 910 | E48: 1403 | F48: 7950200 | G48: 017 | H48: 223
C49: Зерновское сельское поселение | D49: 910 | E49: 1403 | F49: 7950200 | G49: 017 | H49: 234
C50: Каменно-Ангарское сельское поселение | D50: 910 | E50: 1403 | F50: 7950200 | G50: 017 | H50: 301
C51: Лоховское сельское поселение | D51: 910 | E51: 1403 | F51: 7950200 | G51: 017 | H51: 238
C52: Михайловское городское поселение | D52: 910 | E52: 1403 | F52: 7950200 | G52: 017 | H52: 347
C53: Нижнеиретское сельское поселение | D53: 910 | E53: 1403 | F53: 7950200 | G53: 017 | H53: 196
C54: Новогромовское сельское поселение | D54: 910 | E54: 1403 | F54: 7950200 | G54: 017 | H54: 174
C55: Новостроевское сельское поселение | D55: 910 | E55: 1403 | F55: 7950200 | G55: 017 | H55: 203
C56: Онотское сельское поселение | D56: 910 | E56: 1403 | F56: 7950200 | G56: 017 | H56: 309
C57: Парфеновское сельское поселение | D57: 910 | E57: 1403 | F57: 7950200 | G57: 017 | H57: 295
C58: Саянское сельское поселение | D58: 910 | E58: 1403 | F58: 7950200 | G58: 017 | H58: 217
C59: Тальниковское сельское поселение | D59: 910 | E59: 1403 | F59: 7950200 | G59: 017 | H59: 264
C60: Тунгусское сельское поселение | D60: 910 | E60: 1403 | F60: 7950200 | G60: 017 | H60: 275
C61: Узколугское сельское поселение | D61: 910 | E61: 1403 | F61: 7950200 | G61: 017 | H61: 288
C62: Черемховское сельское поселение | D62: 910 | E62: 1403 | F62: 7950200 | G62: 017 | H62: 278
A63: Всего | H63: =SUM(H20:H44) -> 35657.1
A66: И.о. начальника финансового управления | H66: С.М. Татина

Sheet прил 18 источн.13
A14: Источники внутреннего финансирования дефицита бюджета Черемховского районного муниципального образования на 2013 год
C16: (тыс.рублей)
A17: Наименование | B17: Код | C17: Сумма
A18: Источники внутреннего финансирования дефицита бюджета | B18: 000 01 00 00 00 00 0000 000 | C18: =C19+C25 -> 19503.16885
A19: Кредиты кредитных организаций в валюте Российской Федерации | B19: 910 01 02 00 00 00 0000 000 | C19: =C20+C22 -> 4061.44795
A20: Получение кредитов от кредитных организаций в валюте Российской Федерации | B20: 910 01 02 00 00 00 0000 700 | C20: =C21 -> 4061.44795
A21: Кредиты, полученные в валюте Российской Федерации от кредитных организаций бюджетами муниципальных районнов | B21: 910 01 02 00 00 05 0000 710 | C21: 4061.44795
A22: Бюджетные кредиты от других бюджетов бюджетной системы Российской Федерации | B22: 910 01 03 00 00 00 0000 000 | C22: 0
A23: Погашение бюджетных кредитов, полученных от других бюджетов бюджетной системы Российской Федерации в валюте Российской Федерации | B23: 910 01 03 00 00 00 0000 800 | C23: 0
A24: Погашение бюджетами муниципальных районнов кредитов от других бюджетов бюджетной системы Российской Федерации в валюте Российской Федерации | B24: 910 01 03 00 00 05 0000 810 | C24: 0
A25: Изменение остатков средств на счетах по учету средств бюджетов | B25: 000 01 05 00 00 00 0000 000 | C25: =C26+C28 -> 15441.7209
A26: Увеличение остатков средств бюджетов | B26: 000 01 05 00 00 00 0000 500 | C26: =C27 -> -611065.1931
A27: Увеличение прочих остатков средств бюджетов | B27: 000 01 05 02 00 00 0000 500 | C27: -611065.1931
A28: Уменьшение остатков средств бюджетов | B28: 000 01 05 00 00 00 0000 600 | C28: =C29 -> 626506.914
A29: Уменьшение прочих остатков средств бюджетов | B29: 000 01 05 02 00 00 0000 600 | C29: 626506.914
A31: И.о.начальника финуправления | C31: С.М.Татина
